Body,Body Name,Date Paid,Transaction Number,Amount,Supplier Name,Supplier ID,Supplier post code (first 4 digits),Directorate,Service Area,General Ledger code Description,BVACOP class,Revenue/ Capital Spend
http://statistics.data.gov.uk/id/local-authority/00HY,Wiltshire Council,17/01/2011,1900493398,1011.06,1st Choice Cabs ,101285,SP4 ,Neighbourhood & Planning,DCS South CTPLD U65,Transport Contracts,Third Party Payments,REVENUE
http://statistics.data.gov.uk/id/local-authority/00HY,Wiltshire Council,17/01/2011,1900493406,500.35,1st Choice Cabs ,101285,SP4 ,Neighbourhood & Planning,DCS South CTPLD U65,Transport Contracts,Third Party Payments,REVENUE
http://statistics.data.gov.uk/id/local-authority/00HY,Wiltshire Council,05/01/2011,1900482063,4084.00,1st Choice Stairlifts ,113095,SN11,Wiltshire Council,Wiltshire Council,Payments to Contractors - Other,Third Party Payments,CAPITAL
http://statistics.data.gov.uk/id/local-authority/00HY,Wiltshire Council,13/01/2011,1900492287,1872.00,1st Choice Stairlifts ,113095,SN11,Wiltshire Council,Wiltshire Council,Payments to Contractors - Other,Third Party Payments,CAPITAL
http://statistics.data.gov.uk/id/local-authority/00HY,Wiltshire Council,13/01/2011,1900492355,2108.00,1st Choice Stairlifts ,113095,SN11,Wiltshire Council,Wiltshire Council,Payments to Contractors - Other,Third Party Payments,CAPITAL
http://statistics.data.gov.uk/id/local-authority/00HY,Wiltshire Council,19/01/2011,1900494520,1765.00,1st Choice Stairlifts ,113095,SN11,Wiltshire Council,Wiltshire Council,Payments to Contractors - Other,Third Party Payments,CAPITAL
http://statistics.data.gov.uk/id/local-authority/00HY,Wiltshire Council,26/01/2011,1900497968,1325.00,1st Choice Stairlifts ,113095,SN11,Wiltshire Council,Wiltshire Council,Payments to Contractors - Other,Third Party Payments,CAPITAL
http://statistics.data.gov.uk/id/local-authority/00HY,Wiltshire Council,26/01/2011,1900497998,4654.00,1st Choice Stairlifts ,113095,SN11,Wiltshire Council,Wiltshire Council,Payments to Contractors - Other,Third Party Payments,CAPITAL
http://statistics.data.gov.uk/id/local-authority/00HY,Wiltshire Council,26/01/2011,1900498000,1662.00,1st Choice Stairlifts ,113095,SN11,Wiltshire Council,Wiltshire Council,Payments to Contractors - Other,Third Party Payments,CAPITAL
http://statistics.data.gov.uk/id/local-authority/00HY,Wiltshire Council,31/01/2011,1900502248,1123.63,1ST OFFICE EQUIPMENT LTD ,110000,BA2 ,Neighbourhood & Planning,Car Park Admin,Photocopier Rental,Supplies and Services,REVENUE
http://statistics.data.gov.uk/id/local-authority/00HY,Wiltshire Council,19/01/2011,5105889497,2264.84,2 Care UK Ltd ,110002,BH7 ,Community Services,MH AOWA South,Adult Residential Placements - Spot Purchase,Third Party Payments,REVENUE
http://statistics.data.gov.uk/id/local-authority/00HY,Wiltshire Council,21/01/2011,1900496705,656.50,24/7 Taxis Corsham ,101308,SN13,Neighbourhood & Planning,SEN Primary,Transport Contracts,Third Party Payments,REVENUE
http://statistics.data.gov.uk/id/local-authority/00HY,Wiltshire Council,25/01/2011,1900497644,511.50,2get2 Taxi Services Ltd ,101102,SP1 ,Neighbourhood & Planning,Community Team South,Transport Contracts,Third Party Payments,REVENUE
http://statistics.data.gov.uk/id/local-authority/00HY,Wiltshire Council,18/01/2011,1900493883,1465.75,A  and  S Private Hire ,101115,SN15,Neighbourhood & Planning,SEN Primary,Transport Contracts,Third Party Payments,REVENUE
http://statistics.data.gov.uk/id/local-authority/00HY,Wiltshire Council,28/01/2011,1900502085,3378.00,A & R Fraser ,124050,SP7 ,Neighbourhood & Planning,Winter Maintenance,Highways - Other Materials,Supplies and Services,REVENUE
http://statistics.data.gov.uk/id/local-authority/00HY,Wiltshire Council,12/01/2011,1900489123,1026.07,A B Taxis Ltd ,100945,SN12,Neighbourhood & Planning,Mainstream Secondary,Transport Contracts,Third Party Payments,REVENUE
http://statistics.data.gov.uk/id/local-authority/00HY,Wiltshire Council,12/01/2011,1900489124,1020.00,A B Taxis Ltd ,100945,SN12,Neighbourhood & Planning,Mainstream Secondary,Transport Contracts,Third Party Payments,REVENUE
http://statistics.data.gov.uk/id/local-authority/00HY,Wiltshire Council,05/01/2011,5105880055,625.00,A C S ,113156,SN12,Resources,Revs&Bens-Housng Ben,Staff Training Course Costs,Employee Related,REVENUE
http://statistics.data.gov.uk/id/local-authority/00HY,Wiltshire Council,10/01/2011,1900487966,700.00,A E Martin Ltd ,100148,BA14,Resources,WTP Office,Preventative Property Maintenance,Premises Related,REVENUE
http://statistics.data.gov.uk/id/local-authority/00HY,Wiltshire Council,06/01/2011,1900487941,17683.15,A G Builders ,100936,SN9 ,Wiltshire Council,Wiltshire Council,Buildings Minor Alterations,Premises Related,CAPITAL
http://statistics.data.gov.uk/id/local-authority/00HY,Wiltshire Council,07/01/2011,1900488163,38092.24,A G Builders ,100936,SN9 ,Resources,Other Rechable Works,Preventative Property Maintenance,Premises Related,REVENUE
http://statistics.data.gov.uk/id/local-authority/00HY,Wiltshire Council,12/01/2011,1900491914,3068.15,A G Builders ,100936,SN9 ,Wiltshire Council,Wiltshire Council,Buildings Minor Alterations,Premises Related,CAPITAL
http://statistics.data.gov.uk/id/local-authority/00HY,Wiltshire Council,28/01/2011,1900501619,26818.37,A G Builders ,100936,SN9 ,Resources,Other Rechable Works,Preventative Property Maintenance,Premises Related,REVENUE
http://statistics.data.gov.uk/id/local-authority/00HY,Wiltshire Council,25/01/2011,1900497695,1681.79,A G Minibuses ,100878,BA12,Neighbourhood & Planning,Mainstream Primary,Transport Contracts,Third Party Payments,REVENUE
http://statistics.data.gov.uk/id/local-authority/00HY,Wiltshire Council,25/01/2011,1900497701,1291.48,A G Minibuses ,100878,BA12,Neighbourhood & Planning,SEN Secondary,Transport Contracts,Third Party Payments,REVENUE
http://statistics.data.gov.uk/id/local-authority/00HY,Wiltshire Council,25/01/2011,1900497702,1248.00,A G Minibuses ,100878,BA12,Neighbourhood & Planning,SEN Primary,Transport Contracts,Third Party Payments,REVENUE
http://statistics.data.gov.uk/id/local-authority/00HY,Wiltshire Council,25/01/2011,1900497704,9504.18,A G Minibuses ,100878,BA12,Neighbourhood & Planning,Connect 2 Wiltshire,Transport Contracts,Third Party Payments,REVENUE
http://statistics.data.gov.uk/id/local-authority/00HY,Wiltshire Council,25/01/2011,1900497706,997.50,A G Minibuses ,100878,BA12,Neighbourhood & Planning,Mainstream Primary,Transport Contracts,Third Party Payments,REVENUE
http://statistics.data.gov.uk/id/local-authority/00HY,Wiltshire Council,25/01/2011,1900497706,1588.52,A G Minibuses ,100878,BA12,Neighbourhood & Planning,Public Transport,Transport Contracts,Third Party Payments,REVENUE
http://statistics.data.gov.uk/id/local-authority/00HY,Wiltshire Council,25/01/2011,1900497706,3885.16,A G Minibuses ,100878,BA12,Neighbourhood & Planning,Connect 2 Wiltshire,Transport Contracts,Third Party Payments,REVENUE
http://statistics.data.gov.uk/id/local-authority/00HY,Wiltshire Council,25/01/2011,1900497707,1643.27,A G Minibuses ,100878,BA12,Neighbourhood & Planning,Mainstream Primary,Transport Contracts,Third Party Payments,REVENUE
http://statistics.data.gov.uk/id/local-authority/00HY,Wiltshire Council,25/01/2011,1900497709,793.00,A G Minibuses ,100878,BA12,Neighbourhood & Planning,Mainstream Primary,Transport Contracts,Third Party Payments,REVENUE
http://statistics.data.gov.uk/id/local-authority/00HY,Wiltshire Council,25/01/2011,1900497710,613.05,A G Minibuses ,100878,BA12,Neighbourhood & Planning,Mainstream Secondary,Transport Contracts,Third Party Payments,REVENUE
http://statistics.data.gov.uk/id/local-authority/00HY,Wiltshire Council,25/01/2011,1900497711,1783.60,A G Minibuses ,100878,BA12,Neighbourhood & Planning,Connect 2 Wiltshire,Transport Contracts,Third Party Payments,REVENUE
http://statistics.data.gov.uk/id/local-authority/00HY,Wiltshire Council,25/01/2011,1900497714,926.25,A G Minibuses ,100878,BA12,Neighbourhood & Planning,SEN Secondary,Transport Contracts,Third Party Payments,REVENUE
http://statistics.data.gov.uk/id/local-authority/00HY,Wiltshire Council,27/01/2011,1900501514,1624.00,A G Minibuses ,100878,BA12,Neighbourhood & Planning,DCS Salis MenHth O65,Transport Contracts,Third Party Payments,REVENUE
http://statistics.data.gov.uk/id/local-authority/00HY,Wiltshire Council,28/01/2011,1900502059,603.30,A G Minibuses ,100878,BA12,Neighbourhood & Planning,SEN 16+ Secondary,Transport Contracts,Third Party Payments,REVENUE
http://statistics.data.gov.uk/id/local-authority/00HY,Wiltshire Council,28/01/2011,1900502059,603.31,A G Minibuses ,100878,BA12,Neighbourhood & Planning,Mainstream Primary,Transport Contracts,Third Party Payments,REVENUE
http://statistics.data.gov.uk/id/local-authority/00HY,Wiltshire Council,28/01/2011,1900502059,603.31,A G Minibuses ,100878,BA12,Neighbourhood & Planning,SEN Primary,Transport Contracts,Third Party Payments,REVENUE
http://statistics.data.gov.uk/id/local-authority/00HY,Wiltshire Council,28/01/2011,1900502067,622.20,A G Minibuses ,100878,BA12,Neighbourhood & Planning,DCS Kennet CTPLD U65,Transport Contracts,Third Party Payments,REVENUE
http://statistics.data.gov.uk/id/local-authority/00HY,Wiltshire Council,28/01/2011,1900502068,637.25,A G Minibuses ,100878,BA12,Neighbourhood & Planning,DCS West CTPLD U65,Transport Contracts,Third Party Payments,REVENUE
http://statistics.data.gov.uk/id/local-authority/00HY,Wiltshire Council,25/01/2011,5105895084,536.89,A Hutchinson ,113190,BA14,Neighbourhood & Planning,Fleet Mgmt & Support,Public Transport,Transport Related,REVENUE
http://statistics.data.gov.uk/id/local-authority/00HY,Wiltshire Council,17/01/2011,1900493320,1399.61,A J K Services ,100944,SP9 ,Wiltshire Council,Wiltshire Council,Buildings Minor Alterations,Premises Related,CAPITAL
http://statistics.data.gov.uk/id/local-authority/00HY,Wiltshire Council,18/01/2011,1900493942,4215.00,A J Lewis Building Services Ltd ,101703,BH21,Neighbourhood & Planning,Housing Rprs Simdell,Premises Related Other Maintenance Costs,Premises Related,REVENUE
http://statistics.data.gov.uk/id/local-authority/00HY,Wiltshire Council,12/01/2011,1900489101,788.90,A M S Taxis ,100839,BA14,Neighbourhood & Planning,SEN Primary,Transport Contracts,Third Party Payments,REVENUE
http://statistics.data.gov.uk/id/local-authority/00HY,Wiltshire Council,12/01/2011,1900489103,626.60,A M S Taxis ,100839,BA14,Neighbourhood & Planning,SEN Secondary,Transport Contracts,Third Party Payments,REVENUE
http://statistics.data.gov.uk/id/local-authority/00HY,Wiltshire Council,12/01/2011,1900489104,763.75,A M S Taxis ,100839,BA14,Neighbourhood & Planning,SEN Secondary,Transport Contracts,Third Party Payments,REVENUE
http://statistics.data.gov.uk/id/local-authority/00HY,Wiltshire Council,12/01/2011,1900489108,1157.00,A M S Taxis ,100839,BA14,Neighbourhood & Planning,SEN Primary,Transport Contracts,Third Party Payments,REVENUE
http://statistics.data.gov.uk/id/local-authority/00HY,Wiltshire Council,12/01/2011,1900489109,740.78,A M S Taxis ,100839,BA14,Neighbourhood & Planning,SEN 16+ Secondary,Transport Contracts,Third Party Payments,REVENUE
http://statistics.data.gov.uk/id/local-authority/00HY,Wiltshire Council,11/01/2011,1900488792,668.00,A P Taxis ,100628,SN12,Neighbourhood & Planning,LAC&16+ North&East,Transport Contracts,Third Party Payments,REVENUE
http://statistics.data.gov.uk/id/local-authority/00HY,Wiltshire Council,12/01/2011,1900489107,1064.88,A P Taxis ,100628,SN12,Neighbourhood & Planning,SEN Primary,Transport Contracts,Third Party Payments,REVENUE
http://statistics.data.gov.uk/id/local-authority/00HY,Wiltshire Council,12/01/2011,1900489122,864.45,A P Taxis ,100628,SN12,Neighbourhood & Planning,SEN Secondary,Transport Contracts,Third Party Payments,REVENUE
http://statistics.data.gov.uk/id/local-authority/00HY,Wiltshire Council,13/01/2011,5105884527,779.51,A S A Awards Scheme ,110020,B98 ,Neighbourhood & Planning,Five Rivers,Traded Goods Expenses,Supplies and Services,REVENUE
http://statistics.data.gov.uk/id/local-authority/00HY,Wiltshire Council,26/01/2011,5105895405,1580.71,A S A Awards Scheme ,110020,B98 ,Neighbourhood & Planning,Tidworth,Equipment Purchase,Supplies and Services,REVENUE
http://statistics.data.gov.uk/id/local-authority/00HY,Wiltshire Council,11/01/2011,5105887628,2794.89,A T S Euromaster Ltd ,100113,BS2 ,Neighbourhood & Planning,Fleet Mtc South,Vehicle Tyres,Transport Related,REVENUE
http://statistics.data.gov.uk/id/local-authority/00HY,Wiltshire Council,28/01/2011,1900493814,1022.69,A Wilson ,100241,BA14,Resources,WTP Office,Preventative Property Maintenance,Premises Related,REVENUE
http://statistics.data.gov.uk/id/local-authority/00HY,Wiltshire Council,18/01/2011,1900493879,623.33,A1 Cab Company ,101233,SP4 ,Neighbourhood & Planning,YPSS Salisbury,Transport Contracts,Third Party Payments,REVENUE
http://statistics.data.gov.uk/id/local-authority/00HY,Wiltshire Council,18/01/2011,1900493884,1098.00,A1 Cab Company ,101233,SP4 ,Neighbourhood & Planning,SEN Primary,Transport Contracts,Third Party Payments,REVENUE
http://statistics.data.gov.uk/id/local-authority/00HY,Wiltshire Council,18/01/2011,1900493885,1033.50,A1 Cab Company ,101233,SP4 ,Neighbourhood & Planning,SEN Secondary,Transport Contracts,Third Party Payments,REVENUE
http://statistics.data.gov.uk/id/local-authority/00HY,Wiltshire Council,18/01/2011,1900493886,1950.00,A1 Cab Company ,101233,SP4 ,Neighbourhood & Planning,SEN Secondary,Transport Contracts,Third Party Payments,REVENUE
http://statistics.data.gov.uk/id/local-authority/00HY,Wiltshire Council,18/01/2011,1900493889,689.00,A1 Cab Company ,101233,SP4 ,Neighbourhood & Planning,SEN Secondary,Transport Contracts,Third Party Payments,REVENUE
http://statistics.data.gov.uk/id/local-authority/00HY,Wiltshire Council,18/01/2011,1900493889,689.00,A1 Cab Company ,101233,SP4 ,Neighbourhood & Planning,SEN Rechargable Exp,Transport Contracts,Third Party Payments,REVENUE
http://statistics.data.gov.uk/id/local-authority/00HY,Wiltshire Council,26/01/2011,5105895400,1134.24,A2 Dominion ,129151,NW1 ,Children & Education,LAC & 16+ Team 1,Children's Residential / Domiciliary Care,Third Party Payments,REVENUE
http://statistics.data.gov.uk/id/local-authority/00HY,Wiltshire Council,18/01/2011,1900493904,598.00,A2b Taxis Of Cirencester ,101191,GL7 ,Neighbourhood & Planning,Mainstream Secondary,Transport Contracts,Third Party Payments,REVENUE
http://statistics.data.gov.uk/id/local-authority/00HY,Wiltshire Council,13/01/2011,1900492191,1086.67,Abbey Taxis (Swindon) Ltd ,100920,SN2 ,Neighbourhood & Planning,SEN Secondary,Transport Contracts,Third Party Payments,REVENUE
http://statistics.data.gov.uk/id/local-authority/00HY,Wiltshire Council,13/01/2011,1900492192,672.00,Abbey Taxis (Swindon) Ltd ,100920,SN2 ,Neighbourhood & Planning,SEN Primary,Transport Contracts,Third Party Payments,REVENUE
http://statistics.data.gov.uk/id/local-authority/00HY,Wiltshire Council,13/01/2011,1900492193,832.00,Abbey Taxis (Swindon) Ltd ,100920,SN2 ,Neighbourhood & Planning,SEN Secondary,Transport Contracts,Third Party Payments,REVENUE
http://statistics.data.gov.uk/id/local-authority/00HY,Wiltshire Council,13/01/2011,1900492194,520.00,Abbey Taxis (Swindon) Ltd ,100920,SN2 ,Neighbourhood & Planning,SEN Primary,Transport Contracts,Third Party Payments,REVENUE
http://statistics.data.gov.uk/id/local-authority/00HY,Wiltshire Council,13/01/2011,1900492194,520.00,Abbey Taxis (Swindon) Ltd ,100920,SN2 ,Neighbourhood & Planning,SEN Secondary,Transport Contracts,Third Party Payments,REVENUE
http://statistics.data.gov.uk/id/local-authority/00HY,Wiltshire Council,14/01/2011,1900493094,571.20,Abbey Taxis (Swindon) Ltd ,100920,SN2 ,Neighbourhood & Planning,Mainstream Secondary,Transport Contracts,Third Party Payments,REVENUE
http://statistics.data.gov.uk/id/local-authority/00HY,Wiltshire Council,18/01/2011,1900493882,579.43,Abbey Taxis (Swindon) Ltd ,100920,SN2 ,Neighbourhood & Planning,Mainstream Secondary,Transport Contracts,Third Party Payments,REVENUE
http://statistics.data.gov.uk/id/local-authority/00HY,Wiltshire Council,18/01/2011,1900493899,910.00,Abbey Taxis (Swindon) Ltd ,100920,SN2 ,Neighbourhood & Planning,Mainstream Secondary,Transport Contracts,Third Party Payments,REVENUE
http://statistics.data.gov.uk/id/local-authority/00HY,Wiltshire Council,25/01/2011,1900497685,612.53,Abbey Taxis (Swindon) Ltd ,100920,SN2 ,Neighbourhood & Planning,N&E Children w/Dis,Transport Contracts,Third Party Payments,REVENUE
http://statistics.data.gov.uk/id/local-authority/00HY,Wiltshire Council,25/01/2011,1900497699,546.00,Abbey Taxis (Swindon) Ltd ,100920,SN2 ,Neighbourhood & Planning,SEN Secondary,Transport Contracts,Third Party Payments,REVENUE
http://statistics.data.gov.uk/id/local-authority/00HY,Wiltshire Council,13/01/2011,1900492196,1206.20,Abbey Taxis Ltd ,101080,BA1 ,Neighbourhood & Planning,LAC&16+ South&West,Transport Contracts,Third Party Payments,REVENUE
http://statistics.data.gov.uk/id/local-authority/00HY,Wiltshire Council,13/01/2011,1900492197,941.70,Abbey Taxis Ltd ,101080,BA1 ,Neighbourhood & Planning,LAC&16+ South&West,Transport Contracts,Third Party Payments,REVENUE
http://statistics.data.gov.uk/id/local-authority/00HY,Wiltshire Council,14/01/2011,1900493086,1075.20,Abbey Taxis Ltd ,101080,BA1 ,Neighbourhood & Planning,SEN Primary,Transport Contracts,Third Party Payments,REVENUE
http://statistics.data.gov.uk/id/local-authority/00HY,Wiltshire Council,14/01/2011,1900493091,886.61,Abbey Taxis Ltd ,101080,BA1 ,Neighbourhood & Planning,SEN Secondary,Transport Contracts,Third Party Payments,REVENUE
http://statistics.data.gov.uk/id/local-authority/00HY,Wiltshire Council,14/01/2011,1900493097,519.94,Abbey Taxis Ltd ,101080,BA1 ,Neighbourhood & Planning,Mainstream Primary,Transport Contracts,Third Party Payments,REVENUE
http://statistics.data.gov.uk/id/local-authority/00HY,Wiltshire Council,14/01/2011,1900493099,713.09,Abbey Taxis Ltd ,101080,BA1 ,Neighbourhood & Planning,LAC&16+ South&West,Transport Contracts,Third Party Payments,REVENUE
http://statistics.data.gov.uk/id/local-authority/00HY,Wiltshire Council,14/01/2011,1900493103,899.20,Abbey Taxis Ltd ,101080,BA1 ,Neighbourhood & Planning,LAC&16+ South&West,Transport Contracts,Third Party Payments,REVENUE
http://statistics.data.gov.uk/id/local-authority/00HY,Wiltshire Council,14/01/2011,1900493105,702.00,Abbey Taxis Ltd ,101080,BA1 ,Neighbourhood & Planning,SEN Secondary,Transport Contracts,Third Party Payments,REVENUE
http://statistics.data.gov.uk/id/local-authority/00HY,Wiltshire Council,14/01/2011,1900493106,690.00,Abbey Taxis Ltd ,101080,BA1 ,Neighbourhood & Planning,SEN Secondary,Transport Contracts,Third Party Payments,REVENUE
http://statistics.data.gov.uk/id/local-authority/00HY,Wiltshire Council,14/01/2011,5105886863,1709.15,Abicare Services Ltd Homecare ,110031,SP1 ,Community Services,OP East Locality,Adult Domiciliary Care - Mileage,Third Party Payments,REVENUE
http://statistics.data.gov.uk/id/local-authority/00HY,Wiltshire Council,14/01/2011,5105887074,3291.12,Abicare Services Ltd Homecare ,110031,SP1 ,Community Services,OP East Locality,Adult Domiciliary Care - Live in Care,Third Party Payments,REVENUE
http://statistics.data.gov.uk/id/local-authority/00HY,Wiltshire Council,14/01/2011,5105887206,1110.78,Abicare Services Ltd Homecare ,110031,SP1 ,Community Services,OP West Locality,Adult Domiciliary Care - Mileage,Third Party Payments,REVENUE
http://statistics.data.gov.uk/id/local-authority/00HY,Wiltshire Council,14/01/2011,5105887207,911.74,Abicare Services Ltd Homecare ,110031,SP1 ,Community Services,OP West Locality,Adult Domiciliary Care - Spot Contribution,Income,REVENUE
http://statistics.data.gov.uk/id/local-authority/00HY,Wiltshire Council,14/01/2011,5105887208,793.83,Abicare Services Ltd Homecare ,110031,SP1 ,Community Services,OP West Locality,Adult Domiciliary Care - Spot,Third Party Payments,REVENUE
http://statistics.data.gov.uk/id/local-authority/00HY,Wiltshire Council,14/01/2011,5105887209,869.96,Abicare Services Ltd Homecare ,110031,SP1 ,Community Services,PI West Locality,Adult Domiciliary Care - Mileage,Third Party Payments,REVENUE
http://statistics.data.gov.uk/id/local-authority/00HY,Wiltshire Council,21/01/2011,5105887390,1516.48,Abicare Services Ltd Homecare ,110031,SP1 ,Community Services,MH OP South Locality,Adult Domiciliary Care - Spot,Third Party Payments,REVENUE
http://statistics.data.gov.uk/id/local-authority/00HY,Wiltshire Council,21/01/2011,5105887391,930.15,Abicare Services Ltd Homecare ,110031,SP1 ,Community Services,MH OP South Locality,Adult Domiciliary Care - Spot Contribution,Income,REVENUE
http://statistics.data.gov.uk/id/local-authority/00HY,Wiltshire Council,21/01/2011,5105887425,898.64,Abicare Services Ltd Homecare ,110031,SP1 ,Community Services,CTPLD County CIC U65,Adult Domiciliary Care - Spot,Third Party Payments,REVENUE
http://statistics.data.gov.uk/id/local-authority/00HY,Wiltshire Council,14/01/2011,5105887444,857.90,Abicare Services Ltd Homecare ,110031,SP1 ,Community Services,OP East Locality,Adult Domiciliary Care - Mileage,Third Party Payments,REVENUE
http://statistics.data.gov.uk/id/local-authority/00HY,Wiltshire Council,21/01/2011,5105887445,751.36,Abicare Services Ltd Homecare ,110031,SP1 ,Community Services,OP East Locality,Adult Domiciliary Care - Mileage,Third Party Payments,REVENUE
http://statistics.data.gov.uk/id/local-authority/00HY,Wiltshire Council,14/01/2011,5105887447,1013.82,Abicare Services Ltd Homecare ,110031,SP1 ,Community Services,OP East Locality,Adult Domiciliary Care - Spot,Third Party Payments,REVENUE
http://statistics.data.gov.uk/id/local-authority/00HY,Wiltshire Council,14/01/2011,5105887448,618.09,Abicare Services Ltd Homecare ,110031,SP1 ,Community Services,OP East Locality,Adult Domiciliary Care - Mileage,Third Party Payments,REVENUE
http://statistics.data.gov.uk/id/local-authority/00HY,Wiltshire Council,21/01/2011,5105887449,656.48,Abicare Services Ltd Homecare ,110031,SP1 ,Community Services,OP East Locality,Adult Domiciliary Care - Spot Contribution,Income,REVENUE
http://statistics.data.gov.uk/id/local-authority/00HY,Wiltshire Council,14/01/2011,5105887460,1503.75,Abicare Services Ltd Homecare ,110031,SP1 ,Community Services,OP East Locality,Adult Domiciliary Care - Spot,Third Party Payments,REVENUE
http://statistics.data.gov.uk/id/local-authority/00HY,Wiltshire Council,21/01/2011,5105887462,1017.51,Abicare Services Ltd Homecare ,110031,SP1 ,Community Services,OP East Locality,Adult Domiciliary Care - Mileage,Third Party Payments,REVENUE
http://statistics.data.gov.uk/id/local-authority/00HY,Wiltshire Council,14/01/2011,5105887463,1415.50,Abicare Services Ltd Homecare ,110031,SP1 ,Community Services,OP East Locality,Adult Domiciliary Care - Mileage,Third Party Payments,REVENUE
http://statistics.data.gov.uk/id/local-authority/00HY,Wiltshire Council,14/01/2011,5105887490,1945.01,Abicare Services Ltd Homecare ,110031,SP1 ,Community Services,OP East Locality,Adult Domiciliary Care - Spot,Third Party Payments,REVENUE
http://statistics.data.gov.uk/id/local-authority/00HY,Wiltshire Council,14/01/2011,5105887493,791.01,Abicare Services Ltd Homecare ,110031,SP1 ,Community Services,OP East Locality,Adult Domiciliary Care - Mileage,Third Party Payments,REVENUE
http://statistics.data.gov.uk/id/local-authority/00HY,Wiltshire Council,14/01/2011,5105887495,982.11,Abicare Services Ltd Homecare ,110031,SP1 ,Community Services,OP East Locality,Adult Domiciliary Care - Mileage,Third Party Payments,REVENUE
http://statistics.data.gov.uk/id/local-authority/00HY,Wiltshire Council,14/01/2011,5105888066,713.25,Abicare Services Ltd Homecare ,110031,SP1 ,Community Services,OP West Locality,Adult Domiciliary Care - Spot Contribution,Income,REVENUE
http://statistics.data.gov.uk/id/local-authority/00HY,Wiltshire Council,14/01/2011,5105888121,3557.08,Abicare Services Ltd Homecare ,110031,SP1 ,Community Services,OP West Locality,Adult Domiciliary Care - Spot,Third Party Payments,REVENUE
http://statistics.data.gov.uk/id/local-authority/00HY,Wiltshire Council,14/01/2011,5105888123,963.30,Abicare Services Ltd Homecare ,110031,SP1 ,Community Services,OP South Locality,Adult Domiciliary Care - Spot,Third Party Payments,REVENUE
http://statistics.data.gov.uk/id/local-authority/00HY,Wiltshire Council,14/01/2011,5105888124,612.60,Abicare Services Ltd Homecare ,110031,SP1 ,Community Services,OP West Locality,Adult Domiciliary Care - Spot Contribution,Income,REVENUE
http://statistics.data.gov.uk/id/local-authority/00HY,Wiltshire Council,14/01/2011,5105888127,589.87,Abicare Services Ltd Homecare ,110031,SP1 ,Community Services,PI East Locality,Adult Domiciliary Care - Spot Contribution,Income,REVENUE
http://statistics.data.gov.uk/id/local-authority/00HY,Wiltshire Council,14/01/2011,5105888641,819.04,Abicare Services Ltd Homecare ,110031,SP1 ,Community Services,OP East Locality,Adult Domiciliary Care - Spot,Third Party Payments,REVENUE
http://statistics.data.gov.uk/id/local-authority/00HY,Wiltshire Council,17/01/2011,5105888956,3926.96,Abicare Services Ltd Homecare ,110031,SP1 ,Community Services,OP South Locality,Adult Domiciliary Care - Block Contribution,Income,REVENUE
http://statistics.data.gov.uk/id/local-authority/00HY,Wiltshire Council,17/01/2011,5105888957,1374.94,Abicare Services Ltd Homecare ,110031,SP1 ,Community Services,MH OP South Locality,Adult Domiciliary Care - Block Contribution,Income,REVENUE
http://statistics.data.gov.uk/id/local-authority/00HY,Wiltshire Council,17/01/2011,5105888957,2274.72,Abicare Services Ltd Homecare ,110031,SP1 ,Community Services,PI South Locality,Adult Domiciliary Care - Block,Third Party Payments,REVENUE
http://statistics.data.gov.uk/id/local-authority/00HY,Wiltshire Council,17/01/2011,5105888957,33357.18,Abicare Services Ltd Homecare ,110031,SP1 ,Community Services,OP South Locality,Adult Domiciliary Care - Block Contribution,Income,REVENUE
http://statistics.data.gov.uk/id/local-authority/00HY,Wiltshire Council,17/01/2011,5105888959,772.12,Abicare Services Ltd Homecare ,110031,SP1 ,Community Services,MH AOWA South,Adult Domiciliary Care - Block,Third Party Payments,REVENUE
http://statistics.data.gov.uk/id/local-authority/00HY,Wiltshire Council,17/01/2011,5105888959,2779.92,Abicare Services Ltd Homecare ,110031,SP1 ,Community Services,PI South Locality,Adult Domiciliary Care - Block,Third Party Payments,REVENUE
http://statistics.data.gov.uk/id/local-authority/00HY,Wiltshire Council,17/01/2011,5105888959,4679.06,Abicare Services Ltd Homecare ,110031,SP1 ,Community Services,MH OP South Locality,Adult Domiciliary Care - Block Contribution,Income,REVENUE
http://statistics.data.gov.uk/id/local-authority/00HY,Wiltshire Council,17/01/2011,5105888959,8772.15,Abicare Services Ltd Homecare ,110031,SP1 ,Community Services,OP South Locality,Adult Domiciliary Care - Block Contribution,Income,REVENUE
http://statistics.data.gov.uk/id/local-authority/00HY,Wiltshire Council,17/01/2011,5105889070,881.55,Abicare Services Ltd Homecare ,110031,SP1 ,Community Services,OP South Locality,Adult Day Care - Spot,Third Party Payments,REVENUE
http://statistics.data.gov.uk/id/local-authority/00HY,Wiltshire Council,21/01/2011,5105884688,3084.76,Abicare Services Ltd Live in Care ,113071,SP1 ,Community Services,MH OP South Locality,Adult Domiciliary Care - Live in Care,Third Party Payments,REVENUE
http://statistics.data.gov.uk/id/local-authority/00HY,Wiltshire Council,21/01/2011,5105884689,2174.04,Abicare Services Ltd Live in Care ,113071,SP1 ,Community Services,MH OP South Locality,Adult Domiciliary Care - Spot Contribution,Income,REVENUE
http://statistics.data.gov.uk/id/local-authority/00HY,Wiltshire Council,21/01/2011,5105885210,2945.50,Abicare Services Ltd Live in Care ,113071,SP1 ,Community Services,MH OP South Locality,Adult Domiciliary Care - Live in Care,Third Party Payments,REVENUE
http://statistics.data.gov.uk/id/local-authority/00HY,Wiltshire Council,17/01/2011,5105889071,2853.20,Abicare Services Ltd Live in Care ,113071,SP1 ,Community Services,OP South Locality,Adult Domiciliary Care - Live in Care,Third Party Payments,REVENUE
http://statistics.data.gov.uk/id/local-authority/00HY,Wiltshire Council,21/01/2011,5105889072,660.00,Abicare Services Ltd Live in Care ,113071,SP1 ,Community Services,PI West Locality,Adult Domiciliary care - Live in contribution,Income,REVENUE
http://statistics.data.gov.uk/id/local-authority/00HY,Wiltshire Council,21/01/2011,5105889072,660.00,Abicare Services Ltd Live in Care ,113071,SP1 ,Community Services,MH AOWA West,Adult Domiciliary care - Live in contribution,Income,REVENUE
http://statistics.data.gov.uk/id/local-authority/00HY,Wiltshire Council,24/01/2011,5105894627,1645.56,Abicare Services Ltd Live in Care ,113071,SP1 ,Community Services,OP South Locality,Adult Domiciliary Care - Spot Contribution,Income,REVENUE
http://statistics.data.gov.uk/id/local-authority/00HY,Wiltshire Council,19/01/2011,5105889498,6270.12,Ability Associates Ltd ,110033,SP3 ,Community Services,CTPLD County CIC U65,Adult Residential Placements - Spot Purchase,Third Party Payments,REVENUE
http://statistics.data.gov.uk/id/local-authority/00HY,Wiltshire Council,19/01/2011,5105889500,6083.48,Ability Associates Ltd ,110033,SP3 ,Community Services,CTPLD County CIC U65,Adult Residential Placements - Spot Purchase,Third Party Payments,REVENUE
http://statistics.data.gov.uk/id/local-authority/00HY,Wiltshire Council,19/01/2011,5105890002,3852.04,Ability Associates Ltd ,110033,SP3 ,Community Services,CTPLD County CIC U65,Supported Living - Without SP payments,Third Party Payments,REVENUE
http://statistics.data.gov.uk/id/local-authority/00HY,Wiltshire Council,19/01/2011,5105890004,3320.72,Ability Associates Ltd ,110033,SP3 ,Community Services,CTPLD County CIC U65,Supported Living - Without SP payments,Third Party Payments,REVENUE
http://statistics.data.gov.uk/id/local-authority/00HY,Wiltshire Council,19/01/2011,5105890005,685.72,ABLE ,101029,BA14,Community Services,MH AOWA North,Supported Living - Without SP payments,Third Party Payments,REVENUE
http://statistics.data.gov.uk/id/local-authority/00HY,Wiltshire Council,19/01/2011,5105890007,685.72,ABLE ,101029,BA14,Community Services,MH AOWA North,Supported Living - Without SP payments,Third Party Payments,REVENUE
http://statistics.data.gov.uk/id/local-authority/00HY,Wiltshire Council,12/01/2011,1900488905,1490.00,ABLE ,110034,BA14,Community Services,DCS Dept Balance Sht,DCS Holding Account,Balance Sheet Accounts,REVENUE
http://statistics.data.gov.uk/id/local-authority/00HY,Wiltshire Council,19/01/2011,5105889689,2769.96,ABLE ,110034,BA14,Community Services,MH PCT Section 256,Adult Residential Placements - Spot Purchase,Third Party Payments,REVENUE
http://statistics.data.gov.uk/id/local-authority/00HY,Wiltshire Council,19/01/2011,5105889691,2502.00,ABLE ,110034,BA14,Community Services,MH PCT Section 256,Adult Residential Placements - Spot Purchase,Third Party Payments,REVENUE
http://statistics.data.gov.uk/id/local-authority/00HY,Wiltshire Council,19/01/2011,5105889693,2321.04,ABLE ,110034,BA14,Community Services,MH PCT Section 256,Adult Residential Placements - Spot Purchase,Third Party Payments,REVENUE
http://statistics.data.gov.uk/id/local-authority/00HY,Wiltshire Council,19/01/2011,5105889695,2793.84,ABLE ,110034,BA14,Community Services,MH AOWA West,Adult Residential Placements - Spot Purchase,Third Party Payments,REVENUE
http://statistics.data.gov.uk/id/local-authority/00HY,Wiltshire Council,19/01/2011,5105889696,2933.80,ABLE ,110034,BA14,Community Services,MH PCT Section 256,Adult Residential Placements - Spot Purchase,Third Party Payments,REVENUE
http://statistics.data.gov.uk/id/local-authority/00HY,Wiltshire Council,19/01/2011,5105889698,2769.92,ABLE ,110034,BA14,Community Services,MH PCT Section 256,Adult Residential Placements - Spot Purchase,Third Party Payments,REVENUE
http://statistics.data.gov.uk/id/local-authority/00HY,Wiltshire Council,19/01/2011,5105889700,2481.88,ABLE ,110034,BA14,Community Services,MH PCT Section 256,Adult Residential Placements - Spot Purchase,Third Party Payments,REVENUE
http://statistics.data.gov.uk/id/local-authority/00HY,Wiltshire Council,05/01/2011,1900477225,663.00,AC  and  MS Ltd ,101175,SS6 ,Wiltshire Council,Wiltshire Council,Buildings Minor Alterations,Premises Related,CAPITAL
http://statistics.data.gov.uk/id/local-authority/00HY,Wiltshire Council,11/01/2011,1900487970,663.00,AC  and  MS Ltd ,101175,SS6 ,Resources,Primary Sch Pooling,Preventative Property Maintenance,Premises Related,REVENUE
http://statistics.data.gov.uk/id/local-authority/00HY,Wiltshire Council,19/01/2011,1900494447,2550.00,AC  and  MS Ltd ,101175,SS6 ,Resources,Special,Preventative Property Maintenance,Premises Related,REVENUE
http://statistics.data.gov.uk/id/local-authority/00HY,Wiltshire Council,19/01/2011,1900494450,1175.00,AC  and  MS Ltd ,101175,SS6 ,Resources,Special,Preventative Property Maintenance,Premises Related,REVENUE
http://statistics.data.gov.uk/id/local-authority/00HY,Wiltshire Council,19/01/2011,1900494457,637.50,AC  and  MS Ltd ,101175,SS6 ,Wiltshire Council,Wiltshire Council,Buildings Minor Alterations,Premises Related,CAPITAL
http://statistics.data.gov.uk/id/local-authority/00HY,Wiltshire Council,19/01/2011,5105886761,3014.00,AC  and  MS Ltd ,101175,SS6 ,Wiltshire Council,Wiltshire Council,Premises Related Other Maintenance Costs,Premises Related,CAPITAL
http://statistics.data.gov.uk/id/local-authority/00HY,Wiltshire Council,19/01/2011,5105886762,6516.00,AC  and  MS Ltd ,101175,SS6 ,Wiltshire Council,Wiltshire Council,Premises Related Other Maintenance Costs,Premises Related,CAPITAL
http://statistics.data.gov.uk/id/local-authority/00HY,Wiltshire Council,19/01/2011,5105886763,1615.00,AC  and  MS Ltd ,101175,SS6 ,Wiltshire Council,Wiltshire Council,Premises Related Other Maintenance Costs,Premises Related,CAPITAL
http://statistics.data.gov.uk/id/local-authority/00HY,Wiltshire Council,19/01/2011,5105891740,3060.00,AC  and  MS Ltd ,101175,SS6 ,Wiltshire Council,Wiltshire Council,Premises Related Other Maintenance Costs,Premises Related,CAPITAL
http://statistics.data.gov.uk/id/local-authority/00HY,Wiltshire Council,12/01/2011,1900488856,2505.35,Acceler 8 ,113285,SN8 ,Children & Education,Oxenwood,Equipment Purchase,Supplies and Services,REVENUE
http://statistics.data.gov.uk/id/local-authority/00HY,Wiltshire Council,04/01/2011,5105884790,2207.80,Access Care Ltd ,110037,SO20,Community Services,OP South Locality,Adult Domiciliary Care - Spot Contribution,Income,REVENUE
http://statistics.data.gov.uk/id/local-authority/00HY,Wiltshire Council,04/01/2011,5105884791,2823.24,Access Care Ltd ,110037,SO20,Community Services,PI West Locality,Adult Domiciliary Care - Spot,Third Party Payments,REVENUE
http://statistics.data.gov.uk/id/local-authority/00HY,Wiltshire Council,28/01/2011,5105887371,2635.90,Access Care Ltd ,110037,SO20,Community Services,OP South Locality,Adult Domiciliary Care - Spot Contribution,Income,REVENUE
http://statistics.data.gov.uk/id/local-authority/00HY,Wiltshire Council,28/01/2011,5105887372,2823.24,Access Care Ltd ,110037,SO20,Community Services,PI West Locality,Adult Domiciliary Care - Spot,Third Party Payments,REVENUE
http://statistics.data.gov.uk/id/local-authority/00HY,Wiltshire Council,10/01/2011,5105887542,5439.00,Access Care Ltd ,110037,SO20,Community Services,PI East Locality,Adult Domiciliary Care - Spot,Third Party Payments,REVENUE
http://statistics.data.gov.uk/id/local-authority/00HY,Wiltshire Council,19/01/2011,5105889117,655.02,Access UK Limited ,128203,CT1 ,Resources,Applications SuppLOB,ICT - Support arrangements,Supplies and Services,REVENUE
http://statistics.data.gov.uk/id/local-authority/00HY,Wiltshire Council,11/01/2011,5105886873,860.62,Action For Blind People ,125199,SE16,Community Services,OP South Locality,Adult Domiciliary Care - Spot,Third Party Payments,REVENUE
http://statistics.data.gov.uk/id/local-authority/00HY,Wiltshire Council,11/01/2011,5105886873,907.14,Action For Blind People ,125199,SE16,Community Services,OP North Locality,Adult Domiciliary Care - Spot,Third Party Payments,REVENUE
http://statistics.data.gov.uk/id/local-authority/00HY,Wiltshire Council,11/01/2011,5105886873,959.48,Action For Blind People ,125199,SE16,Community Services,OP West Locality,Adult Domiciliary Care - Spot,Third Party Payments,REVENUE
http://statistics.data.gov.uk/id/local-authority/00HY,Wiltshire Council,28/01/2011,5105896703,3457.43,Action For Children ,110045,WD18,Children & Education,External Placements,Adult / Child Care Agency Placement,Third Party Payments,REVENUE
http://statistics.data.gov.uk/id/local-authority/00HY,Wiltshire Council,21/01/2011,5105894299,6218.00,Action on Addiction ,110046,SP3 ,Community Services,(8)FamiliesPlus-Othr,Substance Misuse - Payments to Contractors,Third Party Payments,REVENUE
http://statistics.data.gov.uk/id/local-authority/00HY,Wiltshire Council,28/01/2011,1900497544,1000.00,Adams Kara Taylor ,125498,EC1M,Wiltshire Council,Wiltshire Council,Buildings Minor Alterations,Premises Related,CAPITAL
http://statistics.data.gov.uk/id/local-authority/00HY,Wiltshire Council,07/01/2011,5105887183,502.99,Adams Morey Ltd ,110053,SP2 ,Neighbourhood & Planning,Fleet Mtc South,Vehicle Parts,Transport Related,REVENUE
http://statistics.data.gov.uk/id/local-authority/00HY,Wiltshire Council,28/01/2011,5105887696,605.99,Adams Morey Ltd ,110053,SP2 ,Neighbourhood & Planning,Fleet Mtc South,Vehicle Parts,Transport Related,REVENUE
http://statistics.data.gov.uk/id/local-authority/00HY,Wiltshire Council,11/01/2011,1900488782,1458.86,Adrains Engineering Psv ,100848,SN15,Neighbourhood & Planning,Mainstream Primary,Transport Contracts,Third Party Payments,REVENUE
http://statistics.data.gov.uk/id/local-authority/00HY,Wiltshire Council,11/01/2011,1900488782,2382.72,Adrains Engineering Psv ,100848,SN15,Neighbourhood & Planning,Public Transport,Transport Contracts,Third Party Payments,REVENUE
http://statistics.data.gov.uk/id/local-authority/00HY,Wiltshire Council,11/01/2011,1900488785,1634.26,Adrains Engineering Psv ,100848,SN15,Neighbourhood & Planning,Public Transport,Transport Contracts,Third Party Payments,REVENUE
http://statistics.data.gov.uk/id/local-authority/00HY,Wiltshire Council,11/01/2011,1900488785,3256.56,Adrains Engineering Psv ,100848,SN15,Neighbourhood & Planning,Mainstream Primary,Transport Contracts,Third Party Payments,REVENUE
http://statistics.data.gov.uk/id/local-authority/00HY,Wiltshire Council,11/01/2011,1900488787,1117.95,Adrains Engineering Psv ,100848,SN15,Neighbourhood & Planning,Mainstream Secondary,Transport Contracts,Third Party Payments,REVENUE
http://statistics.data.gov.uk/id/local-authority/00HY,Wiltshire Council,11/01/2011,1900488787,4585.31,Adrains Engineering Psv ,100848,SN15,Neighbourhood & Planning,Mainstream Primary,Transport Contracts,Third Party Payments,REVENUE
http://statistics.data.gov.uk/id/local-authority/00HY,Wiltshire Council,11/01/2011,1900488787,8075.21,Adrains Engineering Psv ,100848,SN15,Neighbourhood & Planning,Public Transport,Transport Contracts,Third Party Payments,REVENUE
http://statistics.data.gov.uk/id/local-authority/00HY,Wiltshire Council,11/01/2011,1900488789,1199.72,Adrains Engineering Psv ,100848,SN15,Neighbourhood & Planning,Public Transport,Transport Contracts,Third Party Payments,REVENUE
http://statistics.data.gov.uk/id/local-authority/00HY,Wiltshire Council,11/01/2011,1900488789,3083.00,Adrains Engineering Psv ,100848,SN15,Neighbourhood & Planning,Mainstream Secondary,Transport Contracts,Third Party Payments,REVENUE
http://statistics.data.gov.uk/id/local-authority/00HY,Wiltshire Council,11/01/2011,1900488797,2200.00,Adrains Engineering Psv ,100848,SN15,Neighbourhood & Planning,Mainstream Primary,Transport Contracts,Third Party Payments,REVENUE
http://statistics.data.gov.uk/id/local-authority/00HY,Wiltshire Council,20/01/2011,1900496179,767.49,Adrains Engineering Psv ,100848,SN15,Neighbourhood & Planning,Public Transport,Transport Contracts,Third Party Payments,REVENUE
http://statistics.data.gov.uk/id/local-authority/00HY,Wiltshire Council,20/01/2011,1900496179,767.49,Adrains Engineering Psv ,100848,SN15,Neighbourhood & Planning,Mainstream Primary,Transport Contracts,Third Party Payments,REVENUE
http://statistics.data.gov.uk/id/local-authority/00HY,Wiltshire Council,20/01/2011,1900496179,2302.47,Adrains Engineering Psv ,100848,SN15,Neighbourhood & Planning,Mainstream Secondary,Transport Contracts,Third Party Payments,REVENUE
http://statistics.data.gov.uk/id/local-authority/00HY,Wiltshire Council,20/01/2011,1900496180,1117.95,Adrains Engineering Psv ,100848,SN15,Neighbourhood & Planning,Mainstream Secondary,Transport Contracts,Third Party Payments,REVENUE
http://statistics.data.gov.uk/id/local-authority/00HY,Wiltshire Council,20/01/2011,1900496180,4585.31,Adrains Engineering Psv ,100848,SN15,Neighbourhood & Planning,Mainstream Primary,Transport Contracts,Third Party Payments,REVENUE
http://statistics.data.gov.uk/id/local-authority/00HY,Wiltshire Council,20/01/2011,1900496180,9064.11,Adrains Engineering Psv ,100848,SN15,Neighbourhood & Planning,Public Transport,Transport Contracts,Third Party Payments,REVENUE
http://statistics.data.gov.uk/id/local-authority/00HY,Wiltshire Council,21/01/2011,1900496722,1681.02,Adrains Engineering Psv ,100848,SN15,Neighbourhood & Planning,Public Transport,Transport Contracts,Third Party Payments,REVENUE
http://statistics.data.gov.uk/id/local-authority/00HY,Wiltshire Council,21/01/2011,1900496722,3083.00,Adrains Engineering Psv ,100848,SN15,Neighbourhood & Planning,Mainstream Secondary,Transport Contracts,Third Party Payments,REVENUE
http://statistics.data.gov.uk/id/local-authority/00HY,Wiltshire Council,21/01/2011,1900496724,1300.00,Adrains Engineering Psv ,100848,SN15,Neighbourhood & Planning,Mainstream Primary,Transport Contracts,Third Party Payments,REVENUE
http://statistics.data.gov.uk/id/local-authority/00HY,Wiltshire Council,25/01/2011,1900497719,1634.26,Adrains Engineering Psv ,100848,SN15,Neighbourhood & Planning,Public Transport,Transport Contracts,Third Party Payments,REVENUE
http://statistics.data.gov.uk/id/local-authority/00HY,Wiltshire Council,25/01/2011,1900497719,3281.86,Adrains Engineering Psv ,100848,SN15,Neighbourhood & Planning,Mainstream Primary,Transport Contracts,Third Party Payments,REVENUE
http://statistics.data.gov.uk/id/local-authority/00HY,Wiltshire Council,25/01/2011,1900497720,1458.86,Adrains Engineering Psv ,100848,SN15,Neighbourhood & Planning,Mainstream Primary,Transport Contracts,Third Party Payments,REVENUE
http://statistics.data.gov.uk/id/local-authority/00HY,Wiltshire Council,25/01/2011,1900497720,2604.27,Adrains Engineering Psv ,100848,SN15,Neighbourhood & Planning,Public Transport,Transport Contracts,Third Party Payments,REVENUE
http://statistics.data.gov.uk/id/local-authority/00HY,Wiltshire Council,06/01/2011,1900487955,548.81,Advanced Fire Systems Ltd ,110062,BS7 ,Resources,Campus,Preventative Property Maintenance,Premises Related,REVENUE
http://statistics.data.gov.uk/id/local-authority/00HY,Wiltshire Council,28/01/2011,5105889374,700.00,Advent Colour ,127895,SP10,Neighbourhood & Planning,VisitWiltsPartnersh,Printing External,Supplies and Services,REVENUE
http://statistics.data.gov.uk/id/local-authority/00HY,Wiltshire Council,05/01/2011,5105885148,17500.00,AECOM ,130288,CF10,Neighbourhood & Planning,Salisbury Vision,Other Professional Fees,Supplies and Services,REVENUE
http://statistics.data.gov.uk/id/local-authority/00HY,Wiltshire Council,24/01/2011,5105894507,1026.40,AF Thinking & Learning Co Ltd ,126620,WR9 ,Children & Education,PEandSportsStrat,Consultants� Fees,Supplies and Services,REVENUE
http://statistics.data.gov.uk/id/local-authority/00HY,Wiltshire Council,24/01/2011,5105894508,1357.60,AF Thinking & Learning Co Ltd ,126620,WR9 ,Children & Education,PEandSportsStrat,Consultants� Fees,Supplies and Services,REVENUE
http://statistics.data.gov.uk/id/local-authority/00HY,Wiltshire Council,07/01/2011,5105887281,5000.00,Age Concern Salisbury District ,110067,SP1 ,Community Services,Area Board Amesbury,Grants Paid to individuals for Tangible Benefits,Supplies and Services,REVENUE
http://statistics.data.gov.uk/id/local-authority/00HY,Wiltshire Council,06/01/2011,5105882866,2800.00,AginCare Live In Care Services Ltd ,110071,DT4 ,Community Services,OP West Locality,Adult Domiciliary Care - Spot,Third Party Payments,REVENUE
http://statistics.data.gov.uk/id/local-authority/00HY,Wiltshire Council,20/01/2011,5105884375,2800.00,AginCare Live In Care Services Ltd ,110071,DT4 ,Community Services,OP West Locality,Adult Domiciliary Care - Spot,Third Party Payments,REVENUE
http://statistics.data.gov.uk/id/local-authority/00HY,Wiltshire Council,06/01/2011,5105882977,669.60,Agincare Ltd ,110069,DT4 ,Community Services,OP South Locality,Adult Domiciliary care - Live in contribution,Income,REVENUE
http://statistics.data.gov.uk/id/local-authority/00HY,Wiltshire Council,20/01/2011,5105884376,669.48,Agincare Ltd ,110069,DT4 ,Community Services,OP South Locality,Adult Domiciliary care - Live in contribution,Income,REVENUE
http://statistics.data.gov.uk/id/local-authority/00HY,Wiltshire Council,06/01/2011,5105884559,1530.06,Agincare Ltd ,110069,DT4 ,Community Services,MH AOWA West,Adult Domiciliary Care - Live in Care,Third Party Payments,REVENUE
http://statistics.data.gov.uk/id/local-authority/00HY,Wiltshire Council,06/01/2011,5105884683,1589.98,Agincare Ltd ,110069,DT4 ,Community Services,OP North Locality,Adult Domiciliary Care - Live in Care,Third Party Payments,REVENUE
http://statistics.data.gov.uk/id/local-authority/00HY,Wiltshire Council,20/01/2011,5105884710,1530.06,Agincare Ltd ,110069,DT4 ,Community Services,MH AOWA West,Adult Domiciliary Care - Live in Care,Third Party Payments,REVENUE
http://statistics.data.gov.uk/id/local-authority/00HY,Wiltshire Council,20/01/2011,5105887134,1589.98,Agincare Ltd ,110069,DT4 ,Community Services,OP North Locality,Adult Domiciliary Care - Live in Care,Third Party Payments,REVENUE
http://statistics.data.gov.uk/id/local-authority/00HY,Wiltshire Council,12/01/2011,5105888142,654.01,Agincare Ltd ,110069,DT4 ,Community Services,OP South Locality,Adult Domiciliary Care - Block,Third Party Payments,REVENUE
http://statistics.data.gov.uk/id/local-authority/00HY,Wiltshire Council,12/01/2011,5105888142,2063.26,Agincare Ltd ,110069,DT4 ,Community Services,OP East Locality,Adult Domiciliary Care - Block Contribution,Income,REVENUE
http://statistics.data.gov.uk/id/local-authority/00HY,Wiltshire Council,12/01/2011,5105888142,2849.41,Agincare Ltd ,110069,DT4 ,Community Services,OP West Locality,Adult Domiciliary Care - Block Contribution,Income,REVENUE
http://statistics.data.gov.uk/id/local-authority/00HY,Wiltshire Council,21/01/2011,5105889438,560.64,Agincare Ltd ,110069,DT4 ,Community Services,PI South Locality,Adult Domiciliary Care - Block,Third Party Payments,REVENUE
http://statistics.data.gov.uk/id/local-authority/00HY,Wiltshire Council,21/01/2011,5105889438,1792.51,Agincare Ltd ,110069,DT4 ,Community Services,MH OP South Locality,Adult Domiciliary Care - Block Contribution,Income,REVENUE
http://statistics.data.gov.uk/id/local-authority/00HY,Wiltshire Council,21/01/2011,5105889438,1818.63,Agincare Ltd ,110069,DT4 ,Community Services,MH AOWA South,Adult Domiciliary Care - Block,Third Party Payments,REVENUE
http://statistics.data.gov.uk/id/local-authority/00HY,Wiltshire Council,21/01/2011,5105889438,12418.55,Agincare Ltd ,110069,DT4 ,Community Services,OP South Locality,Adult Domiciliary Care - Block Contribution,Income,REVENUE
http://statistics.data.gov.uk/id/local-authority/00HY,Wiltshire Council,19/01/2011,5105891731,546.92,Agincare Ltd ,110069,DT4 ,Community Services,MH AOWA South,Adult Domiciliary Care - Block Contribution,Income,REVENUE
http://statistics.data.gov.uk/id/local-authority/00HY,Wiltshire Council,19/01/2011,5105891731,710.15,Agincare Ltd ,110069,DT4 ,Community Services,MH OP West Locality,Adult Domiciliary Care - Block Contribution,Income,REVENUE
http://statistics.data.gov.uk/id/local-authority/00HY,Wiltshire Council,19/01/2011,5105891731,1168.82,Agincare Ltd ,110069,DT4 ,Community Services,MH AOWA West,Adult Domiciliary Care - Block,Third Party Payments,REVENUE
http://statistics.data.gov.uk/id/local-authority/00HY,Wiltshire Council,19/01/2011,5105891731,3319.96,Agincare Ltd ,110069,DT4 ,Community Services,PI South Locality,Adult Domiciliary Care - Block Contribution,Income,REVENUE
http://statistics.data.gov.uk/id/local-authority/00HY,Wiltshire Council,19/01/2011,5105891731,3366.00,Agincare Ltd ,110069,DT4 ,Community Services,PI West Locality,Adult Domiciliary Care - Block Contribution,Income,REVENUE
http://statistics.data.gov.uk/id/local-authority/00HY,Wiltshire Council,19/01/2011,5105891731,3606.07,Agincare Ltd ,110069,DT4 ,Community Services,MH OP South Locality,Adult Domiciliary Care - Block Contribution,Income,REVENUE
http://statistics.data.gov.uk/id/local-authority/00HY,Wiltshire Council,19/01/2011,5105891731,5011.13,Agincare Ltd ,110069,DT4 ,Community Services,OP East Locality,Adult Domiciliary Care - Block Contribution,Income,REVENUE
http://statistics.data.gov.uk/id/local-authority/00HY,Wiltshire Council,19/01/2011,5105891731,12225.41,Agincare Ltd ,110069,DT4 ,Community Services,OP West Locality,Adult Domiciliary Care - Block Contribution,Income,REVENUE
http://statistics.data.gov.uk/id/local-authority/00HY,Wiltshire Council,19/01/2011,5105891731,23779.83,Agincare Ltd ,110069,DT4 ,Community Services,OP South Locality,Adult Domiciliary Care - Block Contribution,Income,REVENUE
http://statistics.data.gov.uk/id/local-authority/00HY,Wiltshire Council,19/01/2011,5105891811,4528.92,Agincare Ltd ,110069,DT4 ,Community Services,OP North Locality,Adult Domiciliary Care - Block Contribution,Income,REVENUE
http://statistics.data.gov.uk/id/local-authority/00HY,Wiltshire Council,13/01/2011,1900492200,975.00,Airport Connections pewsey  Ltd ,100937,SN9 ,Neighbourhood & Planning,SEN Primary,Transport Contracts,Third Party Payments,REVENUE
http://statistics.data.gov.uk/id/local-authority/00HY,Wiltshire Council,17/01/2011,1900493422,782.50,Airport Connections pewsey  Ltd ,100937,SN9 ,Neighbourhood & Planning,Community Team East,Transport Contracts,Third Party Payments,REVENUE
http://statistics.data.gov.uk/id/local-authority/00HY,Wiltshire Council,17/01/2011,1900493422,782.50,Airport Connections pewsey  Ltd ,100937,SN9 ,Neighbourhood & Planning,LAC&16+ North&East,Transport Contracts,Third Party Payments,REVENUE
http://statistics.data.gov.uk/id/local-authority/00HY,Wiltshire Council,06/01/2011,1900487813,600.72,Airtech Environmental System ,101700,TA7 ,Neighbourhood & Planning,Housing Rprs Simdell,Premises Related Other Maintenance Costs,Premises Related,REVENUE
http://statistics.data.gov.uk/id/local-authority/00HY,Wiltshire Council,07/01/2011,1900488447,610.65,Airtech Environmental System ,101700,TA7 ,Neighbourhood & Planning,Housing Rprs Simdell,Premises Related Other Maintenance Costs,Premises Related,REVENUE
http://statistics.data.gov.uk/id/local-authority/00HY,Wiltshire Council,10/01/2011,1900488632,541.15,Airtech Environmental System ,101700,TA7 ,Neighbourhood & Planning,Housing Rprs Simdell,Premises Related Other Maintenance Costs,Premises Related,REVENUE
http://statistics.data.gov.uk/id/local-authority/00HY,Wiltshire Council,21/01/2011,1900496789,680.15,Airtech Environmental System ,101700,TA7 ,Neighbourhood & Planning,Housing Rprs Simdell,Premises Related Other Maintenance Costs,Premises Related,REVENUE
http://statistics.data.gov.uk/id/local-authority/00HY,Wiltshire Council,25/01/2011,1900497773,610.65,Airtech Environmental System ,101700,TA7 ,Neighbourhood & Planning,Housing Rprs Simdell,Premises Related Other Maintenance Costs,Premises Related,REVENUE
http://statistics.data.gov.uk/id/local-authority/00HY,Wiltshire Council,25/01/2011,1900497774,730.95,Airtech Environmental System ,101700,TA7 ,Neighbourhood & Planning,Housing Rprs Simdell,Premises Related Other Maintenance Costs,Premises Related,REVENUE
http://statistics.data.gov.uk/id/local-authority/00HY,Wiltshire Council,25/01/2011,1900497779,650.22,Airtech Environmental System ,101700,TA7 ,Neighbourhood & Planning,Housing Rprs Simdell,Premises Related Other Maintenance Costs,Premises Related,REVENUE
http://statistics.data.gov.uk/id/local-authority/00HY,Wiltshire Council,25/01/2011,1900497694,665.00,Akcess Ltd ,101402,SN2 ,Neighbourhood & Planning,DCS WBassMalmsbryU65,Transport Contracts,Third Party Payments,REVENUE
http://statistics.data.gov.uk/id/local-authority/00HY,Wiltshire Council,25/01/2011,1900497694,665.00,Akcess Ltd ,101402,SN2 ,Neighbourhood & Planning,DCS WBassMalmsbryO65,Transport Contracts,Third Party Payments,REVENUE
http://statistics.data.gov.uk/id/local-authority/00HY,Wiltshire Council,17/01/2011,1900488946,594.12,Alabare Christian Care Centre ,100837,SP1 ,Children & Education,LAC & 16+ Team 1,Other Social & Welfare Costs,Third Party Payments,REVENUE
http://statistics.data.gov.uk/id/local-authority/00HY,Wiltshire Council,19/01/2011,5105890011,1588.80,Alabare Christian Care Centre ,100837,SP1 ,Community Services,CTPLD County CIC U65,Supported Living - With SP Payments (3rd Party),Third Party Payments,REVENUE
http://statistics.data.gov.uk/id/local-authority/00HY,Wiltshire Council,19/01/2011,5105890012,659.04,Alabare Christian Care Centre ,100837,SP1 ,Community Services,CTPLD County CIC U65,Supported Living - Without SP payments,Third Party Payments,REVENUE
http://statistics.data.gov.uk/id/local-authority/00HY,Wiltshire Council,19/01/2011,5105890014,4085.60,Alabare Christian Care Centre ,100837,SP1 ,Community Services,CTPLD County CIC U65,Supported Living - With SP Payments (3rd Party),Third Party Payments,REVENUE
http://statistics.data.gov.uk/id/local-authority/00HY,Wiltshire Council,19/01/2011,5105890017,2208.44,Alabare Christian Care Centre ,100837,SP1 ,Community Services,CTPLD County CIC U65,Supported Living - Without SP payments,Third Party Payments,REVENUE
http://statistics.data.gov.uk/id/local-authority/00HY,Wiltshire Council,19/01/2011,5105890020,819.28,Alabare Christian Care Centre ,100837,SP1 ,Community Services,CTPLD County CIC U65,Supported Living - Without SP payments,Third Party Payments,REVENUE
http://statistics.data.gov.uk/id/local-authority/00HY,Wiltshire Council,19/01/2011,5105890022,2454.24,Alabare Christian Care Centre ,100837,SP1 ,Community Services,CTPLD County CIC U65,Supported Living - Without SP payments,Third Party Payments,REVENUE
http://statistics.data.gov.uk/id/local-authority/00HY,Wiltshire Council,19/01/2011,5105890024,4085.60,Alabare Christian Care Centre ,100837,SP1 ,Community Services,CTPLD County CIC U65,Supported Living - With SP Payments (3rd Party),Third Party Payments,REVENUE
http://statistics.data.gov.uk/id/local-authority/00HY,Wiltshire Council,19/01/2011,5105890027,4085.60,Alabare Christian Care Centre ,100837,SP1 ,Community Services,CTPLD County CIC U65,Supported Living - With SP Payments (3rd Party),Third Party Payments,REVENUE
http://statistics.data.gov.uk/id/local-authority/00HY,Wiltshire Council,19/01/2011,5105891499,1560.96,Alabare Christian Care Centre ,100837,SP1 ,Community Services,CTPLD County CIC U65,Supported Living - Without SP payments,Third Party Payments,REVENUE
http://statistics.data.gov.uk/id/local-authority/00HY,Wiltshire Council,19/01/2011,5105891501,4136.64,Alabare Christian Care Centre ,100837,SP1 ,Community Services,CTPLD County CIC U65,Supported Living - Without SP payments,Third Party Payments,REVENUE
http://statistics.data.gov.uk/id/local-authority/00HY,Wiltshire Council,19/01/2011,5105891506,1741.80,Alabare Christian Care Centre ,100837,SP1 ,Community Services,CTPLD County CIC U65,Supported Living - Without SP payments,Third Party Payments,REVENUE
http://statistics.data.gov.uk/id/local-authority/00HY,Wiltshire Council,19/01/2011,5105891508,1564.92,Alabare Christian Care Centre ,100837,SP1 ,Community Services,CTPLD County CIC U65,Supported Living - Without SP payments,Third Party Payments,REVENUE
http://statistics.data.gov.uk/id/local-authority/00HY,Wiltshire Council,19/01/2011,5105891529,1461.36,Alabare Christian Care Centre ,100837,SP1 ,Community Services,CTPLD County CIC U65,Supported Living - Without SP payments,Third Party Payments,REVENUE
http://statistics.data.gov.uk/id/local-authority/00HY,Wiltshire Council,19/01/2011,5105891530,1313.24,Alabare Christian Care Centre ,100837,SP1 ,Community Services,CTPLD County CIC U65,Supported Living - Without SP payments,Third Party Payments,REVENUE
http://statistics.data.gov.uk/id/local-authority/00HY,Wiltshire Council,19/01/2011,5105891531,1751.44,Alabare Christian Care Centre ,100837,SP1 ,Community Services,CTPLD County CIC U65,Supported Living - Without SP payments,Third Party Payments,REVENUE
http://statistics.data.gov.uk/id/local-authority/00HY,Wiltshire Council,28/01/2011,5105896732,54266.80,Alabare Christian Care Centre ,100837,SP1 ,Community Services,MH Commissioned Cont,Grants Paid to individuals for Tangible Benefits,Supplies and Services,REVENUE
http://statistics.data.gov.uk/id/local-authority/00HY,Wiltshire Council,31/01/2011,5105896947,563.65,Alabare Christian Care Centre ,100837,SP1 ,Community Services,CTPLD County CIC U65,Adult Day Care - Spot,Third Party Payments,REVENUE
http://statistics.data.gov.uk/id/local-authority/00HY,Wiltshire Council,31/01/2011,5105896948,2727.40,Alabare Christian Care Centre ,100837,SP1 ,Community Services,CTPLD County CIC U65,Supported Living - Without SP payments,Third Party Payments,REVENUE
http://statistics.data.gov.uk/id/local-authority/00HY,Wiltshire Council,31/01/2011,5105896949,2674.12,Alabare Christian Care Centre ,100837,SP1 ,Community Services,CTPLD County CIC U65,Supported Living - Without SP payments,Third Party Payments,REVENUE
http://statistics.data.gov.uk/id/local-authority/00HY,Wiltshire Council,17/01/2011,5105888935,1600.00,Albion Chambers ,113388,BS1 ,Community Services,DCS Legal Charges,Legal Fees,Supplies and Services,REVENUE
http://statistics.data.gov.uk/id/local-authority/00HY,Wiltshire Council,20/01/2011,1900495877,7615.83,Aldbourne Nursing Home ,110090,SN8 ,Community Services,FNC,Adult Care Funded Nursing Care - Out of County Cli,Third Party Payments,REVENUE
http://statistics.data.gov.uk/id/local-authority/00HY,Wiltshire Council,19/01/2011,5105889502,2699.20,Aldbourne Nursing Home ,110090,SN8 ,Community Services,OP East Locality,Adult Care Nursing Placements- Spot Purchase,Third Party Payments,REVENUE
http://statistics.data.gov.uk/id/local-authority/00HY,Wiltshire Council,19/01/2011,5105891397,2305.20,Aldbourne Nursing Home ,110090,SN8 ,Community Services,MH OP East Locality,Adult Care Nursing Placements- Spot Purchase,Third Party Payments,REVENUE
http://statistics.data.gov.uk/id/local-authority/00HY,Wiltshire Council,19/01/2011,5105893403,1450.80,Aldbourne Nursing Home ,110090,SN8 ,Community Services,OP East Locality,Adult Care Nursing Placements- Spot Purchase,Third Party Payments,REVENUE
http://statistics.data.gov.uk/id/local-authority/00HY,Wiltshire Council,19/01/2011,5105893406,1934.40,Aldbourne Nursing Home ,110090,SN8 ,Community Services,OP East Locality,Adult Care Nursing Placements- Spot Purchase,Third Party Payments,REVENUE
http://statistics.data.gov.uk/id/local-authority/00HY,Wiltshire Council,19/01/2011,5105893413,2021.20,Aldbourne Nursing Home ,110090,SN8 ,Community Services,OP East Locality,Adult Care Nursing Placements- Spot Purchase,Third Party Payments,REVENUE
http://statistics.data.gov.uk/id/local-authority/00HY,Wiltshire Council,17/01/2011,5105889140,590.00,Alison Geeves ,113413,BA14,Neighbourhood & Planning,Head of Leisure,Staff Training Course Costs,Employee Related,REVENUE
http://statistics.data.gov.uk/id/local-authority/00HY,Wiltshire Council,19/01/2011,5105889508,2184.88,Allenbrook Nursing Home ,110109,SP6 ,Community Services,OP South Locality,Adult Care Nursing Placements- Spot Purchase,Third Party Payments,REVENUE
http://statistics.data.gov.uk/id/local-authority/00HY,Wiltshire Council,19/01/2011,5105889510,2830.56,Alliance Home Care ,110986,SN15,Community Services,CTPLD County CIC 65+,Adult Residential Placements - Spot Purchase,Third Party Payments,REVENUE
http://statistics.data.gov.uk/id/local-authority/00HY,Wiltshire Council,19/01/2011,5105889512,3326.00,Alliance Home Care ,110986,SN15,Community Services,PI North Locality,Adult Residential Placements - Spot Purchase,Third Party Payments,REVENUE
http://statistics.data.gov.uk/id/local-authority/00HY,Wiltshire Council,19/01/2011,5105893333,2683.28,Alliance Home Care ,110986,SN15,Community Services,MH AOWA North,Adult Residential Placements - Spot Purchase,Third Party Payments,REVENUE
http://statistics.data.gov.uk/id/local-authority/00HY,Wiltshire Council,19/01/2011,5105893462,3367.92,Alliance Home Care ,110986,SN15,Community Services,MH AOWA West,Adult Residential Placements - Spot Purchase,Third Party Payments,REVENUE
http://statistics.data.gov.uk/id/local-authority/00HY,Wiltshire Council,19/01/2011,5105889514,5455.20,Allied Backup Project ,110111,EX17,Community Services,CTPLD County S75 U65,Adult Residential Placements - Spot Purchase,Third Party Payments,REVENUE
http://statistics.data.gov.uk/id/local-authority/00HY,Wiltshire Council,25/01/2011,5105895141,2600.04,Allied Healthcare  UK  Ltd Allied Healthcare  UK  Ltd,110113,ST15,Community Services,PI South Locality,Adult Domiciliary Care - Live in Care,Third Party Payments,REVENUE
http://statistics.data.gov.uk/id/local-authority/00HY,Wiltshire Council,05/01/2011,5105882992,1654.72,Allied Healthcare Group Allied Healthcare Group,113066,SP2 ,Community Services,MH OP South Locality,Adult Domiciliary Care - Block Contribution,Income,REVENUE
http://statistics.data.gov.uk/id/local-authority/00HY,Wiltshire Council,05/01/2011,5105882992,1902.55,Allied Healthcare Group Allied Healthcare Group,113066,SP2 ,Community Services,OP South Locality,Adult Domiciliary Care - Block Contribution,Income,REVENUE
http://statistics.data.gov.uk/id/local-authority/00HY,Wiltshire Council,18/01/2011,5105883001,1561.70,Allied Healthcare Group Allied Healthcare Group,113066,SP2 ,Community Services,MH OP South Locality,Adult Domiciliary Care - Block Contribution,Income,REVENUE
http://statistics.data.gov.uk/id/local-authority/00HY,Wiltshire Council,18/01/2011,5105883001,1777.73,Allied Healthcare Group Allied Healthcare Group,113066,SP2 ,Community Services,PI South Locality,Adult Domiciliary Care - Block Contribution,Income,REVENUE
http://statistics.data.gov.uk/id/local-authority/00HY,Wiltshire Council,18/01/2011,5105883001,1831.65,Allied Healthcare Group Allied Healthcare Group,113066,SP2 ,Community Services,MH AOWA South,Adult Domiciliary Care - Block Contribution,Income,REVENUE
http://statistics.data.gov.uk/id/local-authority/00HY,Wiltshire Council,18/01/2011,5105883001,6203.03,Allied Healthcare Group Allied Healthcare Group,113066,SP2 ,Community Services,OP South Locality,Adult Domiciliary Care - Block Contribution,Income,REVENUE
http://statistics.data.gov.uk/id/local-authority/00HY,Wiltshire Council,05/01/2011,5105884377,604.13,Allied Healthcare Group Allied Healthcare Group,113066,SP2 ,Community Services,PI West Locality,Adult Domiciliary Care - Spot,Third Party Payments,REVENUE
http://statistics.data.gov.uk/id/local-authority/00HY,Wiltshire Council,04/01/2011,5105884714,1645.40,Allied Healthcare Group Allied Healthcare Group,113066,SP2 ,Community Services,MH AOWA East,Adult Domiciliary Care - Mileage,Third Party Payments,REVENUE
http://statistics.data.gov.uk/id/local-authority/00HY,Wiltshire Council,04/01/2011,5105884718,817.07,Allied Healthcare Group Allied Healthcare Group,113066,SP2 ,Community Services,MH AOWA South,Adult Domiciliary Care - Mileage,Third Party Payments,REVENUE
http://statistics.data.gov.uk/id/local-authority/00HY,Wiltshire Council,04/01/2011,5105884744,2860.44,Allied Healthcare Group Allied Healthcare Group,113066,SP2 ,Community Services,PI East Locality,Adult Domiciliary Care - Mileage,Third Party Payments,REVENUE
http://statistics.data.gov.uk/id/local-authority/00HY,Wiltshire Council,04/01/2011,5105884871,1364.52,Allied Healthcare Group Allied Healthcare Group,113066,SP2 ,Community Services,PI West Locality,Adult Domiciliary Care - Spot,Third Party Payments,REVENUE
http://statistics.data.gov.uk/id/local-authority/00HY,Wiltshire Council,19/01/2011,5105887822,784.32,Allied Healthcare Group Allied Healthcare Group,113066,SP2 ,Community Services,CTPLD County CIC U65,Adult Domiciliary Care - Spot,Third Party Payments,REVENUE
http://statistics.data.gov.uk/id/local-authority/00HY,Wiltshire Council,19/01/2011,5105887895,10614.44,Allied Healthcare Group Allied Healthcare Group,113066,SP2 ,Community Services,CTPLD County CIC U65,Adult Domiciliary Care - Spot Contribution,Income,REVENUE
http://statistics.data.gov.uk/id/local-authority/00HY,Wiltshire Council,19/01/2011,5105887896,1888.48,Allied Healthcare Group Allied Healthcare Group,113066,SP2 ,Community Services,CTPLD County CIC U65,Adult Domiciliary Care - Spot,Third Party Payments,REVENUE
http://statistics.data.gov.uk/id/local-authority/00HY,Wiltshire Council,19/01/2011,5105887898,3429.75,Allied Healthcare Group Allied Healthcare Group,113066,SP2 ,Community Services,CTPLD County CIC U65,Adult Day Care - Spot,Third Party Payments,REVENUE
http://statistics.data.gov.uk/id/local-authority/00HY,Wiltshire Council,12/01/2011,5105888058,835.36,Allied Healthcare Group Allied Healthcare Group,113066,SP2 ,Community Services,MH AOWA East,Adult Domiciliary Care - Mileage,Third Party Payments,REVENUE
http://statistics.data.gov.uk/id/local-authority/00HY,Wiltshire Council,19/01/2011,5105888270,2723.24,Allied Healthcare Group Allied Healthcare Group,113066,SP2 ,Community Services,PI East Locality,Adult Domiciliary Care - Mileage,Third Party Payments,REVENUE
http://statistics.data.gov.uk/id/local-authority/00HY,Wiltshire Council,19/01/2011,5105888797,927.14,Allied Healthcare Group Allied Healthcare Group,113066,SP2 ,Community Services,MH AOWA South,Adult Domiciliary Care - Mileage,Third Party Payments,REVENUE
http://statistics.data.gov.uk/id/local-authority/00HY,Wiltshire Council,19/01/2011,5105888925,887.36,Allied Healthcare Group Allied Healthcare Group,113066,SP2 ,Community Services,MH OP South Locality,Adult Domiciliary Care - Mileage,Third Party Payments,REVENUE
http://statistics.data.gov.uk/id/local-authority/00HY,Wiltshire Council,17/01/2011,5105889059,595.53,Allied Healthcare Group Allied Healthcare Group,113066,SP2 ,Community Services,PI West Locality,Adult Domiciliary Care - Spot,Third Party Payments,REVENUE
http://statistics.data.gov.uk/id/local-authority/00HY,Wiltshire Council,19/01/2011,5105889282,564.93,Allied Healthcare Group Allied Healthcare Group,113066,SP2 ,Community Services,OP North Locality,Adult Domiciliary Care - Spot Contribution,Income,REVENUE
http://statistics.data.gov.uk/id/local-authority/00HY,Wiltshire Council,21/01/2011,5105894258,3773.10,Allied Healthcare Group Allied Healthcare Group,113066,SP2 ,Community Services,CTPLD County CIC U65,Adult Day Care - Spot,Third Party Payments,REVENUE
http://statistics.data.gov.uk/id/local-authority/00HY,Wiltshire Council,26/01/2011,5105895000,565.46,Allied Healthcare Group Allied Healthcare Group,113066,SP2 ,Community Services,OP North Locality,Adult Domiciliary Care - Spot Contribution,Income,REVENUE
http://statistics.data.gov.uk/id/local-authority/00HY,Wiltshire Council,31/01/2011,5105896781,789.32,Allied Healthcare Group Allied Healthcare Group,113066,SP2 ,Community Services,PI West Locality,Adult Domiciliary Care - Spot,Third Party Payments,REVENUE
http://statistics.data.gov.uk/id/local-authority/00HY,Wiltshire Council,05/01/2011,1900482032,2498.23,Allsave Limited ,113436,RG22,Wiltshire Council,Wiltshire Council,Child Care Vouchers - Service Charge,Balance Sheet Accounts,REVENUE
http://statistics.data.gov.uk/id/local-authority/00HY,Wiltshire Council,26/01/2011,1900497848,619.20,Alpha Personnel Ltd ,110119,SP1 ,Children & Education,CAMHS,Agency Staff,Employee Related,REVENUE
http://statistics.data.gov.uk/id/local-authority/00HY,Wiltshire Council,26/01/2011,1900497848,3803.41,Alpha Personnel Ltd ,110119,SP1 ,Neighbourhood & Planning,Grounds Staff South,Agency Staff,Employee Related,REVENUE
http://statistics.data.gov.uk/id/local-authority/00HY,Wiltshire Council,26/01/2011,1900497848,3916.11,Alpha Personnel Ltd ,110119,SP1 ,Neighbourhood & Planning,Sth Ops Build Cleanr,Agency Staff,Employee Related,REVENUE
http://statistics.data.gov.uk/id/local-authority/00HY,Wiltshire Council,26/01/2011,1900497848,7726.16,Alpha Personnel Ltd ,110119,SP1 ,Neighbourhood & Planning,Sth Ops - St Cleans,Agency Staff,Employee Related,REVENUE
http://statistics.data.gov.uk/id/local-authority/00HY,Wiltshire Council,26/01/2011,1900497848,9888.13,Alpha Personnel Ltd ,110119,SP1 ,Neighbourhood & Planning,Sth Ops - Recycling,Agency Staff,Employee Related,REVENUE
http://statistics.data.gov.uk/id/local-authority/00HY,Wiltshire Council,26/01/2011,1900497848,14867.76,Alpha Personnel Ltd ,110119,SP1 ,Neighbourhood & Planning,Sth Ops - Waste,Agency Staff,Employee Related,REVENUE
http://statistics.data.gov.uk/id/local-authority/00HY,Wiltshire Council,10/01/2011,5105883990,2093.00,Alpha Personnel Ltd ,110119,SP1 ,Resources,Wrkplc Transform Prg,Agency Staff,Employee Related,REVENUE
http://statistics.data.gov.uk/id/local-authority/00HY,Wiltshire Council,18/01/2011,1900493868,1024.86,Alpha Taxis ,100124,BA14,Neighbourhood & Planning,DCS West CTPLD U65,Transport Contracts,Third Party Payments,REVENUE
http://statistics.data.gov.uk/id/local-authority/00HY,Wiltshire Council,26/01/2011,1900498036,528.90,Alpha Taxis ,100124,BA14,Neighbourhood & Planning,SEN 16+ Secondary,Transport Contracts,Third Party Payments,REVENUE
http://statistics.data.gov.uk/id/local-authority/00HY,Wiltshire Council,26/01/2011,1900498036,549.96,Alpha Taxis ,100124,BA14,Neighbourhood & Planning,Ref&Assess Devizes,Transport Contracts,Third Party Payments,REVENUE
http://statistics.data.gov.uk/id/local-authority/00HY,Wiltshire Council,26/01/2011,1900498036,597.15,Alpha Taxis ,100124,BA14,Neighbourhood & Planning,Community Team West,Transport Contracts,Third Party Payments,REVENUE
http://statistics.data.gov.uk/id/local-authority/00HY,Wiltshire Council,26/01/2011,1900498036,731.02,Alpha Taxis ,100124,BA14,Neighbourhood & Planning,Ref&Assess Trow,Transport Contracts,Third Party Payments,REVENUE
http://statistics.data.gov.uk/id/local-authority/00HY,Wiltshire Council,26/01/2011,1900498036,1320.00,Alpha Taxis ,100124,BA14,Neighbourhood & Planning,DCE Rside Resource,Transport Contracts,Third Party Payments,REVENUE
http://statistics.data.gov.uk/id/local-authority/00HY,Wiltshire Council,28/01/2011,5105894497,6630.00,Alzheimer's Society ,110125,SP1 ,Community Services,Social Inclusion,Grants Paid to individuals for Tangible Benefits,Supplies and Services,REVENUE
http://statistics.data.gov.uk/id/local-authority/00HY,Wiltshire Council,28/01/2011,5105894498,12150.00,Alzheimer's Society ,110125,SP1 ,Community Services,Carers General,Grants Paid to individuals for Tangible Benefits,Supplies and Services,REVENUE
http://statistics.data.gov.uk/id/local-authority/00HY,Wiltshire Council,28/01/2011,5105894499,9667.50,Alzheimer's Society ,110125,SP1 ,Community Services,MH Commissioned Cont,Grants Paid to individuals for Tangible Benefits,Supplies and Services,REVENUE
http://statistics.data.gov.uk/id/local-authority/00HY,Wiltshire Council,28/01/2011,5105894530,1500.00,Alzheimer's Society ,110125,SP1 ,Community Services,Social Inclusion,Grants Paid to individuals for Tangible Benefits,Supplies and Services,REVENUE
http://statistics.data.gov.uk/id/local-authority/00HY,Wiltshire Council,28/01/2011,5105895085,8137.00,Alzheimer's Society ,110125,SP1 ,Community Services,MH Commissioned Cont,Grants Paid to individuals for Tangible Benefits,Supplies and Services,REVENUE
http://statistics.data.gov.uk/id/local-authority/00HY,Wiltshire Council,04/01/2011,5105884610,22184.13,Alzheimers Support West Wilts ,113451,BA14,Community Services,MH Commissioned Cont,Grants Paid to individuals for Tangible Benefits,Supplies and Services,REVENUE
http://statistics.data.gov.uk/id/local-authority/00HY,Wiltshire Council,04/01/2011,5105884908,12318.00,Alzheimers Support West Wilts ,113451,BA14,Community Services,Social Inclusion,Grants Paid to individuals for Tangible Benefits,Supplies and Services,REVENUE
http://statistics.data.gov.uk/id/local-authority/00HY,Wiltshire Council,28/01/2011,5105894340,633.56,Alzheimers Support West Wilts ,113451,BA14,Community Services,MH OP West Locality,Adult Domiciliary Care - Spot,Third Party Payments,REVENUE
http://statistics.data.gov.uk/id/local-authority/00HY,Wiltshire Council,17/01/2011,5105889017,500.00,Amber Publications ,113461,B15 ,Children & Education,EYLearnDevTm,Publications / periodicals,Supplies and Services,REVENUE
http://statistics.data.gov.uk/id/local-authority/00HY,Wiltshire Council,12/01/2011,1900489090,585.00,Amesbury Taxi Associates Ltd ,101054,SP4 ,Neighbourhood & Planning,Mainstream Secondary,Transport Contracts,Third Party Payments,REVENUE
http://statistics.data.gov.uk/id/local-authority/00HY,Wiltshire Council,12/01/2011,1900489091,684.97,Amesbury Taxi Associates Ltd ,101054,SP4 ,Neighbourhood & Planning,Mainstream Secondary,Transport Contracts,Third Party Payments,REVENUE
http://statistics.data.gov.uk/id/local-authority/00HY,Wiltshire Council,12/01/2011,1900489092,823.16,Amesbury Taxi Associates Ltd ,101054,SP4 ,Neighbourhood & Planning,Mainstream Secondary,Transport Contracts,Third Party Payments,REVENUE
http://statistics.data.gov.uk/id/local-authority/00HY,Wiltshire Council,12/01/2011,1900489094,715.00,Amesbury Taxi Associates Ltd ,101054,SP4 ,Neighbourhood & Planning,SEN Primary,Transport Contracts,Third Party Payments,REVENUE
http://statistics.data.gov.uk/id/local-authority/00HY,Wiltshire Council,12/01/2011,1900489095,650.00,Amesbury Taxi Associates Ltd ,101054,SP4 ,Neighbourhood & Planning,SEN Secondary,Transport Contracts,Third Party Payments,REVENUE
http://statistics.data.gov.uk/id/local-authority/00HY,Wiltshire Council,12/01/2011,1900489096,1036.90,Amesbury Taxi Associates Ltd ,101054,SP4 ,Neighbourhood & Planning,SEN 16+ Secondary,Transport Contracts,Third Party Payments,REVENUE
http://statistics.data.gov.uk/id/local-authority/00HY,Wiltshire Council,12/01/2011,1900489096,12439.84,Amesbury Taxi Associates Ltd ,101054,SP4 ,Neighbourhood & Planning,SEN Secondary,Transport Contracts,Third Party Payments,REVENUE
http://statistics.data.gov.uk/id/local-authority/00HY,Wiltshire Council,12/01/2011,1900489096,15550.54,Amesbury Taxi Associates Ltd ,101054,SP4 ,Neighbourhood & Planning,SEN Primary,Transport Contracts,Third Party Payments,REVENUE
http://statistics.data.gov.uk/id/local-authority/00HY,Wiltshire Council,12/01/2011,1900489097,3975.70,Amesbury Taxi Associates Ltd ,101054,SP4 ,Neighbourhood & Planning,SEN Secondary,Transport Contracts,Third Party Payments,REVENUE
http://statistics.data.gov.uk/id/local-authority/00HY,Wiltshire Council,12/01/2011,1900489097,4969.85,Amesbury Taxi Associates Ltd ,101054,SP4 ,Neighbourhood & Planning,SEN Primary,Transport Contracts,Third Party Payments,REVENUE
http://statistics.data.gov.uk/id/local-authority/00HY,Wiltshire Council,18/01/2011,1900493838,684.00,Amesbury Taxi Associates Ltd ,101054,SP4 ,Neighbourhood & Planning,DCS Kennet MenHthO65,Transport Contracts,Third Party Payments,REVENUE
http://statistics.data.gov.uk/id/local-authority/00HY,Wiltshire Council,18/01/2011,1900493838,1111.50,Amesbury Taxi Associates Ltd ,101054,SP4 ,Neighbourhood & Planning,DCS KennetRuralCTO65,Transport Contracts,Third Party Payments,REVENUE
http://statistics.data.gov.uk/id/local-authority/00HY,Wiltshire Council,27/01/2011,5105896267,3319.79,Amicus Foster Care Limited ,126050,BS49,Children & Education,External Placements,Adult / Child Care Agency Placement,Third Party Payments,REVENUE
http://statistics.data.gov.uk/id/local-authority/00HY,Wiltshire Council,27/01/2011,5105896268,3319.79,Amicus Foster Care Limited ,126050,BS49,Children & Education,External Placements,Adult / Child Care Agency Placement,Third Party Payments,REVENUE
http://statistics.data.gov.uk/id/local-authority/00HY,Wiltshire Council,27/01/2011,5105896327,3476.34,Amicus Foster Care Limited ,126050,BS49,Children & Education,External Placements,Adult / Child Care Agency Placement,Third Party Payments,REVENUE
http://statistics.data.gov.uk/id/local-authority/00HY,Wiltshire Council,27/01/2011,5105896331,3476.34,Amicus Foster Care Limited ,126050,BS49,Children & Education,External Placements,Adult / Child Care Agency Placement,Third Party Payments,REVENUE
http://statistics.data.gov.uk/id/local-authority/00HY,Wiltshire Council,27/01/2011,5105896332,2900.67,Amicus Foster Care Limited ,126050,BS49,Children & Education,External Placements,Adult / Child Care Agency Placement,Third Party Payments,REVENUE
http://statistics.data.gov.uk/id/local-authority/00HY,Wiltshire Council,27/01/2011,5105896350,3146.50,Amicus Foster Care Limited ,126050,BS49,Children & Education,External Placements,Adult / Child Care Agency Placement,Third Party Payments,REVENUE
http://statistics.data.gov.uk/id/local-authority/00HY,Wiltshire Council,27/01/2011,5105896351,3146.50,Amicus Foster Care Limited ,126050,BS49,Children & Education,External Placements,Adult / Child Care Agency Placement,Third Party Payments,REVENUE
http://statistics.data.gov.uk/id/local-authority/00HY,Wiltshire Council,27/01/2011,5105896352,3476.34,Amicus Foster Care Limited ,126050,BS49,Children & Education,External Placements,Adult / Child Care Agency Placement,Third Party Payments,REVENUE
http://statistics.data.gov.uk/id/local-authority/00HY,Wiltshire Council,28/01/2011,1900497826,26106.00,AMTEC Consulting PLC ,129078,GU9 ,Community Services,UOR - Revenue 1,Consultants� Fees,Supplies and Services,REVENUE
http://statistics.data.gov.uk/id/local-authority/00HY,Wiltshire Council,28/01/2011,1900497840,43097.60,AMTEC Consulting PLC ,129078,GU9 ,Community Services,UOR - Revenue 1,Consultants� Fees,Supplies and Services,REVENUE
http://statistics.data.gov.uk/id/local-authority/00HY,Wiltshire Council,28/01/2011,1900497842,20090.00,AMTEC Consulting PLC ,129078,GU9 ,Community Services,UOR - Revenue 1,Consultants� Fees,Supplies and Services,REVENUE
http://statistics.data.gov.uk/id/local-authority/00HY,Wiltshire Council,19/01/2011,5105893206,1781.88,Ancor Trust ,129523,LS6 ,Community Services,OP South Locality,Adult Care Nursing Placements- Spot Purchase,Third Party Payments,REVENUE
http://statistics.data.gov.uk/id/local-authority/00HY,Wiltshire Council,19/01/2011,5105889516,3196.32,Andover Nursing Home ,110142,SP10,Community Services,OP East Locality,Adult Care Nursing Placements- Spot Purchase,Third Party Payments,REVENUE
http://statistics.data.gov.uk/id/local-authority/00HY,Wiltshire Council,19/01/2011,5105889518,1870.76,Andover Nursing Home ,110142,SP10,Community Services,OP East Locality,Adult Care Nursing Placements- Spot Purchase,Third Party Payments,REVENUE
http://statistics.data.gov.uk/id/local-authority/00HY,Wiltshire Council,19/01/2011,5105889520,3000.00,Andover Nursing Home ,110142,SP10,Community Services,MH OP East Locality,Adult Care Nursing Placements- Spot Purchase,Third Party Payments,REVENUE
http://statistics.data.gov.uk/id/local-authority/00HY,Wiltshire Council,18/01/2011,1900493851,712.81,Andy Taxis Limited ,100874,SP2 ,Neighbourhood & Planning,Mainstream Primary,Transport Contracts,Third Party Payments,REVENUE
http://statistics.data.gov.uk/id/local-authority/00HY,Wiltshire Council,18/01/2011,1900493861,912.00,Andy Taxis Limited ,100874,SP2 ,Neighbourhood & Planning,SEN 16+ Secondary,Transport Contracts,Third Party Payments,REVENUE
http://statistics.data.gov.uk/id/local-authority/00HY,Wiltshire Council,13/01/2011,1900492173,3254.92,Andybus  and  Coach Ltd ,100132,SN16,Neighbourhood & Planning,Mainstream 16+ FE,Transport Contracts,Third Party Payments,REVENUE
http://statistics.data.gov.uk/id/local-authority/00HY,Wiltshire Council,13/01/2011,1900492173,3801.74,Andybus  and  Coach Ltd ,100132,SN16,Neighbourhood & Planning,Mainstream Primary,Transport Contracts,Third Party Payments,REVENUE
http://statistics.data.gov.uk/id/local-authority/00HY,Wiltshire Council,13/01/2011,1900492173,4621.98,Andybus  and  Coach Ltd ,100132,SN16,Neighbourhood & Planning,Mainstream 16+ Sec,Transport Contracts,Third Party Payments,REVENUE
http://statistics.data.gov.uk/id/local-authority/00HY,Wiltshire Council,13/01/2011,1900492173,18845.98,Andybus  and  Coach Ltd ,100132,SN16,Neighbourhood & Planning,Mainstream Secondary,Transport Contracts,Third Party Payments,REVENUE
http://statistics.data.gov.uk/id/local-authority/00HY,Wiltshire Council,13/01/2011,1900492173,34573.74,Andybus  and  Coach Ltd ,100132,SN16,Neighbourhood & Planning,Public Transport,Transport Contracts,Third Party Payments,REVENUE
http://statistics.data.gov.uk/id/local-authority/00HY,Wiltshire Council,25/01/2011,1900497730,6005.22,Andybus  and  Coach Ltd ,100132,SN16,Neighbourhood & Planning,Concessionary Fares,Compensation for Concessionary fares,Third Party Payments,REVENUE
http://statistics.data.gov.uk/id/local-authority/00HY,Wiltshire Council,24/01/2011,5105894564,15750.00,Angel Solutions Ltd ,123883,L3 5,Children & Education,EYChildCentreTm,ICT - Support arrangements,Supplies and Services,REVENUE
http://statistics.data.gov.uk/id/local-authority/00HY,Wiltshire Council,13/01/2011,5105888423,385536.24,ANS GROUP ,130274,M15 ,Resources,Applications SuppLOB,Software Purchases,Supplies and Services,REVENUE
http://statistics.data.gov.uk/id/local-authority/00HY,Wiltshire Council,25/01/2011,1900497512,1581.58,Aon Limited ,113554,LE1 ,Neighbourhood & Planning,Admin Hsg Management,Tenants� Contents Insurance,Premises Related,REVENUE
http://statistics.data.gov.uk/id/local-authority/00HY,Wiltshire Council,26/01/2011,5105895335,3120.00,APA Consultants Ltd ,113361,SN10,Neighbourhood & Planning,DevControlNorth,Other Professional Fees,Supplies and Services,REVENUE
http://statistics.data.gov.uk/id/local-authority/00HY,Wiltshire Council,14/01/2011,1900493065,1460.30,APL Travel Limited ,100596,SN14,Neighbourhood & Planning,Mainstream Secondary,Transport Contracts,Third Party Payments,REVENUE
http://statistics.data.gov.uk/id/local-authority/00HY,Wiltshire Council,14/01/2011,1900493065,3440.95,APL Travel Limited ,100596,SN14,Neighbourhood & Planning,Public Transport,Transport Contracts,Third Party Payments,REVENUE
http://statistics.data.gov.uk/id/local-authority/00HY,Wiltshire Council,14/01/2011,1900493079,1328.77,APL Travel Limited ,100596,SN14,Neighbourhood & Planning,Mainstream Secondary,Transport Contracts,Third Party Payments,REVENUE
http://statistics.data.gov.uk/id/local-authority/00HY,Wiltshire Council,14/01/2011,1900493079,2491.00,APL Travel Limited ,100596,SN14,Neighbourhood & Planning,Mainstream 16+ FE,Transport Contracts,Third Party Payments,REVENUE
http://statistics.data.gov.uk/id/local-authority/00HY,Wiltshire Council,14/01/2011,1900493079,4327.52,APL Travel Limited ,100596,SN14,Neighbourhood & Planning,Public Transport,Transport Contracts,Third Party Payments,REVENUE
http://statistics.data.gov.uk/id/local-authority/00HY,Wiltshire Council,14/01/2011,1900493080,5258.44,APL Travel Limited ,100596,SN14,Neighbourhood & Planning,Mainstream Secondary,Transport Contracts,Third Party Payments,REVENUE
http://statistics.data.gov.uk/id/local-authority/00HY,Wiltshire Council,14/01/2011,1900493083,2417.30,APL Travel Limited ,100596,SN14,Neighbourhood & Planning,Mainstream Secondary,Transport Contracts,Third Party Payments,REVENUE
http://statistics.data.gov.uk/id/local-authority/00HY,Wiltshire Council,14/01/2011,1900493084,2558.00,APL Travel Limited ,100596,SN14,Neighbourhood & Planning,Mainstream Secondary,Transport Contracts,Third Party Payments,REVENUE
http://statistics.data.gov.uk/id/local-authority/00HY,Wiltshire Council,14/01/2011,1900493085,1964.35,APL Travel Limited ,100596,SN14,Neighbourhood & Planning,Mainstream Secondary,Transport Contracts,Third Party Payments,REVENUE
http://statistics.data.gov.uk/id/local-authority/00HY,Wiltshire Council,25/01/2011,1900497686,1258.18,APL Travel Limited ,100596,SN14,Neighbourhood & Planning,Mainstream Secondary,Transport Contracts,Third Party Payments,REVENUE
http://statistics.data.gov.uk/id/local-authority/00HY,Wiltshire Council,25/01/2011,1900497686,5393.63,APL Travel Limited ,100596,SN14,Neighbourhood & Planning,Public Transport,Transport Contracts,Third Party Payments,REVENUE
http://statistics.data.gov.uk/id/local-authority/00HY,Wiltshire Council,25/01/2011,1900497732,5255.68,APL Travel Limited ,100596,SN14,Neighbourhood & Planning,Concessionary Fares,Compensation for Concessionary fares,Third Party Payments,REVENUE
http://statistics.data.gov.uk/id/local-authority/00HY,Wiltshire Council,14/01/2011,1900488953,1762.00,APS Pool Contracting Ltd ,110114,BA6 ,Resources,Campus,Preventative Property Maintenance,Premises Related,REVENUE
http://statistics.data.gov.uk/id/local-authority/00HY,Wiltshire Council,11/01/2011,5105885137,4375.00,Aqua Hot Tubs Ltd ,130228,RG10,Children & Education,CanonsHouse,Grounds Maintenance,Premises Related,REVENUE
http://statistics.data.gov.uk/id/local-authority/00HY,Wiltshire Council,11/01/2011,5105885160,6710.00,Aqua Hot Tubs Ltd ,130228,RG10,Children & Education,CanonsHouse,Client Aids and Adaptations,Third Party Payments,REVENUE
http://statistics.data.gov.uk/id/local-authority/00HY,Wiltshire Council,07/01/2011,1900481787,14750.00,Aquila Estates Ltd ,101549,CM1 ,Resources,WTP Office,Premises Rental / Hire Charges,Premises Related,REVENUE
http://statistics.data.gov.uk/id/local-authority/00HY,Wiltshire Council,19/01/2011,5105893078,2600.00,Arbory Residential Home ,113587,SP11,Community Services,MH OP East Locality,Adult Residential Placements - Spot Purchase,Third Party Payments,REVENUE
http://statistics.data.gov.uk/id/local-authority/00HY,Wiltshire Council,19/01/2011,5105893430,2600.00,Arbory Residential Home ,113587,SP11,Community Services,MH OP East Locality,Adult Residential Placements - Spot Purchase,Third Party Payments,REVENUE
http://statistics.data.gov.uk/id/local-authority/00HY,Wiltshire Council,19/01/2011,5105889526,2037.52,Arch Care Services Ltd ,110169,BS21,Community Services,MH AOWA West,Adult Residential Placements - Spot Purchase,Third Party Payments,REVENUE
http://statistics.data.gov.uk/id/local-authority/00HY,Wiltshire Council,13/01/2011,1900492030,670.00,Arleen Coach Hire & Services Ltd ,126038,BA2 ,Children & Education,Playing4Succsess,Public Transport,Transport Related,REVENUE
http://statistics.data.gov.uk/id/local-authority/00HY,Wiltshire Council,25/01/2011,5105894911,920.00,Arleen Coach Hire & Services Ltd ,126038,BA2 ,Children & Education,Playing4Succsess,Public Transport,Transport Related,REVENUE
http://statistics.data.gov.uk/id/local-authority/00HY,Wiltshire Council,25/01/2011,1900497510,1080.00,Armada House ,130401,BS1 ,Community Services,UOR - Revenue 1,Premises Rental / Hire Charges,Premises Related,REVENUE
http://statistics.data.gov.uk/id/local-authority/00HY,Wiltshire Council,18/01/2011,1900493846,540.00,Arrow Private Hire ,100574,SN8 ,Neighbourhood & Planning,SEN Secondary,Transport Contracts,Third Party Payments,REVENUE
http://statistics.data.gov.uk/id/local-authority/00HY,Wiltshire Council,18/01/2011,1900493859,552.50,Arrow Private Hire ,100574,SN8 ,Neighbourhood & Planning,LAC&16+ North&East,Transport Contracts,Third Party Payments,REVENUE
http://statistics.data.gov.uk/id/local-authority/00HY,Wiltshire Council,18/01/2011,1900493862,603.57,Arrow Private Hire ,100574,SN8 ,Neighbourhood & Planning,SEN Primary,Transport Contracts,Third Party Payments,REVENUE
http://statistics.data.gov.uk/id/local-authority/00HY,Wiltshire Council,13/01/2011,5105888408,595.00,Arrow Radiators (Melksham) Ltd ,125428,SN12,Neighbourhood & Planning,Fleet Mtc North,Vehicle Parts,Transport Related,REVENUE
http://statistics.data.gov.uk/id/local-authority/00HY,Wiltshire Council,28/01/2011,5105888213,2502.50,Artavia ,124407,EX4 ,Neighbourhood & Planning,VisitWiltsPartnersh,Marketing and Promotions,Supplies and Services,REVENUE
http://statistics.data.gov.uk/id/local-authority/00HY,Wiltshire Council,21/01/2011,5105886934,3920.00,Arthur Williams Consulting Ltd ,129581,BA14,Resources,New Build Team,Consultants� Fees,Supplies and Services,REVENUE
http://statistics.data.gov.uk/id/local-authority/00HY,Wiltshire Council,10/01/2011,5105887093,1108.77,Arval P H H Business Solutions Ltd ,113622,SN5 ,Neighbourhood & Planning,Fleet Mgmt & Support,Transport - Mileage & Fuel,Transport Related,REVENUE
http://statistics.data.gov.uk/id/local-authority/00HY,Wiltshire Council,07/01/2011,5105887095,1109.78,Arval P H H Business Solutions Ltd ,113622,SN5 ,Neighbourhood & Planning,Fleet Mgmt & Support,Transport - Mileage & Fuel,Transport Related,REVENUE
http://statistics.data.gov.uk/id/local-authority/00HY,Wiltshire Council,17/01/2011,5105887098,848.92,Arval P H H Business Solutions Ltd ,113622,SN5 ,Neighbourhood & Planning,Fleet Mgmt & Support,Transport - Mileage & Fuel,Transport Related,REVENUE
http://statistics.data.gov.uk/id/local-authority/00HY,Wiltshire Council,11/01/2011,5105887942,5160.32,Arval P H H Business Solutions Ltd ,113622,SN5 ,Resources,SharedServMngmtSupp,Leased Car Scheme,Transport Related,REVENUE
http://statistics.data.gov.uk/id/local-authority/00HY,Wiltshire Council,26/01/2011,5105887944,879.37,Arval P H H Business Solutions Ltd ,113622,SN5 ,Neighbourhood & Planning,Fleet Mgmt & Support,Transport - Mileage & Fuel,Transport Related,REVENUE
http://statistics.data.gov.uk/id/local-authority/00HY,Wiltshire Council,12/01/2011,1900489072,541.17,Arval UK Ltd ,113621,SN5 ,Neighbourhood & Planning,Housg Mtc Trading Ac,Vehicle Fuel,Transport Related,REVENUE
http://statistics.data.gov.uk/id/local-authority/00HY,Wiltshire Council,12/01/2011,1900489073,575.15,Arval UK Ltd ,113621,SN5 ,Neighbourhood & Planning,Housg Mtc Trading Ac,Vehicle Fuel,Transport Related,REVENUE
http://statistics.data.gov.uk/id/local-authority/00HY,Wiltshire Council,12/01/2011,1900489074,526.13,Arval UK Ltd ,113621,SN5 ,Neighbourhood & Planning,Housg Mtc Trading Ac,Vehicle Fuel,Transport Related,REVENUE
http://statistics.data.gov.uk/id/local-authority/00HY,Wiltshire Council,24/01/2011,1900495983,529.81,Arval UK Ltd ,113621,SN5 ,Neighbourhood & Planning,Housg Mtc Trading Ac,Vehicle Fuel,Transport Related,REVENUE
http://statistics.data.gov.uk/id/local-authority/00HY,Wiltshire Council,11/01/2011,5105887784,1853.10,ASG Ltd ,130240,CR5 ,Resources,Despatch,Postage,Supplies and Services,REVENUE
http://statistics.data.gov.uk/id/local-authority/00HY,Wiltshire Council,11/01/2011,5105887785,3513.84,ASG Ltd ,130240,CR5 ,Resources,Despatch,Postage,Supplies and Services,REVENUE
http://statistics.data.gov.uk/id/local-authority/00HY,Wiltshire Council,11/01/2011,5105887786,4792.76,ASG Ltd ,130240,CR5 ,Resources,Despatch,Postage,Supplies and Services,REVENUE
http://statistics.data.gov.uk/id/local-authority/00HY,Wiltshire Council,19/01/2011,5105866775,2206.40,Ashbourne  Eton  Ltd - Mountwood ,110183,SP10,Community Services,MH OP South Locality,Adult Care Nursing Placements- Spot Purchase,Third Party Payments,REVENUE
http://statistics.data.gov.uk/id/local-authority/00HY,Wiltshire Council,19/01/2011,5105870864,1951.32,Ashbourne  Eton  Ltd - Mountwood ,110183,SP10,Community Services,OP East Locality,Adult Care Nursing Placements- Spot Purchase,Third Party Payments,REVENUE
http://statistics.data.gov.uk/id/local-authority/00HY,Wiltshire Council,19/01/2011,5105878989,2206.40,Ashbourne  Eton  Ltd - Mountwood ,110183,SP10,Community Services,MH OP South Locality,Adult Care Nursing Placements- Spot Purchase,Third Party Payments,REVENUE
http://statistics.data.gov.uk/id/local-authority/00HY,Wiltshire Council,19/01/2011,5105882482,1951.32,Ashbourne  Eton  Ltd - Mountwood ,110183,SP10,Community Services,OP East Locality,Adult Care Nursing Placements- Spot Purchase,Third Party Payments,REVENUE
http://statistics.data.gov.uk/id/local-authority/00HY,Wiltshire Council,19/01/2011,5105889527,2206.40,Ashbourne  Eton  Ltd - Mountwood ,110183,SP10,Community Services,MH OP South Locality,Adult Care Nursing Placements- Spot Purchase,Third Party Payments,REVENUE
http://statistics.data.gov.uk/id/local-authority/00HY,Wiltshire Council,19/01/2011,5105891390,1951.32,Ashbourne  Eton  Ltd - Mountwood ,110183,SP10,Community Services,OP East Locality,Adult Care Nursing Placements- Spot Purchase,Third Party Payments,REVENUE
http://statistics.data.gov.uk/id/local-authority/00HY,Wiltshire Council,19/01/2011,5105892947,2525.20,Ashbourne Homes Ltd - Hungerford Ho ,128889,RG17,Community Services,MH OP East Locality,Adult Care Nursing Placements- Spot Purchase,Third Party Payments,REVENUE
http://statistics.data.gov.uk/id/local-authority/00HY,Wiltshire Council,19/01/2011,5105893062,2385.20,Ashbourne Homes Ltd - Hungerford Ho ,128889,RG17,Community Services,OP East Locality,Adult Care Nursing Placements- Spot Purchase,Third Party Payments,REVENUE
http://statistics.data.gov.uk/id/local-authority/00HY,Wiltshire Council,20/01/2011,1900495879,5801.34,Ashbourne Homes Ltd - Ravenscroft ,110185,BA14,Community Services,FNC,Adult Care Funded Nursing Care - Out of County Cli,Third Party Payments,REVENUE
http://statistics.data.gov.uk/id/local-authority/00HY,Wiltshire Council,25/01/2011,1900497527,819.44,Ashbourne Homes Ltd - Ravenscroft ,110185,BA14,Community Services,OP West Locality,Adult Care Nursing Placements- Spot Purchase,Third Party Payments,REVENUE
http://statistics.data.gov.uk/id/local-authority/00HY,Wiltshire Council,19/01/2011,5105889529,1947.32,Ashbourne Homes Ltd - Ravenscroft ,110185,BA14,Community Services,OP West Locality,Adult Care Nursing Placements- Spot Purchase,Third Party Payments,REVENUE
http://statistics.data.gov.uk/id/local-authority/00HY,Wiltshire Council,19/01/2011,5105889532,1456.88,Ashbourne Homes Ltd - Ravenscroft ,110185,BA14,Community Services,MH OP West Locality,Adult Care Nursing Placements- Spot Purchase,Third Party Payments,REVENUE
http://statistics.data.gov.uk/id/local-authority/00HY,Wiltshire Council,19/01/2011,5105889535,1643.96,Ashbourne Homes Ltd - Ravenscroft ,110185,BA14,Community Services,MH OP West Locality,Adult Care Nursing Placements- Spot Purchase,Third Party Payments,REVENUE
http://statistics.data.gov.uk/id/local-authority/00HY,Wiltshire Council,19/01/2011,5105889538,2008.40,Ashbourne Homes Ltd - Ravenscroft ,110185,BA14,Community Services,OP West Locality,Adult Care Nursing Placements- Spot Purchase,Third Party Payments,REVENUE
http://statistics.data.gov.uk/id/local-authority/00HY,Wiltshire Council,19/01/2011,5105889541,1456.88,Ashbourne Homes Ltd - Ravenscroft ,110185,BA14,Community Services,OP West Locality,Adult Care Nursing Placements- Spot Purchase,Third Party Payments,REVENUE
http://statistics.data.gov.uk/id/local-authority/00HY,Wiltshire Council,19/01/2011,5105889543,1456.88,Ashbourne Homes Ltd - Ravenscroft ,110185,BA14,Community Services,OP West Locality,Adult Care Nursing Placements- Spot Purchase,Third Party Payments,REVENUE
http://statistics.data.gov.uk/id/local-authority/00HY,Wiltshire Council,19/01/2011,5105889546,1261.48,Ashbourne Homes Ltd - Ravenscroft ,110185,BA14,Community Services,OP West Locality,Adult Care Nursing Placements- Spot Purchase,Third Party Payments,REVENUE
http://statistics.data.gov.uk/id/local-authority/00HY,Wiltshire Council,19/01/2011,5105889549,1456.88,Ashbourne Homes Ltd - Ravenscroft ,110185,BA14,Community Services,OP West Locality,Adult Care Nursing Placements- Spot Purchase,Third Party Payments,REVENUE
http://statistics.data.gov.uk/id/local-authority/00HY,Wiltshire Council,19/01/2011,5105889552,2008.40,Ashbourne Homes Ltd - Ravenscroft ,110185,BA14,Community Services,MH OP West Locality,Adult Care Nursing Placements- Spot Purchase,Third Party Payments,REVENUE
http://statistics.data.gov.uk/id/local-authority/00HY,Wiltshire Council,19/01/2011,5105889556,1947.32,Ashbourne Homes Ltd - Ravenscroft ,110185,BA14,Community Services,OP West Locality,Adult Care Nursing Placements- Spot Purchase,Third Party Payments,REVENUE
http://statistics.data.gov.uk/id/local-authority/00HY,Wiltshire Council,19/01/2011,5105889559,1958.84,Ashbourne Homes Ltd - Ravenscroft ,110185,BA14,Community Services,MH OP West Locality,Adult Residential Placements - Spot Purchase,Third Party Payments,REVENUE
http://statistics.data.gov.uk/id/local-authority/00HY,Wiltshire Council,19/01/2011,5105889562,2382.12,Ashbourne Homes Ltd - Ravenscroft ,110185,BA14,Community Services,OP West Locality,Adult Residential Placements - Spot Purchase,Third Party Payments,REVENUE
http://statistics.data.gov.uk/id/local-authority/00HY,Wiltshire Council,19/01/2011,5105889564,1965.20,Ashbourne Homes Ltd - Ravenscroft ,110185,BA14,Community Services,OP West Locality,Adult Care Nursing Placements- Spot Purchase,Third Party Payments,REVENUE
http://statistics.data.gov.uk/id/local-authority/00HY,Wiltshire Council,19/01/2011,5105889567,2085.20,Ashbourne Homes Ltd - Ravenscroft ,110185,BA14,Community Services,OP West Locality,Adult Care Nursing Placements- Spot Purchase,Third Party Payments,REVENUE
http://statistics.data.gov.uk/id/local-authority/00HY,Wiltshire Council,19/01/2011,5105893262,2265.20,Ashbourne Homes Ltd - Ravenscroft ,110185,BA14,Community Services,OP West HL,Adult Care - Home Loan Costs,Capital charges and Expenditure,REVENUE
http://statistics.data.gov.uk/id/local-authority/00HY,Wiltshire Council,19/01/2011,5105893483,2365.20,Ashbourne Homes Ltd - Ravenscroft ,110185,BA14,Community Services,OP West Locality,Adult Care Nursing Placements- Spot Purchase,Third Party Payments,REVENUE
http://statistics.data.gov.uk/id/local-authority/00HY,Wiltshire Council,19/01/2011,5105893527,1643.96,Ashbourne Homes Ltd - Ravenscroft ,110185,BA14,Community Services,OP West Locality,Adult Care Nursing Placements- Spot Purchase,Third Party Payments,REVENUE
http://statistics.data.gov.uk/id/local-authority/00HY,Wiltshire Council,27/01/2011,5105896284,727.86,Ashbourne Homes Ltd - Ravenscroft ,110185,BA14,Community Services,MH OA West FNC,Adult Care Funded Nursing Care - Loal Auth Clients,Third Party Payments,REVENUE
http://statistics.data.gov.uk/id/local-authority/00HY,Wiltshire Council,19/01/2011,5105893041,2100.00,Ashbury Lodge ,113635,SN3 ,Community Services,MH OP East Locality,Adult Residential Placements - Spot Purchase,Third Party Payments,REVENUE
http://statistics.data.gov.uk/id/local-authority/00HY,Wiltshire Council,19/01/2011,5105893098,2280.00,Ashbury Lodge ,113635,SN3 ,Community Services,MH OP North Locality,Adult Residential Placements - Spot Purchase,Third Party Payments,REVENUE
http://statistics.data.gov.uk/id/local-authority/00HY,Wiltshire Council,11/01/2011,1900488793,1672.50,Ashton Cabs ,101384,BA14,Neighbourhood & Planning,Community Team North,Transport Contracts,Third Party Payments,REVENUE
http://statistics.data.gov.uk/id/local-authority/00HY,Wiltshire Council,19/01/2011,1900494729,1008.00,Ashton Cabs ,101384,BA14,Neighbourhood & Planning,Community Team North,Transport Contracts,Third Party Payments,REVENUE
http://statistics.data.gov.uk/id/local-authority/00HY,Wiltshire Council,05/01/2011,5105886274,23509.16,Ask ,110189,BA14,Children & Education,EYChildCareTeam,Grants Paid to individuals for Tangible Benefits,Supplies and Services,REVENUE
http://statistics.data.gov.uk/id/local-authority/00HY,Wiltshire Council,19/01/2011,5105889592,3472.04,Aspects  and  Milestones Trust ,110191,BS16,Community Services,CTPLD County S75 U65,Adult Residential Placements - Spot Purchase,Third Party Payments,REVENUE
http://statistics.data.gov.uk/id/local-authority/00HY,Wiltshire Council,19/01/2011,5105889594,3095.36,Aspects  and  Milestones Trust ,110191,BS16,Community Services,CTPLD County S75 U65,Adult Residential Placements - Spot Purchase,Third Party Payments,REVENUE
http://statistics.data.gov.uk/id/local-authority/00HY,Wiltshire Council,19/01/2011,5105891320,3628.00,Aspects And Milestones Trust ,124858,BS16,Community Services,MH AOWA West,Adult Residential Placements - Spot Purchase,Third Party Payments,REVENUE
http://statistics.data.gov.uk/id/local-authority/00HY,Wiltshire Council,27/01/2011,5105896372,39907.56,Aspects And Milestones Trust ,124858,BS16,Community Services,MH AOWA South,Adult Residential Placements - Spot Purchase,Third Party Payments,REVENUE
http://statistics.data.gov.uk/id/local-authority/00HY,Wiltshire Council,18/01/2011,1900493842,1014.00,Aspire Taxis ,101274,SP2 ,Neighbourhood & Planning,SEN Secondary,Transport Contracts,Third Party Payments,REVENUE
http://statistics.data.gov.uk/id/local-authority/00HY,Wiltshire Council,18/01/2011,1900493847,540.00,Aspire Taxis ,101274,SP2 ,Neighbourhood & Planning,SEN Secondary,Transport Contracts,Third Party Payments,REVENUE
http://statistics.data.gov.uk/id/local-authority/00HY,Wiltshire Council,11/01/2011,1900488678,980.56,Asset Advantage Limited ,113666,RG21,Neighbourhood & Planning,Off Street Parking,Equipment Purchase,Supplies and Services,REVENUE
http://statistics.data.gov.uk/id/local-authority/00HY,Wiltshire Council,21/01/2011,1900493747,13929.34,Asset Optimal ,124357,DT9 ,Neighbourhood & Planning,Westbury Bypass,Highways Contracts - Other,Third Party Payments,REVENUE
http://statistics.data.gov.uk/id/local-authority/00HY,Wiltshire Council,25/01/2011,1900497605,1046.04,Aster Group Ltd  Ridgeway Care ,113069,SN10,Community Services,OP East Locality,Adult Domiciliary Care - Block,Third Party Payments,REVENUE
http://statistics.data.gov.uk/id/local-authority/00HY,Wiltshire Council,12/01/2011,5105888092,2753.17,Aster Group Ltd  Ridgeway Care ,113069,SN10,Community Services,NOT IN USE E4,Adult Domiciliary Care - Block Contribution,Income,REVENUE
http://statistics.data.gov.uk/id/local-authority/00HY,Wiltshire Council,20/01/2011,5105893991,4000.00,Atkins ,110197,KT18,Wiltshire Council,Wiltshire Council,Highways - Other Materials,Supplies and Services,CAPITAL
http://statistics.data.gov.uk/id/local-authority/00HY,Wiltshire Council,19/01/2011,5105889596,6328.84,Atlas Project Team ,110199,EX7 ,Community Services,CTPLD County S75 U65,Adult Residential Placements - Spot Purchase,Third Party Payments,REVENUE
http://statistics.data.gov.uk/id/local-authority/00HY,Wiltshire Council,31/01/2011,5105896783,3121.49,ATS Euromaster Limited ,110201,DN4 ,Neighbourhood & Planning,Fleet Mtc South,Vehicle Tyres,Transport Related,REVENUE
http://statistics.data.gov.uk/id/local-authority/00HY,Wiltshire Council,12/01/2011,1900477505,930.00,Atworth Youth Club ,113713,SN12,Community Services,Area Board Melksham,Area Board Grants,Supplies and Services,REVENUE
http://statistics.data.gov.uk/id/local-authority/00HY,Wiltshire Council,19/01/2011,5105889598,5721.44,Autism Specialised care Homes ,110205,BS10,Community Services,CTPLD County CIC U65,Adult Residential Placements - Spot Purchase,Third Party Payments,REVENUE
http://statistics.data.gov.uk/id/local-authority/00HY,Wiltshire Council,19/01/2011,5105889600,6983.32,Autism West Midlands ,110206,WR9 ,Community Services,CTPLD County CIC U65,Adult Residential Placements - Spot Purchase,Third Party Payments,REVENUE
http://statistics.data.gov.uk/id/local-authority/00HY,Wiltshire Council,07/01/2011,5105886846,2749.88,Automotive Leasing Ltd ,113729,SL1 ,Neighbourhood & Planning,Highways Supprt Team,Leased Car Scheme,Transport Related,REVENUE
http://statistics.data.gov.uk/id/local-authority/00HY,Wiltshire Council,07/01/2011,5105886847,2373.25,Automotive Leasing Ltd ,113729,SL1 ,Resources,InternalAudit,Leased Car Scheme,Transport Related,REVENUE
http://statistics.data.gov.uk/id/local-authority/00HY,Wiltshire Council,07/01/2011,5105886848,3278.89,Automotive Leasing Ltd ,113729,SL1 ,Resources,Mtc & FM Team,Leased Car Scheme,Transport Related,REVENUE
http://statistics.data.gov.uk/id/local-authority/00HY,Wiltshire Council,07/01/2011,5105886849,4147.74,Automotive Leasing Ltd ,113729,SL1 ,Health & Wellbeing,HealthSafety,Leased Car Scheme,Transport Related,REVENUE
http://statistics.data.gov.uk/id/local-authority/00HY,Wiltshire Council,07/01/2011,5105887205,570.00,Autonomy Care Limited ,126128,SN10,Community Services,PI West Locality,Adult Domiciliary Care - Spot,Third Party Payments,REVENUE
http://statistics.data.gov.uk/id/local-authority/00HY,Wiltshire Council,28/01/2011,5105887891,877.50,Autonomy Care Limited ,126128,SN10,Community Services,CTPLD County CIC U65,Adult Domiciliary Care - Spot,Third Party Payments,REVENUE
http://statistics.data.gov.uk/id/local-authority/00HY,Wiltshire Council,28/01/2011,5105888244,2619.00,Autonomy Care Limited ,126128,SN10,Community Services,OP East Locality,Adult Domiciliary Care - Spot Contribution,Income,REVENUE
http://statistics.data.gov.uk/id/local-authority/00HY,Wiltshire Council,28/01/2011,5105888249,909.75,Autonomy Care Limited ,126128,SN10,Community Services,OP East Locality,Adult Domiciliary Care - Spot,Third Party Payments,REVENUE
http://statistics.data.gov.uk/id/local-authority/00HY,Wiltshire Council,28/01/2011,5105888261,1378.00,Autonomy Care Limited ,126128,SN10,Community Services,OP East Locality,Adult Domiciliary Care - Mileage,Third Party Payments,REVENUE
http://statistics.data.gov.uk/id/local-authority/00HY,Wiltshire Council,24/01/2011,5105894586,742.50,Autonomy Care Limited ,126128,SN10,Community Services,PI West Locality,Adult Domiciliary Care - Spot,Third Party Payments,REVENUE
http://statistics.data.gov.uk/id/local-authority/00HY,Wiltshire Council,07/01/2011,5105883997,1137.50,Avebury Chapel Centre ,113735,SN8 ,Neighbourhood & Planning,InformationCentreDev,Premises Rental / Hire Charges,Premises Related,REVENUE
http://statistics.data.gov.uk/id/local-authority/00HY,Wiltshire Council,19/01/2011,5105889602,1969.00,Avenue Care (Fareham) Ltd ,110691,SN10,Community Services,CTPLD County CIC 65+,Adult Residential Placements - Spot Purchase,Third Party Payments,REVENUE
http://statistics.data.gov.uk/id/local-authority/00HY,Wiltshire Council,19/01/2011,5105889604,1918.56,Avenue Care (Fareham) Ltd ,110691,SN10,Community Services,OP East Locality,Adult Residential Placements - Spot Purchase,Third Party Payments,REVENUE
http://statistics.data.gov.uk/id/local-authority/00HY,Wiltshire Council,19/01/2011,5105889606,1933.28,Avenue Care (Fareham) Ltd ,110691,SN10,Community Services,MH OP East Locality,Adult Residential Placements - Spot Purchase,Third Party Payments,REVENUE
http://statistics.data.gov.uk/id/local-authority/00HY,Wiltshire Council,19/01/2011,5105889608,1953.08,Avenue Care (Fareham) Ltd ,110691,SN10,Community Services,MH OP East Locality,Adult Residential Placements - Spot Purchase,Third Party Payments,REVENUE
http://statistics.data.gov.uk/id/local-authority/00HY,Wiltshire Council,19/01/2011,5105890343,1916.00,Avenue Care (Fareham) Ltd ,110691,SN10,Community Services,OP East Locality,Adult Residential Placements - Spot Purchase,Third Party Payments,REVENUE
http://statistics.data.gov.uk/id/local-authority/00HY,Wiltshire Council,19/01/2011,5105890345,1918.56,Avenue Care (Fareham) Ltd ,110691,SN10,Community Services,OP East Locality,Adult Residential Placements - Spot Purchase,Third Party Payments,REVENUE
http://statistics.data.gov.uk/id/local-authority/00HY,Wiltshire Council,19/01/2011,5105891306,1916.00,Avenue Care (Fareham) Ltd ,110691,SN10,Community Services,OP East Locality,Adult Residential Placements - Spot Purchase,Third Party Payments,REVENUE
http://statistics.data.gov.uk/id/local-authority/00HY,Wiltshire Council,19/01/2011,5105889610,2040.00,Avery Healthcare Cepen Lodge ,126733,SN14,Community Services,OP North Locality,Adult Residential Placements - Spot Purchase,Third Party Payments,REVENUE
http://statistics.data.gov.uk/id/local-authority/00HY,Wiltshire Council,19/01/2011,5105889612,2040.00,Avery Healthcare Cepen Lodge ,126733,SN14,Community Services,MH OP North Locality,Adult Residential Placements - Spot Purchase,Third Party Payments,REVENUE
http://statistics.data.gov.uk/id/local-authority/00HY,Wiltshire Council,19/01/2011,5105889614,1890.68,Avery Healthcare Cepen Lodge ,126733,SN14,Community Services,OP North Locality,Adult Residential Placements - Spot Purchase,Third Party Payments,REVENUE
http://statistics.data.gov.uk/id/local-authority/00HY,Wiltshire Council,19/01/2011,5105889616,2040.00,Avery Healthcare Cepen Lodge ,126733,SN14,Community Services,MH OP West Locality,Adult Residential Placements - Spot Purchase,Third Party Payments,REVENUE
http://statistics.data.gov.uk/id/local-authority/00HY,Wiltshire Council,19/01/2011,5105889618,2040.00,Avery Healthcare Cepen Lodge ,126733,SN14,Community Services,OP North Locality,Adult Residential Placements - Spot Purchase,Third Party Payments,REVENUE
http://statistics.data.gov.uk/id/local-authority/00HY,Wiltshire Council,19/01/2011,5105889620,2040.00,Avery Healthcare Cepen Lodge ,126733,SN14,Community Services,OP West Locality,Adult Residential Placements - Spot Purchase,Third Party Payments,REVENUE
http://statistics.data.gov.uk/id/local-authority/00HY,Wiltshire Council,19/01/2011,5105889622,2040.00,Avery Healthcare Cepen Lodge ,126733,SN14,Community Services,MH OP North Locality,Adult Residential Placements - Spot Purchase,Third Party Payments,REVENUE
http://statistics.data.gov.uk/id/local-authority/00HY,Wiltshire Council,19/01/2011,5105891166,2040.00,Avery Healthcare Cepen Lodge ,126733,SN14,Community Services,OP North Locality,Adult Residential Placements - Spot Purchase,Third Party Payments,REVENUE
http://statistics.data.gov.uk/id/local-authority/00HY,Wiltshire Council,19/01/2011,5105891310,2280.00,Avery Healthcare Cepen Lodge ,126733,SN14,Community Services,MH OP North Locality,Adult Residential Placements - Spot Purchase,Third Party Payments,REVENUE
http://statistics.data.gov.uk/id/local-authority/00HY,Wiltshire Council,19/01/2011,5105891337,2280.00,Avery Healthcare Cepen Lodge ,126733,SN14,Community Services,OP West Locality,Adult Residential Placements - Spot Purchase,Third Party Payments,REVENUE
http://statistics.data.gov.uk/id/local-authority/00HY,Wiltshire Council,19/01/2011,5105891384,2280.00,Avery Healthcare Cepen Lodge ,126733,SN14,Community Services,MH OP North Locality,Adult Residential Placements - Spot Purchase,Third Party Payments,REVENUE
http://statistics.data.gov.uk/id/local-authority/00HY,Wiltshire Council,19/01/2011,5105892606,1890.68,Avery Healthcare Cepen Lodge ,126733,SN14,Community Services,OP North Locality,Adult Residential Placements - Spot Purchase,Third Party Payments,REVENUE
http://statistics.data.gov.uk/id/local-authority/00HY,Wiltshire Council,19/01/2011,5105892610,2080.00,Avery Healthcare Cepen Lodge ,126733,SN14,Community Services,OP West Locality,Adult Residential Placements - Spot Purchase,Third Party Payments,REVENUE
http://statistics.data.gov.uk/id/local-authority/00HY,Wiltshire Council,19/01/2011,5105893045,2040.00,Avery Healthcare Cepen Lodge ,126733,SN14,Community Services,MH OP West Locality,Adult Residential Placements - Spot Purchase,Third Party Payments,REVENUE
http://statistics.data.gov.uk/id/local-authority/00HY,Wiltshire Council,19/01/2011,5105893047,2040.08,Avery Healthcare Cepen Lodge ,126733,SN14,Community Services,NOT IN USE N3,Adult Residential Placements - Spot Purchase,Third Party Payments,REVENUE
http://statistics.data.gov.uk/id/local-authority/00HY,Wiltshire Council,19/01/2011,5105893072,2280.00,Avery Healthcare Cepen Lodge ,126733,SN14,Community Services,MH OP North Locality,Adult Residential Placements - Spot Purchase,Third Party Payments,REVENUE
http://statistics.data.gov.uk/id/local-authority/00HY,Wiltshire Council,19/01/2011,5105893107,1890.68,Avery Healthcare Cepen Lodge ,126733,SN14,Community Services,OP North HL,Adult Care - Home Loan Costs,Capital charges and Expenditure,REVENUE
http://statistics.data.gov.uk/id/local-authority/00HY,Wiltshire Council,19/01/2011,5105893119,1890.68,Avery Healthcare Cepen Lodge ,126733,SN14,Community Services,OP North Locality,Adult Residential Placements - Spot Purchase,Third Party Payments,REVENUE
http://statistics.data.gov.uk/id/local-authority/00HY,Wiltshire Council,19/01/2011,5105893123,2040.00,Avery Healthcare Cepen Lodge ,126733,SN14,Community Services,MH OP North Locality,Adult Residential Placements - Spot Purchase,Third Party Payments,REVENUE
http://statistics.data.gov.uk/id/local-authority/00HY,Wiltshire Council,19/01/2011,5105893173,2280.00,Avery Healthcare Cepen Lodge ,126733,SN14,Community Services,OP West HL,Adult Care - Home Loan Costs,Capital charges and Expenditure,REVENUE
http://statistics.data.gov.uk/id/local-authority/00HY,Wiltshire Council,19/01/2011,5105893202,2040.00,Avery Healthcare Cepen Lodge ,126733,SN14,Community Services,MH OP North Locality,Adult Residential Placements - Spot Purchase,Third Party Payments,REVENUE
http://statistics.data.gov.uk/id/local-authority/00HY,Wiltshire Council,19/01/2011,5105893241,2800.00,Avery Healthcare Cepen Lodge ,126733,SN14,Community Services,OP North HL,Adult Care - Home Loan Costs,Capital charges and Expenditure,REVENUE
http://statistics.data.gov.uk/id/local-authority/00HY,Wiltshire Council,19/01/2011,5105893292,2144.00,Avery Healthcare Cepen Lodge ,126733,SN14,Community Services,OP North Locality,Adult Residential Placements - Spot Purchase,Third Party Payments,REVENUE
http://statistics.data.gov.uk/id/local-authority/00HY,Wiltshire Council,28/01/2011,5105896721,8378.90,Avery Healthcare Cepen Lodge ,126733,SN14,Community Services,OP West HL,Adult Care - Home Loan Costs,Capital charges and Expenditure,REVENUE
http://statistics.data.gov.uk/id/local-authority/00HY,Wiltshire Council,28/01/2011,5105896723,16976.38,Avery Healthcare Cepen Lodge ,126733,SN14,Community Services,OP West HL,Adult Care - Home Loan Costs,Capital charges and Expenditure,REVENUE
http://statistics.data.gov.uk/id/local-authority/00HY,Wiltshire Council,20/01/2011,1900495904,12205.46,Avery Healthcare Ltd- Langford Sali ,112676,NN4 ,Community Services,FNC,Adult Care Funded Nursing Care - Out of County Cli,Third Party Payments,REVENUE
http://statistics.data.gov.uk/id/local-authority/00HY,Wiltshire Council,19/01/2011,5105888314,2750.60,Avery Healthcare Ltd- Langford Sali ,112676,NN4 ,Community Services,OP South Locality,Adult Care Nursing Placements- Spot Purchase,Third Party Payments,REVENUE
http://statistics.data.gov.uk/id/local-authority/00HY,Wiltshire Council,19/01/2011,5105888315,528.02,Avery Healthcare Ltd- Langford Sali ,112676,NN4 ,Community Services,OP South FNC,Adult Care Funded Nursing Care - Loal Auth Clients,Third Party Payments,REVENUE
http://statistics.data.gov.uk/id/local-authority/00HY,Wiltshire Council,19/01/2011,5105889624,1909.24,Avery Healthcare Ltd- Langford Sali ,112676,NN4 ,Community Services,MH OP East Locality,Adult Care Nursing Placements- Spot Purchase,Third Party Payments,REVENUE
http://statistics.data.gov.uk/id/local-authority/00HY,Wiltshire Council,19/01/2011,5105889627,2475.92,Avery Healthcare Ltd- Langford Sali ,112676,NN4 ,Community Services,OP South Locality,Adult Care Nursing Placements- Spot Purchase,Third Party Payments,REVENUE
http://statistics.data.gov.uk/id/local-authority/00HY,Wiltshire Council,19/01/2011,5105889630,2265.28,Avery Healthcare Ltd- Langford Sali ,112676,NN4 ,Community Services,OP South Locality,Adult Care Nursing Placements- Spot Purchase,Third Party Payments,REVENUE
http://statistics.data.gov.uk/id/local-authority/00HY,Wiltshire Council,19/01/2011,5105889634,2395.24,Avery Healthcare Ltd- Langford Sali ,112676,NN4 ,Community Services,OP South Locality,Adult Care Nursing Placements- Spot Purchase,Third Party Payments,REVENUE
http://statistics.data.gov.uk/id/local-authority/00HY,Wiltshire Council,19/01/2011,5105889638,3000.00,Avery Healthcare Ltd- Langford Sali ,112676,NN4 ,Community Services,MH OP South Locality,Adult Residential Placements - Spot Purchase,Third Party Payments,REVENUE
http://statistics.data.gov.uk/id/local-authority/00HY,Wiltshire Council,19/01/2011,5105889639,2407.96,Avery Healthcare Ltd- Langford Sali ,112676,NN4 ,Community Services,MH OP South Locality,Adult Care Nursing Placements- Spot Purchase,Third Party Payments,REVENUE
http://statistics.data.gov.uk/id/local-authority/00HY,Wiltshire Council,19/01/2011,5105889642,2619.20,Avery Healthcare Ltd- Langford Sali ,112676,NN4 ,Community Services,MH OP South Locality,Adult Care Nursing Placements- Spot Purchase,Third Party Payments,REVENUE
http://statistics.data.gov.uk/id/local-authority/00HY,Wiltshire Council,19/01/2011,5105889645,2365.20,Avery Healthcare Ltd- Langford Sali ,112676,NN4 ,Community Services,OP South Locality,Adult Care Nursing Placements- Spot Purchase,Third Party Payments,REVENUE
http://statistics.data.gov.uk/id/local-authority/00HY,Wiltshire Council,19/01/2011,5105889648,2465.20,Avery Healthcare Ltd- Langford Sali ,112676,NN4 ,Community Services,OP South Locality,Adult Care Nursing Placements- Spot Purchase,Third Party Payments,REVENUE
http://statistics.data.gov.uk/id/local-authority/00HY,Wiltshire Council,19/01/2011,5105892168,2365.20,Avery Healthcare Ltd- Langford Sali ,112676,NN4 ,Community Services,OP South HL,Adult Care - Home Loan Costs,Capital charges and Expenditure,REVENUE
http://statistics.data.gov.uk/id/local-authority/00HY,Wiltshire Council,19/01/2011,5105893162,2265.20,Avery Healthcare Ltd- Langford Sali ,112676,NN4 ,Community Services,MH OP South Locality,Adult Care Nursing Placements- Spot Purchase,Third Party Payments,REVENUE
http://statistics.data.gov.uk/id/local-authority/00HY,Wiltshire Council,19/01/2011,5105893618,2265.20,Avery Healthcare Ltd- Langford Sali ,112676,NN4 ,Community Services,OP South Locality,Adult Care Nursing Placements- Spot Purchase,Third Party Payments,REVENUE
http://statistics.data.gov.uk/id/local-authority/00HY,Wiltshire Council,27/01/2011,5105896335,2565.20,Avery Healthcare Ltd- Langford Sali ,112676,NN4 ,Community Services,MH OP South Locality,Adult Nursing Respite - Spot,Third Party Payments,REVENUE
http://statistics.data.gov.uk/id/local-authority/00HY,Wiltshire Council,19/01/2011,5105892165,1832.40,Avery Homes Bristol Ltd ,113742,NN4 ,Community Services,OP North HL,Adult Care - Home Loan Costs,Capital charges and Expenditure,REVENUE
http://statistics.data.gov.uk/id/local-authority/00HY,Wiltshire Council,12/01/2011,1900478919,18536.23,Avon  and  Wiltshire Mental Health Partnership Nhs Tru,113745,BA1 ,Community Services,MH Management Fee,Contribution to Assistant Social Workers,Supplies and Services,REVENUE
http://statistics.data.gov.uk/id/local-authority/00HY,Wiltshire Council,28/01/2011,1900492017,1779.00,Avon  and  Wiltshire Mental Health Partnership Nhs Tru,113745,BA1 ,Community Services,MH Management Fee,Agency Staff,Employee Related,REVENUE
http://statistics.data.gov.uk/id/local-authority/00HY,Wiltshire Council,21/01/2011,1900496518,18536.23,Avon  and  Wiltshire Mental Health Partnership Nhs Tru,113745,BA1 ,Community Services,MH Management Fee,Contribution to Assistant Social Workers,Supplies and Services,REVENUE
http://statistics.data.gov.uk/id/local-authority/00HY,Wiltshire Council,21/01/2011,1900488043,4099.38,Avon and W Wilts MHC NHS Trust ,110216,BA1 ,Community Services,Hosp Grt Westn,Agency Staff,Employee Related,REVENUE
http://statistics.data.gov.uk/id/local-authority/00HY,Wiltshire Council,21/01/2011,1900488047,5702.39,Avon and W Wilts MHC NHS Trust ,110216,BA1 ,Community Services,Hosp RUH,Agency Staff,Employee Related,REVENUE
http://statistics.data.gov.uk/id/local-authority/00HY,Wiltshire Council,20/01/2011,1900495903,4434.61,Avon Care Homes Ltd - Sutton Veny H ,112612,BA5 ,Community Services,FNC,Adult Care Funded Nursing Care - Out of County Cli,Third Party Payments,REVENUE
http://statistics.data.gov.uk/id/local-authority/00HY,Wiltshire Council,19/01/2011,5105891233,1588.24,Avon Care Homes Ltd - Sutton Veny H ,112612,BA5 ,Community Services,OP West Locality,Adult Care Nursing Placements- Spot Purchase,Third Party Payments,REVENUE
http://statistics.data.gov.uk/id/local-authority/00HY,Wiltshire Council,19/01/2011,5105891236,1567.52,Avon Care Homes Ltd - Sutton Veny H ,112612,BA5 ,Community Services,OP West Locality,Adult Care Nursing Placements- Spot Purchase,Third Party Payments,REVENUE
http://statistics.data.gov.uk/id/local-authority/00HY,Wiltshire Council,19/01/2011,5105891238,1998.96,Avon Care Homes Ltd - Sutton Veny H ,112612,BA5 ,Community Services,OP South Locality,Adult Care Nursing Placements- Spot Purchase,Third Party Payments,REVENUE
http://statistics.data.gov.uk/id/local-authority/00HY,Wiltshire Council,19/01/2011,5105891241,1965.20,Avon Care Homes Ltd - Sutton Veny H ,112612,BA5 ,Community Services,OP South Locality,Adult Care Nursing Placements- Spot Purchase,Third Party Payments,REVENUE
http://statistics.data.gov.uk/id/local-authority/00HY,Wiltshire Council,19/01/2011,5105891244,3045.20,Avon Care Homes Ltd - Sutton Veny H ,112612,BA5 ,Community Services,OP South Locality,Adult Care Nursing Placements- Spot Purchase,Third Party Payments,REVENUE
http://statistics.data.gov.uk/id/local-authority/00HY,Wiltshire Council,19/01/2011,5105891388,1997.20,Avon Care Homes Ltd - Sutton Veny H ,112612,BA5 ,Community Services,OP West Locality,Adult Care Nursing Placements- Spot Purchase,Third Party Payments,REVENUE
http://statistics.data.gov.uk/id/local-authority/00HY,Wiltshire Council,19/01/2011,5105893416,1965.20,Avon Lea Nursing Home (Dorset) Ltd ,129950,DT4 ,Community Services,OP West Locality,Adult Care Nursing Placements- Spot Purchase,Third Party Payments,REVENUE
http://statistics.data.gov.uk/id/local-authority/00HY,Wiltshire Council,06/01/2011,5105884853,11400.00,Avon Valley College ,110224,SP4 ,Children & Education,LSC Young Apprentice,Other Professional Fees,Supplies and Services,REVENUE
http://statistics.data.gov.uk/id/local-authority/00HY,Wiltshire Council,04/01/2011,5105884854,5415.00,Avon Valley College ,110224,SP4 ,Children & Education,LSC Young Apprentice,Other Professional Fees,Supplies and Services,REVENUE
http://statistics.data.gov.uk/id/local-authority/00HY,Wiltshire Council,04/01/2011,5105884861,20000.00,Avon Valley College ,110224,SP4 ,Wiltshire Council,Wiltshire Council,Grants Paid to individuals for Tangible Benefits,Supplies and Services,CAPITAL
http://statistics.data.gov.uk/id/local-authority/00HY,Wiltshire Council,20/01/2011,1900495910,6830.45,Avoncare Homes Ltd - Wells Nursing ,114326,BA5 ,Community Services,FNC,Adult Care Funded Nursing Care - Out of County Cli,Third Party Payments,REVENUE
http://statistics.data.gov.uk/id/local-authority/00HY,Wiltshire Council,07/01/2011,5105887275,2081.20,Avoncare Homes Ltd - Wells Nursing ,114326,BA5 ,Community Services,OP North Locality,Adult Care Nursing Placements- Spot Purchase,Third Party Payments,REVENUE
http://statistics.data.gov.uk/id/local-authority/00HY,Wiltshire Council,07/01/2011,5105887278,3493.51,Avoncare Homes Ltd - Wells Nursing ,114326,BA5 ,Community Services,OP North Locality,Adult Care Nursing Placements- Spot Purchase,Third Party Payments,REVENUE
http://statistics.data.gov.uk/id/local-authority/00HY,Wiltshire Council,07/01/2011,5105887279,729.91,Avoncare Homes Ltd - Wells Nursing ,114326,BA5 ,Community Services,OP North FNC,Adult Care Funded Nursing Care - Loal Auth Clients,Third Party Payments,REVENUE
http://statistics.data.gov.uk/id/local-authority/00HY,Wiltshire Council,19/01/2011,5105889652,2081.20,Avoncare Homes Ltd - Wells Nursing ,114326,BA5 ,Community Services,OP North Locality,Adult Care Nursing Placements- Spot Purchase,Third Party Payments,REVENUE
http://statistics.data.gov.uk/id/local-authority/00HY,Wiltshire Council,19/01/2011,5105892594,2465.20,Avoncare Homes Ltd - Wells Nursing ,114326,BA5 ,Community Services,OP North Locality,Adult Care Nursing Placements- Spot Purchase,Third Party Payments,REVENUE
http://statistics.data.gov.uk/id/local-authority/00HY,Wiltshire Council,19/01/2011,5105893327,2288.00,Avoncare Homes Ltd - Wells Nursing ,114326,BA5 ,Community Services,OP North Locality,Adult Care Nursing Placements- Spot Purchase,Third Party Payments,REVENUE
http://statistics.data.gov.uk/id/local-authority/00HY,Wiltshire Council,19/01/2011,5105893523,2565.20,Avoncare Homes Ltd - Wells Nursing ,114326,BA5 ,Community Services,OP North Locality,Adult Care Nursing Placements- Spot Purchase,Third Party Payments,REVENUE
http://statistics.data.gov.uk/id/local-authority/00HY,Wiltshire Council,19/01/2011,5105889679,1939.36,Avonmead - use Vendor 110226 ,113063,SN10,Community Services,OP East Locality,Adult Care Nursing Placements- Block Contract,Third Party Payments,REVENUE
http://statistics.data.gov.uk/id/local-authority/00HY,Wiltshire Council,20/01/2011,1900495883,4962.80,Avonpark Care Centre Ltd ,110227,BA2 ,Community Services,FNC,Adult Care Funded Nursing Care - Out of County Cli,Third Party Payments,REVENUE
http://statistics.data.gov.uk/id/local-authority/00HY,Wiltshire Council,12/01/2011,5105888310,3415.79,Avonpark Care Centre Ltd ,110227,BA2 ,Community Services,MH OP West Locality,Adult Residential Placements - Spot Purchase,Third Party Payments,REVENUE
http://statistics.data.gov.uk/id/local-authority/00HY,Wiltshire Council,19/01/2011,5105889682,2058.64,Avonpark Care Centre Ltd ,110227,BA2 ,Community Services,MH OP East Locality,Adult Residential Placements - Spot Purchase,Third Party Payments,REVENUE
http://statistics.data.gov.uk/id/local-authority/00HY,Wiltshire Council,19/01/2011,5105889684,2850.40,Avonpark Care Centre Ltd ,110227,BA2 ,Community Services,MH OP West Locality,Adult Residential Placements - Spot Purchase,Third Party Payments,REVENUE
http://statistics.data.gov.uk/id/local-authority/00HY,Wiltshire Council,19/01/2011,5105889686,2568.12,Avonpark Care Centre Ltd ,110227,BA2 ,Community Services,MH OP West Locality,Adult Residential Placements - Spot Purchase,Third Party Payments,REVENUE
http://statistics.data.gov.uk/id/local-authority/00HY,Wiltshire Council,19/01/2011,5105891162,1980.00,Avonpark Care Centre Ltd ,110227,BA2 ,Community Services,MH OP West Locality,Adult Residential Placements - Spot Purchase,Third Party Payments,REVENUE
http://statistics.data.gov.uk/id/local-authority/00HY,Wiltshire Council,19/01/2011,5105891168,1952.00,Avonpark Care Centre Ltd ,110227,BA2 ,Community Services,MH OP West Locality,Adult Residential Placements - Spot Purchase,Third Party Payments,REVENUE
http://statistics.data.gov.uk/id/local-authority/00HY,Wiltshire Council,19/01/2011,5105891261,1880.00,Avonpark Care Centre Ltd ,110227,BA2 ,Community Services,OP West Locality,Adult Residential Placements - Spot Purchase,Third Party Payments,REVENUE
http://statistics.data.gov.uk/id/local-authority/00HY,Wiltshire Council,19/01/2011,5105891346,1952.00,Avonpark Care Centre Ltd ,110227,BA2 ,Community Services,MH OP West Locality,Adult Residential Placements - Spot Purchase,Third Party Payments,REVENUE
http://statistics.data.gov.uk/id/local-authority/00HY,Wiltshire Council,19/01/2011,5105891370,2165.20,Avonpark Care Centre Ltd ,110227,BA2 ,Community Services,OP East Locality,Adult Care Nursing Placements- Spot Purchase,Third Party Payments,REVENUE
http://statistics.data.gov.uk/id/local-authority/00HY,Wiltshire Council,19/01/2011,5105891407,1860.00,Avonpark Care Centre Ltd ,110227,BA2 ,Community Services,OP West Locality,Adult Residential Placements - Spot Purchase,Third Party Payments,REVENUE
http://statistics.data.gov.uk/id/local-authority/00HY,Wiltshire Council,19/01/2011,5105891411,2165.20,Avonpark Care Centre Ltd ,110227,BA2 ,Community Services,OP West Locality,Adult Care Nursing Placements- Spot Purchase,Third Party Payments,REVENUE
http://statistics.data.gov.uk/id/local-authority/00HY,Wiltshire Council,19/01/2011,5105891422,1860.00,Avonpark Care Centre Ltd ,110227,BA2 ,Community Services,OP West Locality,Adult Residential Placements - Spot Purchase,Third Party Payments,REVENUE
http://statistics.data.gov.uk/id/local-authority/00HY,Wiltshire Council,19/01/2011,5105892585,2000.00,Avonpark Care Centre Ltd ,110227,BA2 ,Community Services,MH OP West Locality,Adult Residential Placements - Spot Purchase,Third Party Payments,REVENUE
http://statistics.data.gov.uk/id/local-authority/00HY,Wiltshire Council,19/01/2011,5105893008,2000.00,Avonpark Care Centre Ltd ,110227,BA2 ,Community Services,OP West Locality,Adult Residential Placements - Spot Purchase,Third Party Payments,REVENUE
http://statistics.data.gov.uk/id/local-authority/00HY,Wiltshire Council,19/01/2011,5105893315,1920.00,Avonpark Care Centre Ltd ,110227,BA2 ,Community Services,MH OP West Locality,Adult Residential Placements - Spot Purchase,Third Party Payments,REVENUE
http://statistics.data.gov.uk/id/local-authority/00HY,Wiltshire Council,19/01/2011,5105893616,1952.00,Avonpark Care Centre Ltd ,110227,BA2 ,Community Services,MH OP West Locality,Adult Residential Placements - Spot Purchase,Third Party Payments,REVENUE
http://statistics.data.gov.uk/id/local-authority/00HY,Wiltshire Council,14/01/2011,5105887584,2895.50,Awareness Training Ltd ,113764,GL54,Community Services,ASC Workforce Dev,Internal Training Costs,Employee Related,REVENUE
http://statistics.data.gov.uk/id/local-authority/00HY,Wiltshire Council,06/01/2011,5105877550,2600.00,Axiell Ltd ,113771,NG8 ,Resources,Infrastructure,Hardware Purchases IT,Supplies and Services,REVENUE
http://statistics.data.gov.uk/id/local-authority/00HY,Wiltshire Council,17/01/2011,5105889135,28016.38,Axiell Ltd ,113771,NG8 ,Resources,Applications SuppLOB,ICT - Support arrangements,Supplies and Services,REVENUE
http://statistics.data.gov.uk/id/local-authority/00HY,Wiltshire Council,20/01/2011,5105885266,3680.00,Azzurri Communications Ltd ,101309,WS9 ,Neighbourhood & Planning,Devizes,Hardware Purchases IT,Supplies and Services,REVENUE
http://statistics.data.gov.uk/id/local-authority/00HY,Wiltshire Council,12/01/2011,5105888075,18400.00,Azzurri Communications Ltd ,101309,WS9 ,Wiltshire Council,Wiltshire Council,Hardware Purchases IT,Supplies and Services,CAPITAL
http://statistics.data.gov.uk/id/local-authority/00HY,Wiltshire Council,25/01/2011,1900497696,1000.00,B  and  K Cars ,101310,SN6 ,Neighbourhood & Planning,N&E Children w/Dis,Transport Contracts,Third Party Payments,REVENUE
http://statistics.data.gov.uk/id/local-authority/00HY,Wiltshire Council,25/01/2011,1900497765,870.00,B & M Windows  and  Doors Ltd ,101694,SP2 ,Neighbourhood & Planning,Housing Rprs Simdell,Premises Related Other Maintenance Costs,Premises Related,REVENUE
http://statistics.data.gov.uk/id/local-authority/00HY,Wiltshire Council,26/01/2011,1900498059,1030.00,B & M Windows  and  Doors Ltd ,101694,SP2 ,Neighbourhood & Planning,Housing Rprs Simdell,Premises Related Other Maintenance Costs,Premises Related,REVENUE
http://statistics.data.gov.uk/id/local-authority/00HY,Wiltshire Council,13/01/2011,1900492009,1910.00,B C Photographic ,113791,SN12,Children & Education,ChildrensRightsOffic,Special Events Funded by WC,Supplies and Services,REVENUE
http://statistics.data.gov.uk/id/local-authority/00HY,Wiltshire Council,14/01/2011,1900488674,7200.00,B Nowak ,113819,BA2 ,Community Services,One Off Resources,Consultants� Fees,Supplies and Services,REVENUE
http://statistics.data.gov.uk/id/local-authority/00HY,Wiltshire Council,11/01/2011,1900488707,2003.02,B P Estates Ltd ,113821,BA14,Resources,Investment Estate,Supplies & services related provisions,Supplies and Services,REVENUE
http://statistics.data.gov.uk/id/local-authority/00HY,Wiltshire Council,07/01/2011,5105887090,5222.40,B P Estates Ltd ,113821,BA14,Resources,WTP Office,Premises Rental / Hire Charges,Premises Related,REVENUE
http://statistics.data.gov.uk/id/local-authority/00HY,Wiltshire Council,21/01/2011,1900496589,619.42,B T Redcare ,113829,NW9 ,Neighbourhood & Planning,CCTV,Telephones - Landlines (incl fax),Supplies and Services,REVENUE
http://statistics.data.gov.uk/id/local-authority/00HY,Wiltshire Council,21/01/2011,1900496589,17032.00,B T Redcare ,113829,NW9 ,Wiltshire Council,Wiltshire Council,Highways Contracts - Other,Third Party Payments,CAPITAL
http://statistics.data.gov.uk/id/local-authority/00HY,Wiltshire Council,13/01/2011,1900492172,510.70,B Y B Travel Ltd ,101145,BA15,Neighbourhood & Planning,Public Transport,Transport Contracts,Third Party Payments,REVENUE
http://statistics.data.gov.uk/id/local-authority/00HY,Wiltshire Council,13/01/2011,1900492172,780.42,B Y B Travel Ltd ,101145,BA15,Neighbourhood & Planning,Mainstream Primary,Transport Contracts,Third Party Payments,REVENUE
http://statistics.data.gov.uk/id/local-authority/00HY,Wiltshire Council,13/01/2011,1900492172,780.42,B Y B Travel Ltd ,101145,BA15,Neighbourhood & Planning,Mainstream 16+ Sec,Transport Contracts,Third Party Payments,REVENUE
http://statistics.data.gov.uk/id/local-authority/00HY,Wiltshire Council,13/01/2011,1900492172,6243.31,B Y B Travel Ltd ,101145,BA15,Neighbourhood & Planning,Mainstream Secondary,Transport Contracts,Third Party Payments,REVENUE
http://statistics.data.gov.uk/id/local-authority/00HY,Wiltshire Council,13/01/2011,1900492181,663.00,B Y B Travel Ltd ,101145,BA15,Neighbourhood & Planning,Public Transport,Transport Contracts,Third Party Payments,REVENUE
http://statistics.data.gov.uk/id/local-authority/00HY,Wiltshire Council,13/01/2011,1900492182,663.00,B Y B Travel Ltd ,101145,BA15,Neighbourhood & Planning,Public Transport,Transport Contracts,Third Party Payments,REVENUE
http://statistics.data.gov.uk/id/local-authority/00HY,Wiltshire Council,19/01/2011,1900494675,2384.24,B Y B Travel Ltd ,101145,BA15,Neighbourhood & Planning,Mainstream 16+ FE,Transport Contracts,Third Party Payments,REVENUE
http://statistics.data.gov.uk/id/local-authority/00HY,Wiltshire Council,19/01/2011,5105889702,2117.44,B&M Care ,110236,HP2 ,Community Services,OP North Locality,Adult Residential Placements - Spot Purchase,Third Party Payments,REVENUE
http://statistics.data.gov.uk/id/local-authority/00HY,Wiltshire Council,05/01/2011,5105885129,1073.25,Badenoch & Clark ,124131,BS1 ,Resources,Revs&Bens-Housng Ben,Agency Staff,Employee Related,REVENUE
http://statistics.data.gov.uk/id/local-authority/00HY,Wiltshire Council,04/01/2011,5105884680,585.94,Bailey Employment Services Ltd ,100204,SN12,Community Services,OP North Locality,Adult Domiciliary Care - Mileage,Third Party Payments,REVENUE
http://statistics.data.gov.uk/id/local-authority/00HY,Wiltshire Council,12/01/2011,5105888087,798.61,Bailey Employment Services Ltd ,100204,SN12,Neighbourhood & Planning,Nth Operats - Waste,Agency Staff,Employee Related,REVENUE
http://statistics.data.gov.uk/id/local-authority/00HY,Wiltshire Council,12/01/2011,5105888087,798.61,Bailey Employment Services Ltd ,100204,SN12,Neighbourhood & Planning,North Depots,Agency Staff,Employee Related,REVENUE
http://statistics.data.gov.uk/id/local-authority/00HY,Wiltshire Council,12/01/2011,5105888088,2144.91,Bailey Employment Services Ltd ,100204,SN12,Neighbourhood & Planning,Nth Operats - Waste,Agency Staff,Employee Related,REVENUE
http://statistics.data.gov.uk/id/local-authority/00HY,Wiltshire Council,12/01/2011,5105888088,2144.91,Bailey Employment Services Ltd ,100204,SN12,Neighbourhood & Planning,North Depots,Agency Staff,Employee Related,REVENUE
http://statistics.data.gov.uk/id/local-authority/00HY,Wiltshire Council,12/01/2011,5105888089,1887.84,Bailey Employment Services Ltd ,100204,SN12,Neighbourhood & Planning,Nth Operats - Waste,Agency Staff,Employee Related,REVENUE
http://statistics.data.gov.uk/id/local-authority/00HY,Wiltshire Council,12/01/2011,5105888089,1887.84,Bailey Employment Services Ltd ,100204,SN12,Neighbourhood & Planning,North Depots,Agency Staff,Employee Related,REVENUE
http://statistics.data.gov.uk/id/local-authority/00HY,Wiltshire Council,12/01/2011,5105888130,1762.44,Bailey Employment Services Ltd ,100204,SN12,Neighbourhood & Planning,Nth Operats - Waste,Agency Staff,Employee Related,REVENUE
http://statistics.data.gov.uk/id/local-authority/00HY,Wiltshire Council,12/01/2011,5105888130,1762.44,Bailey Employment Services Ltd ,100204,SN12,Neighbourhood & Planning,North Depots,Agency Staff,Employee Related,REVENUE
http://statistics.data.gov.uk/id/local-authority/00HY,Wiltshire Council,12/01/2011,5105888131,733.35,Bailey Employment Services Ltd ,100204,SN12,Neighbourhood & Planning,Nth Operats - Waste,Agency Staff,Employee Related,REVENUE
http://statistics.data.gov.uk/id/local-authority/00HY,Wiltshire Council,12/01/2011,5105888131,733.35,Bailey Employment Services Ltd ,100204,SN12,Neighbourhood & Planning,North Depots,Agency Staff,Employee Related,REVENUE
http://statistics.data.gov.uk/id/local-authority/00HY,Wiltshire Council,12/01/2011,5105888132,505.76,Bailey Employment Services Ltd ,100204,SN12,Neighbourhood & Planning,Nth Operats - Waste,Agency Staff,Employee Related,REVENUE
http://statistics.data.gov.uk/id/local-authority/00HY,Wiltshire Council,12/01/2011,5105888132,505.76,Bailey Employment Services Ltd ,100204,SN12,Neighbourhood & Planning,North Depots,Agency Staff,Employee Related,REVENUE
http://statistics.data.gov.uk/id/local-authority/00HY,Wiltshire Council,12/01/2011,5105888133,1831.98,Bailey Employment Services Ltd ,100204,SN12,Neighbourhood & Planning,Nth Operats - Waste,Agency Staff,Employee Related,REVENUE
http://statistics.data.gov.uk/id/local-authority/00HY,Wiltshire Council,12/01/2011,5105888133,1831.98,Bailey Employment Services Ltd ,100204,SN12,Neighbourhood & Planning,North Depots,Agency Staff,Employee Related,REVENUE
http://statistics.data.gov.uk/id/local-authority/00HY,Wiltshire Council,12/01/2011,5105888134,1933.44,Bailey Employment Services Ltd ,100204,SN12,Neighbourhood & Planning,Nth Operats - Waste,Agency Staff,Employee Related,REVENUE
http://statistics.data.gov.uk/id/local-authority/00HY,Wiltshire Council,12/01/2011,5105888134,1933.44,Bailey Employment Services Ltd ,100204,SN12,Neighbourhood & Planning,North Depots,Agency Staff,Employee Related,REVENUE
http://statistics.data.gov.uk/id/local-authority/00HY,Wiltshire Council,12/01/2011,5105888135,691.70,Bailey Employment Services Ltd ,100204,SN12,Neighbourhood & Planning,Nth Operats - Waste,Agency Staff,Employee Related,REVENUE
http://statistics.data.gov.uk/id/local-authority/00HY,Wiltshire Council,12/01/2011,5105888135,691.70,Bailey Employment Services Ltd ,100204,SN12,Neighbourhood & Planning,North Depots,Agency Staff,Employee Related,REVENUE
http://statistics.data.gov.uk/id/local-authority/00HY,Wiltshire Council,18/01/2011,5105885232,55766.94,Balfour Beatty Infrastructure Ltd ,113860,RG23,Neighbourhood & Planning,Street Lighting-Mtce,Highways - Other Materials,Supplies and Services,REVENUE
http://statistics.data.gov.uk/id/local-authority/00HY,Wiltshire Council,19/01/2011,5105889704,2200.00,Barchester - Henford Hse - Use 1111 ,110252,SW10,Community Services,OP West Locality,Adult Residential Placements - Spot Purchase,Third Party Payments,REVENUE
http://statistics.data.gov.uk/id/local-authority/00HY,Wiltshire Council,19/01/2011,5105891386,2379.60,Barchester Healthcare ,128873,ME1 ,Community Services,OP South Locality,Adult Care Nursing Placements- Spot Purchase,Third Party Payments,REVENUE
http://statistics.data.gov.uk/id/local-authority/00HY,Wiltshire Council,25/01/2011,5105895150,4000.00,Barchester Healthcare - Oaklands ,129995,CB25,Community Services,MH OA East HL,Adult Care - Home Loan Costs,Capital charges and Expenditure,REVENUE
http://statistics.data.gov.uk/id/local-authority/00HY,Wiltshire Council,20/01/2011,1900495916,2194.00,Barchester Healthcare - The White L ,121961,SN5 ,Community Services,FNC,Adult Care Funded Nursing Care - Out of County Cli,Third Party Payments,REVENUE
http://statistics.data.gov.uk/id/local-authority/00HY,Wiltshire Council,19/01/2011,5105892597,2600.00,Barchester Healthcare - The White L ,121961,SN5 ,Community Services,OP North Locality,Adult Residential Placements - Spot Purchase,Third Party Payments,REVENUE
http://statistics.data.gov.uk/id/local-authority/00HY,Wiltshire Council,19/01/2011,5105892600,2365.20,Barchester Healthcare - The White L ,121961,SN5 ,Community Services,OP North Locality,Adult Care Nursing Placements- Spot Purchase,Third Party Payments,REVENUE
http://statistics.data.gov.uk/id/local-authority/00HY,Wiltshire Council,19/01/2011,5105892775,1392.04,Barchester Healthcare - The White L ,121961,SN5 ,Community Services,MH OP North Locality,Adult Care Nursing Placements- Spot Purchase,Third Party Payments,REVENUE
http://statistics.data.gov.uk/id/local-authority/00HY,Wiltshire Council,19/01/2011,5105892778,2887.08,Barchester Healthcare - The White L ,121961,SN5 ,Community Services,MH AOWA West,Adult Care Nursing Placements- Spot Purchase,Third Party Payments,REVENUE
http://statistics.data.gov.uk/id/local-authority/00HY,Wiltshire Council,19/01/2011,5105892780,1448.16,Barchester Healthcare - The White L ,121961,SN5 ,Community Services,OP North Locality,Adult Care Nursing Placements- Spot Purchase,Third Party Payments,REVENUE
http://statistics.data.gov.uk/id/local-authority/00HY,Wiltshire Council,19/01/2011,5105892783,3199.44,Barchester Healthcare - The White L ,121961,SN5 ,Community Services,OP North Locality,Adult Care Nursing Placements- Spot Purchase,Third Party Payments,REVENUE
http://statistics.data.gov.uk/id/local-authority/00HY,Wiltshire Council,19/01/2011,5105892785,1385.28,Barchester Healthcare - The White L ,121961,SN5 ,Community Services,OP North Locality,Adult Care Nursing Placements- Spot Purchase,Third Party Payments,REVENUE
http://statistics.data.gov.uk/id/local-authority/00HY,Wiltshire Council,19/01/2011,5105892788,1511.96,Barchester Healthcare - The White L ,121961,SN5 ,Community Services,OP North Locality,Adult Care Nursing Placements- Spot Purchase,Third Party Payments,REVENUE
http://statistics.data.gov.uk/id/local-authority/00HY,Wiltshire Council,19/01/2011,5105892791,1675.24,Barchester Healthcare - The White L ,121961,SN5 ,Community Services,OP North Locality,Adult Residential Placements - Spot Purchase,Third Party Payments,REVENUE
http://statistics.data.gov.uk/id/local-authority/00HY,Wiltshire Council,19/01/2011,5105892793,3460.00,Barchester Healthcare - The White L ,121961,SN5 ,Community Services,MH OP North Locality,Adult Residential Placements - Spot Purchase,Third Party Payments,REVENUE
http://statistics.data.gov.uk/id/local-authority/00HY,Wiltshire Council,19/01/2011,5105893058,2485.20,Barchester Healthcare - The White L ,121961,SN5 ,Community Services,OP North Locality,Adult Care Nursing Placements- Spot Purchase,Third Party Payments,REVENUE
http://statistics.data.gov.uk/id/local-authority/00HY,Wiltshire Council,19/01/2011,5105893208,3245.20,Barchester Healthcare - The White L ,121961,SN5 ,Community Services,MH OA East HL,Adult Care - Home Loan Costs,Capital charges and Expenditure,REVENUE
http://statistics.data.gov.uk/id/local-authority/00HY,Wiltshire Council,19/01/2011,5105893348,3919.20,Barchester Healthcare - The White L ,121961,SN5 ,Community Services,OP North HL,Adult Care - Home Loan Costs,Capital charges and Expenditure,REVENUE
http://statistics.data.gov.uk/id/local-authority/00HY,Wiltshire Council,19/01/2011,5105893457,3205.20,Barchester Healthcare - The White L ,121961,SN5 ,Community Services,OP North HL,Adult Care - Home Loan Costs,Capital charges and Expenditure,REVENUE
http://statistics.data.gov.uk/id/local-authority/00HY,Wiltshire Council,19/01/2011,5105893015,3380.00,Barchester Healthcare - The White L Please Use 121961,110701,SN5 ,Community Services,MH OP North Locality,Adult Care Nursing Placements- Spot Purchase,Third Party Payments,REVENUE
http://statistics.data.gov.uk/id/local-authority/00HY,Wiltshire Council,19/01/2011,5105893180,3600.00,Barchester Healthcare Homes Ltd ,113874,GL7 ,Community Services,MH OA East HL,Adult Care - Home Loan Costs,Capital charges and Expenditure,REVENUE
http://statistics.data.gov.uk/id/local-authority/00HY,Wiltshire Council,19/01/2011,5105892579,3365.20,Barchester Healthcare Ltd - Rothsay Grange,127635,SP11,Community Services,OP South Locality,Adult Care Nursing Placements- Spot Purchase,Third Party Payments,REVENUE
http://statistics.data.gov.uk/id/local-authority/00HY,Wiltshire Council,19/01/2011,5105893395,3365.20,Barchester Healthcare Ltd - Rothsay Grange,127635,SP11,Community Services,MH OA South HL,Adult Care - Home Loan Costs,Capital charges and Expenditure,REVENUE
http://statistics.data.gov.uk/id/local-authority/00HY,Wiltshire Council,20/01/2011,1900495894,15530.80,Barchester Healthcare Ltd (Henford ,111113,BA12,Community Services,FNC,Adult Care Funded Nursing Care - Out of County Cli,Third Party Payments,REVENUE
http://statistics.data.gov.uk/id/local-authority/00HY,Wiltshire Council,21/01/2011,1900496559,1115.73,Barchester Healthcare Ltd (Henford ,111113,BA12,Community Services,OP North Locality,Adult Care Nursing Placements- Spot Purchase,Third Party Payments,REVENUE
http://statistics.data.gov.uk/id/local-authority/00HY,Wiltshire Council,19/01/2011,5105891351,2465.20,Barchester Healthcare Ltd (Henford ,111113,BA12,Community Services,OP South Locality,Adult Care Nursing Placements- Spot Purchase,Third Party Payments,REVENUE
http://statistics.data.gov.uk/id/local-authority/00HY,Wiltshire Council,19/01/2011,5105891363,2965.20,Barchester Healthcare Ltd (Henford ,111113,BA12,Community Services,OP West Locality,Adult Care Nursing Placements- Spot Purchase,Third Party Payments,REVENUE
http://statistics.data.gov.uk/id/local-authority/00HY,Wiltshire Council,19/01/2011,5105891366,1680.00,Barchester Healthcare Ltd (Henford ,111113,BA12,Community Services,OP West Locality,Adult Care Nursing Placements- Spot Purchase,Third Party Payments,REVENUE
http://statistics.data.gov.uk/id/local-authority/00HY,Wiltshire Council,19/01/2011,5105892490,1470.76,Barchester Healthcare Ltd (Henford ,111113,BA12,Community Services,OP West Locality,Adult Care Nursing Placements- Spot Purchase,Third Party Payments,REVENUE
http://statistics.data.gov.uk/id/local-authority/00HY,Wiltshire Council,19/01/2011,5105892493,2008.40,Barchester Healthcare Ltd (Henford ,111113,BA12,Community Services,MH OP West Locality,Adult Care Nursing Placements- Spot Purchase,Third Party Payments,REVENUE
http://statistics.data.gov.uk/id/local-authority/00HY,Wiltshire Council,19/01/2011,5105892496,2415.60,Barchester Healthcare Ltd (Henford ,111113,BA12,Community Services,PI West Locality,Adult Residential Placements - Spot Purchase,Third Party Payments,REVENUE
http://statistics.data.gov.uk/id/local-authority/00HY,Wiltshire Council,19/01/2011,5105892498,2765.20,Barchester Healthcare Ltd (Henford ,111113,BA12,Community Services,MH AOWA West,Adult Care Nursing Placements- Spot Purchase,Third Party Payments,REVENUE
http://statistics.data.gov.uk/id/local-authority/00HY,Wiltshire Council,19/01/2011,5105892500,2165.20,Barchester Healthcare Ltd (Henford ,111113,BA12,Community Services,MH OP West Locality,Adult Care Nursing Placements- Spot Purchase,Third Party Payments,REVENUE
http://statistics.data.gov.uk/id/local-authority/00HY,Wiltshire Council,19/01/2011,5105892503,2565.20,Barchester Healthcare Ltd (Henford ,111113,BA12,Community Services,OP West Locality,Adult Care Nursing Placements- Spot Purchase,Third Party Payments,REVENUE
http://statistics.data.gov.uk/id/local-authority/00HY,Wiltshire Council,19/01/2011,5105892506,2965.20,Barchester Healthcare Ltd (Henford ,111113,BA12,Community Services,OP West Locality,Adult Care Nursing Placements- Spot Purchase,Third Party Payments,REVENUE
http://statistics.data.gov.uk/id/local-authority/00HY,Wiltshire Council,19/01/2011,5105893346,2965.20,Barchester Healthcare Ltd (Henford ,111113,BA12,Community Services,OP West HL,Adult Care - Home Loan Costs,Capital charges and Expenditure,REVENUE
http://statistics.data.gov.uk/id/local-authority/00HY,Wiltshire Council,19/01/2011,5105893419,1997.20,Barchester Healthcare Ltd (Henford ,111113,BA12,Community Services,OP West Locality,Adult Care Nursing Placements- Spot Purchase,Third Party Payments,REVENUE
http://statistics.data.gov.uk/id/local-authority/00HY,Wiltshire Council,20/01/2011,1900495897,27539.48,Barchester Healthcare Ltd (Milford ,111597,SP1 ,Community Services,FNC,Adult Care Funded Nursing Care - Out of County Cli,Third Party Payments,REVENUE
http://statistics.data.gov.uk/id/local-authority/00HY,Wiltshire Council,19/01/2011,5105891332,2165.20,Barchester Healthcare Ltd (Milford ,111597,SP1 ,Community Services,OP South Locality,Adult Care Nursing Placements- Spot Purchase,Third Party Payments,REVENUE
http://statistics.data.gov.uk/id/local-authority/00HY,Wiltshire Council,19/01/2011,5105891359,2565.20,Barchester Healthcare Ltd (Milford ,111597,SP1 ,Community Services,OP South Locality,Adult Care Nursing Placements- Spot Purchase,Third Party Payments,REVENUE
http://statistics.data.gov.uk/id/local-authority/00HY,Wiltshire Council,19/01/2011,5105892429,1413.24,Barchester Healthcare Ltd (Milford ,111597,SP1 ,Community Services,OP South Locality,Adult Care Nursing Placements- Spot Purchase,Third Party Payments,REVENUE
http://statistics.data.gov.uk/id/local-authority/00HY,Wiltshire Council,19/01/2011,5105892432,2498.12,Barchester Healthcare Ltd (Milford ,111597,SP1 ,Community Services,OP South Locality,Adult Care Nursing Placements- Spot Purchase,Third Party Payments,REVENUE
http://statistics.data.gov.uk/id/local-authority/00HY,Wiltshire Council,19/01/2011,5105892435,2456.68,Barchester Healthcare Ltd (Milford ,111597,SP1 ,Community Services,OP South Locality,Adult Care Nursing Placements- Spot Purchase,Third Party Payments,REVENUE
http://statistics.data.gov.uk/id/local-authority/00HY,Wiltshire Council,19/01/2011,5105892438,1633.08,Barchester Healthcare Ltd (Milford ,111597,SP1 ,Community Services,OP South Locality,Adult Care Nursing Placements- Spot Purchase,Third Party Payments,REVENUE
http://statistics.data.gov.uk/id/local-authority/00HY,Wiltshire Council,19/01/2011,5105892441,2078.04,Barchester Healthcare Ltd (Milford ,111597,SP1 ,Community Services,OP South Locality,Adult Care Nursing Placements- Spot Purchase,Third Party Payments,REVENUE
http://statistics.data.gov.uk/id/local-authority/00HY,Wiltshire Council,19/01/2011,5105892444,2212.00,Barchester Healthcare Ltd (Milford ,111597,SP1 ,Community Services,MH OP South Locality,Adult Care Nursing Placements- Spot Purchase,Third Party Payments,REVENUE
http://statistics.data.gov.uk/id/local-authority/00HY,Wiltshire Council,19/01/2011,5105892447,1862.24,Barchester Healthcare Ltd (Milford ,111597,SP1 ,Community Services,OP South Locality,Adult Care Nursing Placements- Spot Purchase,Third Party Payments,REVENUE
http://statistics.data.gov.uk/id/local-authority/00HY,Wiltshire Council,19/01/2011,5105892451,2551.64,Barchester Healthcare Ltd (Milford ,111597,SP1 ,Community Services,OP South Locality,Adult Care Nursing Placements- Spot Purchase,Third Party Payments,REVENUE
http://statistics.data.gov.uk/id/local-authority/00HY,Wiltshire Council,19/01/2011,5105892454,3512.12,Barchester Healthcare Ltd (Milford ,111597,SP1 ,Community Services,CTPLD County S75 65+,Adult Care Nursing Placements- Spot Purchase,Third Party Payments,REVENUE
http://statistics.data.gov.uk/id/local-authority/00HY,Wiltshire Council,19/01/2011,5105892456,2287.44,Barchester Healthcare Ltd (Milford ,111597,SP1 ,Community Services,OP South Locality,Adult Care Nursing Placements- Spot Purchase,Third Party Payments,REVENUE
http://statistics.data.gov.uk/id/local-authority/00HY,Wiltshire Council,19/01/2011,5105892459,2619.20,Barchester Healthcare Ltd (Milford ,111597,SP1 ,Community Services,OP South Locality,Adult Care Nursing Placements- Spot Purchase,Third Party Payments,REVENUE
http://statistics.data.gov.uk/id/local-authority/00HY,Wiltshire Council,19/01/2011,5105892462,1812.04,Barchester Healthcare Ltd (Milford ,111597,SP1 ,Community Services,MH OP South Locality,Adult Care Nursing Placements- Spot Purchase,Third Party Payments,REVENUE
http://statistics.data.gov.uk/id/local-authority/00HY,Wiltshire Council,19/01/2011,5105892465,2741.36,Barchester Healthcare Ltd (Milford ,111597,SP1 ,Community Services,OP South Locality,Adult Care Nursing Placements- Spot Purchase,Third Party Payments,REVENUE
http://statistics.data.gov.uk/id/local-authority/00HY,Wiltshire Council,19/01/2011,5105892468,2619.20,Barchester Healthcare Ltd (Milford ,111597,SP1 ,Community Services,OP South Locality,Adult Care Nursing Placements- Spot Purchase,Third Party Payments,REVENUE
http://statistics.data.gov.uk/id/local-authority/00HY,Wiltshire Council,19/01/2011,5105892471,2619.20,Barchester Healthcare Ltd (Milford ,111597,SP1 ,Community Services,MH OP South Locality,Adult Care Nursing Placements- Spot Purchase,Third Party Payments,REVENUE
http://statistics.data.gov.uk/id/local-authority/00HY,Wiltshire Council,19/01/2011,5105892474,2705.76,Barchester Healthcare Ltd (Milford ,111597,SP1 ,Community Services,PI South Locality,Adult Care Nursing Placements- Spot Purchase,Third Party Payments,REVENUE
http://statistics.data.gov.uk/id/local-authority/00HY,Wiltshire Council,19/01/2011,5105892478,2775.20,Barchester Healthcare Ltd (Milford ,111597,SP1 ,Community Services,OP South Locality,Adult Care Nursing Placements- Spot Purchase,Third Party Payments,REVENUE
http://statistics.data.gov.uk/id/local-authority/00HY,Wiltshire Council,19/01/2011,5105892481,2565.20,Barchester Healthcare Ltd (Milford ,111597,SP1 ,Community Services,OP South Locality,Adult Care Nursing Placements- Spot Purchase,Third Party Payments,REVENUE
http://statistics.data.gov.uk/id/local-authority/00HY,Wiltshire Council,19/01/2011,5105892484,2165.20,Barchester Healthcare Ltd (Milford ,111597,SP1 ,Community Services,OP North Locality,Adult Care Nursing Placements- Spot Purchase,Third Party Payments,REVENUE
http://statistics.data.gov.uk/id/local-authority/00HY,Wiltshire Council,19/01/2011,5105892487,2177.20,Barchester Healthcare Ltd (Milford ,111597,SP1 ,Community Services,MH OP South Locality,Adult Care Nursing Placements- Spot Purchase,Third Party Payments,REVENUE
http://statistics.data.gov.uk/id/local-authority/00HY,Wiltshire Council,19/01/2011,5105893152,2445.20,Barchester Healthcare Ltd (Milford ,111597,SP1 ,Community Services,OP South Locality,Adult Care Nursing Placements- Spot Purchase,Third Party Payments,REVENUE
http://statistics.data.gov.uk/id/local-authority/00HY,Wiltshire Council,19/01/2011,5105893365,2365.20,Barchester Healthcare Ltd (Milford ,111597,SP1 ,Community Services,OP South Locality,Adult Care Nursing Placements- Spot Purchase,Third Party Payments,REVENUE
http://statistics.data.gov.uk/id/local-authority/00HY,Wiltshire Council,19/01/2011,5105893385,2445.20,Barchester Healthcare Ltd (Milford ,111597,SP1 ,Community Services,OP South Locality,Adult Care Nursing Placements- Spot Purchase,Third Party Payments,REVENUE
http://statistics.data.gov.uk/id/local-authority/00HY,Wiltshire Council,13/01/2011,5105888595,2465.20,Barchester Healthcare Ltd- The Wing ,121969,BA14,Community Services,OP West Locality,Adult Care Nursing Placements- Spot Purchase,Third Party Payments,REVENUE
http://statistics.data.gov.uk/id/local-authority/00HY,Wiltshire Council,13/01/2011,5105888597,1490.88,Barchester Healthcare Ltd- The Wing ,121969,BA14,Community Services,OP West FNC,Adult Care Funded Nursing Care - Loal Auth Clients,Third Party Payments,REVENUE
http://statistics.data.gov.uk/id/local-authority/00HY,Wiltshire Council,13/01/2011,5105888598,8451.84,Barchester Healthcare Ltd- The Wing ,121969,BA14,Community Services,OP West Locality,Adult Care Nursing Placements- Spot Purchase,Third Party Payments,REVENUE
http://statistics.data.gov.uk/id/local-authority/00HY,Wiltshire Council,19/01/2011,5105889706,2549.68,Barchester Healthcare Ltd- The Wing ,121969,BA14,Community Services,CTPLD County CIC 65+,Adult Care Nursing Placements- Spot Purchase,Third Party Payments,REVENUE
http://statistics.data.gov.uk/id/local-authority/00HY,Wiltshire Council,19/01/2011,5105889709,2415.60,Barchester Healthcare Ltd- The Wing ,121969,BA14,Community Services,OP West Locality,Adult Care Nursing Placements- Spot Purchase,Third Party Payments,REVENUE
http://statistics.data.gov.uk/id/local-authority/00HY,Wiltshire Council,19/01/2011,5105889713,2161.80,Barchester Healthcare Ltd- The Wing ,121969,BA14,Community Services,OP West Locality,Adult Care Nursing Placements- Spot Purchase,Third Party Payments,REVENUE
http://statistics.data.gov.uk/id/local-authority/00HY,Wiltshire Council,19/01/2011,5105889716,1659.24,Barchester Healthcare Ltd- The Wing ,121969,BA14,Community Services,OP West Locality,Adult Care Nursing Placements- Spot Purchase,Third Party Payments,REVENUE
http://statistics.data.gov.uk/id/local-authority/00HY,Wiltshire Council,19/01/2011,5105889719,2619.20,Barchester Healthcare Ltd- The Wing ,121969,BA14,Community Services,MH OP West Locality,Adult Care Nursing Placements- Spot Purchase,Third Party Payments,REVENUE
http://statistics.data.gov.uk/id/local-authority/00HY,Wiltshire Council,19/01/2011,5105889722,2968.24,Barchester Healthcare Ltd- The Wing ,121969,BA14,Community Services,MH OP South Locality,Adult Care Nursing Placements- Spot Purchase,Third Party Payments,REVENUE
http://statistics.data.gov.uk/id/local-authority/00HY,Wiltshire Council,19/01/2011,5105889725,2365.20,Barchester Healthcare Ltd- The Wing ,121969,BA14,Community Services,MH OP West Locality,Adult Care Nursing Placements- Spot Purchase,Third Party Payments,REVENUE
http://statistics.data.gov.uk/id/local-authority/00HY,Wiltshire Council,19/01/2011,5105889728,2565.20,Barchester Healthcare Ltd- The Wing ,121969,BA14,Community Services,MH OP West Locality,Adult Care Nursing Placements- Spot Purchase,Third Party Payments,REVENUE
http://statistics.data.gov.uk/id/local-authority/00HY,Wiltshire Council,19/01/2011,5105889731,3365.20,Barchester Healthcare Ltd- The Wing ,121969,BA14,Community Services,MH OP West Locality,Adult Care Nursing Placements- Spot Purchase,Third Party Payments,REVENUE
http://statistics.data.gov.uk/id/local-authority/00HY,Wiltshire Council,19/01/2011,5105893004,2465.20,Barchester Healthcare Ltd- The Wing ,121969,BA14,Community Services,MH OP West Locality,Adult Care Nursing Placements- Spot Purchase,Third Party Payments,REVENUE
http://statistics.data.gov.uk/id/local-authority/00HY,Wiltshire Council,19/01/2011,5105893055,2465.20,Barchester Healthcare Ltd- The Wing ,121969,BA14,Community Services,MH OP West Locality,Adult Care Nursing Placements- Spot Purchase,Third Party Payments,REVENUE
http://statistics.data.gov.uk/id/local-authority/00HY,Wiltshire Council,19/01/2011,5105893188,3065.20,Barchester Healthcare Ltd- The Wing ,121969,BA14,Community Services,OP West Locality,Adult Care Nursing Placements- Spot Purchase,Third Party Payments,REVENUE
http://statistics.data.gov.uk/id/local-authority/00HY,Wiltshire Council,19/01/2011,5105893227,3545.20,Barchester Healthcare Ltd- The Wing ,121969,BA14,Community Services,OP West HL,Adult Care - Home Loan Costs,Capital charges and Expenditure,REVENUE
http://statistics.data.gov.uk/id/local-authority/00HY,Wiltshire Council,19/01/2011,5105893268,2465.20,Barchester Healthcare Ltd- The Wing ,121969,BA14,Community Services,MH OP West Locality,Adult Care Nursing Placements- Spot Purchase,Third Party Payments,REVENUE
http://statistics.data.gov.uk/id/local-authority/00HY,Wiltshire Council,19/01/2011,5105893392,1997.20,Barchester Healthcare Ltd- The Wing ,121969,BA14,Community Services,OP West Locality,Adult Care Nursing Placements- Spot Purchase,Third Party Payments,REVENUE
http://statistics.data.gov.uk/id/local-authority/00HY,Wiltshire Council,19/01/2011,5105893426,2465.20,Barchester Healthcare Ltd- The Wing ,121969,BA14,Community Services,OP West Locality,Adult Care Nursing Placements- Spot Purchase,Third Party Payments,REVENUE
http://statistics.data.gov.uk/id/local-authority/00HY,Wiltshire Council,19/01/2011,5105893470,2565.20,Barchester Healthcare Ltd- The Wing ,121969,BA14,Community Services,OP West Locality,Adult Care Nursing Placements- Spot Purchase,Third Party Payments,REVENUE
http://statistics.data.gov.uk/id/local-authority/00HY,Wiltshire Council,19/01/2011,5105893571,15391.20,Barchester Healthcare Ltd- The Wing ,121969,BA14,Community Services,MH OP West Locality,Adult Care Nursing Placements- Spot Purchase,Third Party Payments,REVENUE
http://statistics.data.gov.uk/id/local-authority/00HY,Wiltshire Council,19/01/2011,5105893573,2608.80,Barchester Healthcare Ltd- The Wing ,121969,BA14,Community Services,MH OA West FNC,Adult Care Funded Nursing Care - Loal Auth Clients,Third Party Payments,REVENUE
http://statistics.data.gov.uk/id/local-authority/00HY,Wiltshire Council,19/01/2011,5105893574,2565.20,Barchester Healthcare Ltd- The Wing ,121969,BA14,Community Services,MH OP West Locality,Adult Care Nursing Placements- Spot Purchase,Third Party Payments,REVENUE
http://statistics.data.gov.uk/id/local-authority/00HY,Wiltshire Council,19/01/2011,5105893623,2465.20,Barchester Healthcare Ltd- The Wing ,121969,BA14,Community Services,OP West Locality,Adult Care Nursing Placements- Spot Purchase,Third Party Payments,REVENUE
http://statistics.data.gov.uk/id/local-authority/00HY,Wiltshire Council,18/01/2011,5105884522,600.00,Barefoot Signs Ltd ,128597,SN10,Resources,DesignPrintTrowbridg,Publications / periodicals,Supplies and Services,REVENUE
http://statistics.data.gov.uk/id/local-authority/00HY,Wiltshire Council,04/01/2011,5105884693,114000.00,Barnardo Services Ltd ,110257,BS16,Children & Education,AimHighDisabldChild,Other Social & Welfare Costs,Third Party Payments,REVENUE
http://statistics.data.gov.uk/id/local-authority/00HY,Wiltshire Council,04/01/2011,5105885005,41223.00,Barnardo Services Ltd ,110257,BS16,Children & Education,AimHighDisabldChild,Other Social & Welfare Costs,Third Party Payments,REVENUE
http://statistics.data.gov.uk/id/local-authority/00HY,Wiltshire Council,04/01/2011,5105885006,58000.00,Barnardo Services Ltd ,110257,BS16,Children & Education,AimHighDisabldChild,Other Social & Welfare Costs,Third Party Payments,REVENUE
http://statistics.data.gov.uk/id/local-authority/00HY,Wiltshire Council,10/01/2011,5105887344,31615.00,Barnardo Services Ltd ,110257,BS16,Children & Education,EYChildCentreTm,Other Professional Fees,Supplies and Services,REVENUE
http://statistics.data.gov.uk/id/local-authority/00HY,Wiltshire Council,14/01/2011,5105888473,32417.50,Barnardo Services Ltd ,110257,BS16,Children & Education,EYChildCentreTm,Other Professional Fees,Supplies and Services,REVENUE
http://statistics.data.gov.uk/id/local-authority/00HY,Wiltshire Council,13/01/2011,1900492174,1911.77,Barnes Coaches Ltd ,100190,SN3 ,Neighbourhood & Planning,Mainstream Secondary,Transport Contracts,Third Party Payments,REVENUE
http://statistics.data.gov.uk/id/local-authority/00HY,Wiltshire Council,13/01/2011,1900492175,2535.19,Barnes Coaches Ltd ,100190,SN3 ,Neighbourhood & Planning,Mainstream Secondary,Transport Contracts,Third Party Payments,REVENUE
http://statistics.data.gov.uk/id/local-authority/00HY,Wiltshire Council,13/01/2011,1900492177,1323.67,Barnes Coaches Ltd ,100190,SN3 ,Neighbourhood & Planning,Mainstream 16+ FE,Transport Contracts,Third Party Payments,REVENUE
http://statistics.data.gov.uk/id/local-authority/00HY,Wiltshire Council,13/01/2011,1900492177,11913.00,Barnes Coaches Ltd ,100190,SN3 ,Neighbourhood & Planning,Mainstream Secondary,Transport Contracts,Third Party Payments,REVENUE
http://statistics.data.gov.uk/id/local-authority/00HY,Wiltshire Council,13/01/2011,1900492178,2501.67,Barnes Coaches Ltd ,100190,SN3 ,Neighbourhood & Planning,Mainstream Secondary,Transport Contracts,Third Party Payments,REVENUE
http://statistics.data.gov.uk/id/local-authority/00HY,Wiltshire Council,14/01/2011,1900493069,2124.64,Barnes Coaches Ltd ,100190,SN3 ,Neighbourhood & Planning,Mainstream Secondary,Transport Contracts,Third Party Payments,REVENUE
http://statistics.data.gov.uk/id/local-authority/00HY,Wiltshire Council,14/01/2011,1900493070,2124.64,Barnes Coaches Ltd ,100190,SN3 ,Neighbourhood & Planning,Mainstream Secondary,Transport Contracts,Third Party Payments,REVENUE
http://statistics.data.gov.uk/id/local-authority/00HY,Wiltshire Council,28/01/2011,1900502098,2719.84,Bartlett Contractors Ltd ,123940,DT10,Neighbourhood & Planning,Winter Maintenance,Highways - Other Materials,Supplies and Services,REVENUE
http://statistics.data.gov.uk/id/local-authority/00HY,Wiltshire Council,19/01/2011,5105887040,4496.46,Bath   North East Somerset Council ,100635,BA1 ,Children & Education,Recoupment Expenditu,Children's Residential / Domiciliary Care,Third Party Payments,REVENUE
http://statistics.data.gov.uk/id/local-authority/00HY,Wiltshire Council,25/01/2011,5105894910,3855.00,Bath   North East Somerset Council ,100635,BA1 ,Children & Education,Playing4Succsess,ICT - Support arrangements,Supplies and Services,REVENUE
http://statistics.data.gov.uk/id/local-authority/00HY,Wiltshire Council,14/01/2011,5105888715,3000.00,Bath  and  North East Somerset Nhs ,113912,BA2 ,Children & Education,Teenage Pregnancy,Medical Support & Supplies,Third Party Payments,REVENUE
http://statistics.data.gov.uk/id/local-authority/00HY,Wiltshire Council,19/01/2011,5105890349,2278.04,Bath & North East Somerset Council ,123536,BA1 ,Community Services,MH OP North Locality,Adult Care Nursing Placements- Spot Purchase,Third Party Payments,REVENUE
http://statistics.data.gov.uk/id/local-authority/00HY,Wiltshire Council,19/01/2011,5105890351,1795.92,BCVS Homes ,111047,BA2 ,Community Services,OP East Locality,Adult Residential Placements - Spot Purchase,Third Party Payments,REVENUE
http://statistics.data.gov.uk/id/local-authority/00HY,Wiltshire Council,19/01/2011,5105890353,4048.00,Beamont Way Care Home ,112334,SP4 ,Community Services,CTPLD County CIC U65,Adult Residential Placements - Spot Purchase,Third Party Payments,REVENUE
http://statistics.data.gov.uk/id/local-authority/00HY,Wiltshire Council,19/01/2011,5105890355,4852.92,Beamont Way Care Home ,112334,SP4 ,Community Services,CTPLD County S75 U65,Adult Residential Placements - Spot Purchase,Third Party Payments,REVENUE
http://statistics.data.gov.uk/id/local-authority/00HY,Wiltshire Council,19/01/2011,5105890357,3920.24,Beamont Way Care Home ,112334,SP4 ,Community Services,CTPLD County CIC U65,Adult Residential Placements - Spot Purchase,Third Party Payments,REVENUE
http://statistics.data.gov.uk/id/local-authority/00HY,Wiltshire Council,19/01/2011,5105893468,3301.24,Beamont Way Care Home ,112334,SP4 ,Community Services,CTPLD County CIC U65,Adult Residential Placements - Spot Purchase,Third Party Payments,REVENUE
http://statistics.data.gov.uk/id/local-authority/00HY,Wiltshire Council,25/01/2011,1900497693,1609.41,Beaufort Minibus  and  Taxis Ltd ,101389,SN14,Neighbourhood & Planning,Mainstream Secondary,Transport Contracts,Third Party Payments,REVENUE
http://statistics.data.gov.uk/id/local-authority/00HY,Wiltshire Council,05/01/2011,5105885198,2516.18,Beck House ,123542,BS16,Community Services,CTPLD County CIC U65,Adult Residential Place - Spot Purchase,Income,REVENUE
http://statistics.data.gov.uk/id/local-authority/00HY,Wiltshire Council,05/01/2011,5105885199,2435.01,Beck House ,123542,BS16,Community Services,CTPLD County CIC U65,Adult Residential Place - Spot Purchase,Income,REVENUE
http://statistics.data.gov.uk/id/local-authority/00HY,Wiltshire Council,10/01/2011,5105887251,2821.63,Beck House ,123542,BS16,Community Services,CTPLD County CIC U65,Adult Residential Place - Spot Purchase,Income,REVENUE
http://statistics.data.gov.uk/id/local-authority/00HY,Wiltshire Council,10/01/2011,5105887252,2915.69,Beck House ,123542,BS16,Community Services,CTPLD County CIC U65,Adult Residential Place - Spot Purchase,Income,REVENUE
http://statistics.data.gov.uk/id/local-authority/00HY,Wiltshire Council,21/01/2011,5105894349,2516.18,Beck House ,123542,BS16,Community Services,CTPLD County CIC U65,Adult Residential Place - Spot Purchase,Income,REVENUE
http://statistics.data.gov.uk/id/local-authority/00HY,Wiltshire Council,21/01/2011,5105894409,2915.69,Beck House ,123542,BS16,Community Services,CTPLD County CIC U65,Adult Residential Place - Spot Purchase,Income,REVENUE
http://statistics.data.gov.uk/id/local-authority/00HY,Wiltshire Council,17/01/2011,5105887212,3442.24,Beeches Homecare Corsham Chippenham ,128852,SN13,Community Services,OP North Locality,Adult Domiciliary Care - Block,Third Party Payments,REVENUE
http://statistics.data.gov.uk/id/local-authority/00HY,Wiltshire Council,17/01/2011,5105887213,1516.56,Beeches Homecare Corsham Chippenham ,128852,SN13,Community Services,PI North Locality,Adult Domiciliary Care - Block,Third Party Payments,REVENUE
http://statistics.data.gov.uk/id/local-authority/00HY,Wiltshire Council,17/01/2011,5105887216,812.64,Beeches Homecare Corsham Chippenham ,128852,SN13,Community Services,MH AOWA North,Adult Domiciliary Care - Block,Third Party Payments,REVENUE
http://statistics.data.gov.uk/id/local-authority/00HY,Wiltshire Council,17/01/2011,5105887217,640.68,Beeches Homecare Corsham Chippenham ,128852,SN13,Community Services,OP North Locality,Adult Domiciliary Care - Block,Third Party Payments,REVENUE
http://statistics.data.gov.uk/id/local-authority/00HY,Wiltshire Council,25/01/2011,1900497751,607.57,Beeline Coaches ,101673,.,Neighbourhood & Planning,Concessionary Fares,Compensation for Concessionary fares,Third Party Payments,REVENUE
http://statistics.data.gov.uk/id/local-authority/00HY,Wiltshire Council,28/01/2011,1900502060,638.58,Beeline Coaches ,101673,.,Neighbourhood & Planning,Public Transport,Transport Contracts,Third Party Payments,REVENUE
http://statistics.data.gov.uk/id/local-authority/00HY,Wiltshire Council,28/01/2011,1900502061,1908.41,Beeline Coaches ,101673,.,Neighbourhood & Planning,Mainstream 16+ FE,Transport Contracts,Third Party Payments,REVENUE
http://statistics.data.gov.uk/id/local-authority/00HY,Wiltshire Council,28/01/2011,1900502062,2426.29,Beeline Coaches ,101673,.,Neighbourhood & Planning,Public Transport,Transport Contracts,Third Party Payments,REVENUE
http://statistics.data.gov.uk/id/local-authority/00HY,Wiltshire Council,28/01/2011,1900502062,3321.12,Beeline Coaches ,101673,.,Neighbourhood & Planning,Mainstream 16+ FE,Transport Contracts,Third Party Payments,REVENUE
http://statistics.data.gov.uk/id/local-authority/00HY,Wiltshire Council,28/01/2011,1900502062,4981.68,Beeline Coaches ,101673,.,Neighbourhood & Planning,Mainstream Primary,Transport Contracts,Third Party Payments,REVENUE
http://statistics.data.gov.uk/id/local-authority/00HY,Wiltshire Council,28/01/2011,1900502062,24908.40,Beeline Coaches ,101673,.,Neighbourhood & Planning,Mainstream Secondary,Transport Contracts,Third Party Payments,REVENUE
http://statistics.data.gov.uk/id/local-authority/00HY,Wiltshire Council,28/01/2011,1900502065,970.78,Beeline Coaches ,101673,.,Neighbourhood & Planning,Mainstream Primary,Transport Contracts,Third Party Payments,REVENUE
http://statistics.data.gov.uk/id/local-authority/00HY,Wiltshire Council,28/01/2011,1900502065,1941.40,Beeline Coaches ,101673,.,Neighbourhood & Planning,Mainstream Secondary,Transport Contracts,Third Party Payments,REVENUE
http://statistics.data.gov.uk/id/local-authority/00HY,Wiltshire Council,28/01/2011,1900502066,1826.97,Beeline Coaches ,101673,.,Neighbourhood & Planning,DCS West CTPLD U65,Transport Contracts,Third Party Payments,REVENUE
http://statistics.data.gov.uk/id/local-authority/00HY,Wiltshire Council,28/01/2011,1900502069,1350.00,Beeline Coaches ,101673,.,Neighbourhood & Planning,Mainstream Secondary,Transport Contracts,Third Party Payments,REVENUE
http://statistics.data.gov.uk/id/local-authority/00HY,Wiltshire Council,28/01/2011,1900502070,1772.36,Beeline Coaches ,101673,.,Neighbourhood & Planning,Mainstream Secondary,Transport Contracts,Third Party Payments,REVENUE
http://statistics.data.gov.uk/id/local-authority/00HY,Wiltshire Council,17/01/2011,1900493421,520.00,Bell Private Hire ,101351,SN4 ,Neighbourhood & Planning,SEN Primary,Transport Contracts,Third Party Payments,REVENUE
http://statistics.data.gov.uk/id/local-authority/00HY,Wiltshire Council,27/01/2011,5105891815,7667.00,Belmont Press ,110277,NN5 ,Neighbourhood & Planning,VisitWiltsPartnersh,Printing External,Supplies and Services,REVENUE
http://statistics.data.gov.uk/id/local-authority/00HY,Wiltshire Council,21/01/2011,5105894422,10000.00,Bemerton Scout Group ,113982,SP2 ,Wiltshire Council,Wiltshire Council,Grants Paid to individuals for Tangible Benefits,Supplies and Services,CAPITAL
http://statistics.data.gov.uk/id/local-authority/00HY,Wiltshire Council,12/01/2011,1900488917,2726.66,Bennett & Dean Electrical Ltd ,100214,SP2 ,Wiltshire Council,Wiltshire Council,Buildings Minor Alterations,Premises Related,CAPITAL
http://statistics.data.gov.uk/id/local-authority/00HY,Wiltshire Council,13/01/2011,1900492376,2511.15,Bennett & Dean Electrical Ltd ,100214,SP2 ,Resources,Primary Sch Pooling,Preventative Property Maintenance,Premises Related,REVENUE
http://statistics.data.gov.uk/id/local-authority/00HY,Wiltshire Council,14/01/2011,1900493004,725.56,Bennett & Dean Electrical Ltd ,100214,SP2 ,Resources,Other,Preventative Property Maintenance,Premises Related,REVENUE
http://statistics.data.gov.uk/id/local-authority/00HY,Wiltshire Council,19/01/2011,5105887025,1318.72,Bennett & Dean Electrical Ltd ,100214,SP2 ,Neighbourhood & Planning,Highway Depots,Equipment Maintenance,Supplies and Services,REVENUE
http://statistics.data.gov.uk/id/local-authority/00HY,Wiltshire Council,05/01/2011,1900470943,522.80,Bertram Library Services ,101283,BD19,Community Services,Lib Book Fund,Library Service,Supplies and Services,REVENUE
http://statistics.data.gov.uk/id/local-authority/00HY,Wiltshire Council,17/01/2011,1900488159,806.85,Bertram Library Services ,101283,BD19,Community Services,Lib Book Fund,Library Service,Supplies and Services,REVENUE
http://statistics.data.gov.uk/id/local-authority/00HY,Wiltshire Council,07/01/2011,1900488161,992.26,Bertram Library Services ,101283,BD19,Community Services,Lib Book Fund,Library Service,Supplies and Services,REVENUE
http://statistics.data.gov.uk/id/local-authority/00HY,Wiltshire Council,18/01/2011,1900488298,1966.96,Bertram Library Services ,101283,BD19,Community Services,Lib Book Fund,Library Service,Supplies and Services,REVENUE
http://statistics.data.gov.uk/id/local-authority/00HY,Wiltshire Council,12/01/2011,1900488021,505.48,Besam Ltd ,100586,TW16,Resources,Campus,Preventative Property Maintenance,Premises Related,REVENUE
http://statistics.data.gov.uk/id/local-authority/00HY,Wiltshire Council,13/01/2011,1900492183,677.86,Beta Taxis ,101096,BA14,Neighbourhood & Planning,Community Team East,Transport Contracts,Third Party Payments,REVENUE
http://statistics.data.gov.uk/id/local-authority/00HY,Wiltshire Council,07/01/2011,1900487990,714.00,Biogas Technology Ltd ,100573,PE17,Neighbourhood & Planning,Closed Site-Rout Mtc,Preventative Property Maintenance,Premises Related,REVENUE
http://statistics.data.gov.uk/id/local-authority/00HY,Wiltshire Council,28/01/2011,1900497948,714.00,Biogas Technology Ltd ,100573,PE17,Neighbourhood & Planning,Closed Site-Rout Mtc,Preventative Property Maintenance,Premises Related,REVENUE
http://statistics.data.gov.uk/id/local-authority/00HY,Wiltshire Council,28/01/2011,1900497949,506.00,Biogas Technology Ltd ,100573,PE17,Neighbourhood & Planning,Closed Site-Rout Mtc,Preventative Property Maintenance,Premises Related,REVENUE
http://statistics.data.gov.uk/id/local-authority/00HY,Wiltshire Council,19/01/2011,5105892615,3006.04,Birds Hill Nursing Home ,114024,BH15,Community Services,MH OA South HL,Adult Care - Home Loan Costs,Capital charges and Expenditure,REVENUE
http://statistics.data.gov.uk/id/local-authority/00HY,Wiltshire Council,12/01/2011,1900488908,1041.24,Blaze Fire (UK) Ltd ,101649,SN14,Resources,WTP Office,Preventative Property Maintenance,Premises Related,REVENUE
http://statistics.data.gov.uk/id/local-authority/00HY,Wiltshire Council,12/01/2011,1900488910,738.61,Blaze Fire (UK) Ltd ,101649,SN14,Wiltshire Council,Wiltshire Council,Buildings Minor Alterations,Premises Related,CAPITAL
http://statistics.data.gov.uk/id/local-authority/00HY,Wiltshire Council,11/01/2011,5105878878,750.00,Blickglen Lifts Ltd ,110311,BH23,Neighbourhood & Planning,Housing Rprs Simdell,Premises Related Other Maintenance Costs,Premises Related,REVENUE
http://statistics.data.gov.uk/id/local-authority/00HY,Wiltshire Council,12/01/2011,5105884179,528.50,Blickglen Lifts Ltd ,110311,BH23,Neighbourhood & Planning,Housg Rprs Contracts,Premises Related Other Maintenance Costs,Premises Related,REVENUE
http://statistics.data.gov.uk/id/local-authority/00HY,Wiltshire Council,27/01/2011,5105896376,2442.78,Blue Sky Fostering ,128079,SO51,Children & Education,External Placements,Adult / Child Care Agency Placement,Third Party Payments,REVENUE
http://statistics.data.gov.uk/id/local-authority/00HY,Wiltshire Council,27/01/2011,5105896377,1357.15,Blue Sky Fostering ,128079,SO51,Children & Education,External Placements,Adult / Child Care Agency Placement,Third Party Payments,REVENUE
http://statistics.data.gov.uk/id/local-authority/00HY,Wiltshire Council,27/01/2011,5105896378,8414.33,Blue Sky Fostering ,128079,SO51,Children & Education,External Placements,Adult / Child Care Agency Placement,Third Party Payments,REVENUE
http://statistics.data.gov.uk/id/local-authority/00HY,Wiltshire Council,19/01/2011,5105890323,1920.00,Bluebell Lodge Residential Care Hom ,110314,SN15,Community Services,PI North Locality,Adult Residential Placements - Spot Purchase,Third Party Payments,REVENUE
http://statistics.data.gov.uk/id/local-authority/00HY,Wiltshire Council,19/01/2011,5105890359,1546.40,Bluebell Lodge Residential Care Hom ,110314,SN15,Community Services,OP North Locality,Adult Residential Placements - Spot Purchase,Third Party Payments,REVENUE
http://statistics.data.gov.uk/id/local-authority/00HY,Wiltshire Council,19/01/2011,5105890361,1980.00,Bluebell Lodge Residential Care Hom ,110314,SN15,Community Services,OP North Locality,Adult Residential Placements - Spot Purchase,Third Party Payments,REVENUE
http://statistics.data.gov.uk/id/local-authority/00HY,Wiltshire Council,19/01/2011,5105890363,1890.68,Bluebell Lodge Residential Care Hom ,110314,SN15,Community Services,OP West Locality,Adult Residential Placements - Spot Purchase,Third Party Payments,REVENUE
http://statistics.data.gov.uk/id/local-authority/00HY,Wiltshire Council,19/01/2011,5105892583,2160.00,Bluebell Lodge Residential Care Hom ,110314,SN15,Community Services,OP North HL,Adult Care - Home Loan Costs,Capital charges and Expenditure,REVENUE
http://statistics.data.gov.uk/id/local-authority/00HY,Wiltshire Council,19/01/2011,5105893039,1546.40,Bluebell Lodge Residential Care Hom ,110314,SN15,Community Services,OP North HL,Adult Care - Home Loan Costs,Capital charges and Expenditure,REVENUE
http://statistics.data.gov.uk/id/local-authority/00HY,Wiltshire Council,19/01/2011,1900494422,500.00,Bodytech ,110317,SP2 ,Resources,InsuranceFund,Insurance Claims,Supplies and Services,REVENUE
http://statistics.data.gov.uk/id/local-authority/00HY,Wiltshire Council,11/01/2011,5105887654,3290.00,Bournemouth University ,110335,BH8 ,Children & Education,SocialWorkBackfill,Internal Training Costs,Employee Related,REVENUE
http://statistics.data.gov.uk/id/local-authority/00HY,Wiltshire Council,19/01/2011,5105891757,1600.00,Bournemouth University ,110335,BH8 ,Neighbourhood & Planning,VisitWiltsPartnersh,Consultants� Fees,Supplies and Services,REVENUE
http://statistics.data.gov.uk/id/local-authority/00HY,Wiltshire Council,25/01/2011,5105895082,595.00,Bournemouth University ,110335,BH8 ,Community Services,Practice Learning,Staff Training Course Costs,Employee Related,REVENUE
http://statistics.data.gov.uk/id/local-authority/00HY,Wiltshire Council,25/01/2011,1900497687,791.67,Bradies Taxis ,100249,SN15,Neighbourhood & Planning,Mainstream Primary,Transport Contracts,Third Party Payments,REVENUE
http://statistics.data.gov.uk/id/local-authority/00HY,Wiltshire Council,25/01/2011,1900497687,791.67,Bradies Taxis ,100249,SN15,Neighbourhood & Planning,Mainstream 16+ FE,Transport Contracts,Third Party Payments,REVENUE
http://statistics.data.gov.uk/id/local-authority/00HY,Wiltshire Council,25/01/2011,1900497687,5487.30,Bradies Taxis ,100249,SN15,Neighbourhood & Planning,Connect 2 Wiltshire,Transport Contracts,Third Party Payments,REVENUE
http://statistics.data.gov.uk/id/local-authority/00HY,Wiltshire Council,28/01/2011,1900502055,680.16,Bradies Taxis ,100249,SN15,Neighbourhood & Planning,Mainstream Secondary,Transport Contracts,Third Party Payments,REVENUE
http://statistics.data.gov.uk/id/local-authority/00HY,Wiltshire Council,19/01/2011,5105893198,4129.68,Brain Injury Rehabilitation Trust ,114147,WF6 ,Community Services,MH AOWA West,Adult Residential Placements - Spot Purchase,Third Party Payments,REVENUE
http://statistics.data.gov.uk/id/local-authority/00HY,Wiltshire Council,19/01/2011,5105893199,1769.84,Brain Injury Rehabilitation Trust ,114147,WF6 ,Community Services,Section 117-PCT Clnt,Adult Residential Placements - Spot Purchase,Third Party Payments,REVENUE
http://statistics.data.gov.uk/id/local-authority/00HY,Wiltshire Council,19/01/2011,5105891019,1890.68,Bramley House ,121488,DT10,Community Services,OP South Locality,Adult Residential Placements - Spot Purchase,Third Party Payments,REVENUE
http://statistics.data.gov.uk/id/local-authority/00HY,Wiltshire Council,19/01/2011,5105891021,1976.00,Bramley House ,121488,DT10,Community Services,OP South Locality,Adult Residential Placements - Spot Purchase,Third Party Payments,REVENUE
http://statistics.data.gov.uk/id/local-authority/00HY,Wiltshire Council,12/01/2011,1900477506,1250.00,Bratton Recreation Ground ,130236,BA13,Community Services,Area Board Westbury,Area Board Grants,Supplies and Services,REVENUE
http://statistics.data.gov.uk/id/local-authority/00HY,Wiltshire Council,20/01/2011,1900495884,11746.57,Brendoncare Foundation ,110351,SN8 ,Community Services,FNC,Adult Care Funded Nursing Care - Out of County Cli,Third Party Payments,REVENUE
http://statistics.data.gov.uk/id/local-authority/00HY,Wiltshire Council,19/01/2011,5105889734,2334.16,Brendoncare Foundation ,110351,SN8 ,Community Services,OP East Locality,Adult Care Nursing Placements- Spot Purchase,Third Party Payments,REVENUE
http://statistics.data.gov.uk/id/local-authority/00HY,Wiltshire Council,19/01/2011,5105889737,2110.20,Brendoncare Foundation ,110351,SN8 ,Community Services,OP East Locality,Adult Care Nursing Placements- Spot Purchase,Third Party Payments,REVENUE
http://statistics.data.gov.uk/id/local-authority/00HY,Wiltshire Council,19/01/2011,5105889740,2995.16,Brendoncare Foundation ,110351,SN8 ,Community Services,OP East Locality,Adult Care Nursing Placements- Spot Purchase,Third Party Payments,REVENUE
http://statistics.data.gov.uk/id/local-authority/00HY,Wiltshire Council,19/01/2011,5105889744,2365.20,Brendoncare Foundation ,110351,SN8 ,Community Services,OP East Locality,Adult Care Nursing Placements- Spot Purchase,Third Party Payments,REVENUE
http://statistics.data.gov.uk/id/local-authority/00HY,Wiltshire Council,19/01/2011,5105889747,2813.20,Brendoncare Foundation ,110351,SN8 ,Community Services,OP East Locality,Adult Care Nursing Placements- Spot Purchase,Third Party Payments,REVENUE
http://statistics.data.gov.uk/id/local-authority/00HY,Wiltshire Council,19/01/2011,5105889750,2365.20,Brendoncare Foundation ,110351,SN8 ,Community Services,OP East Locality,Adult Care Nursing Placements- Spot Purchase,Third Party Payments,REVENUE
http://statistics.data.gov.uk/id/local-authority/00HY,Wiltshire Council,19/01/2011,5105890365,1544.72,Brendoncare Foundation ,110351,SN8 ,Community Services,MH OP East Locality,Adult Care Nursing Placements- Spot Purchase,Third Party Payments,REVENUE
http://statistics.data.gov.uk/id/local-authority/00HY,Wiltshire Council,19/01/2011,5105890368,1877.44,Brendoncare Foundation ,110351,SN8 ,Community Services,OP East Locality,Adult Care Nursing Placements- Spot Purchase,Third Party Payments,REVENUE
http://statistics.data.gov.uk/id/local-authority/00HY,Wiltshire Council,28/01/2011,5105894566,80341.66,Bright Horizons Family Solutions Ltd,114178,NN10,Children & Education,E.Y WrkFrce Develpmt,Grants Paid to individuals for Tangible Benefits,Supplies and Services,REVENUE
http://statistics.data.gov.uk/id/local-authority/00HY,Wiltshire Council,28/01/2011,5105894830,49272.75,Bright Horizons Family Solutions Ltd,114178,NN10,Children & Education,EYChildCareTeam,Grants Paid to individuals for Tangible Benefits,Supplies and Services,REVENUE
http://statistics.data.gov.uk/id/local-authority/00HY,Wiltshire Council,19/01/2011,5105893095,2196.32,Brighton & Hove Bethesda Home ,129273,BN3 ,Community Services,OP North Locality,Adult Residential Placements - Spot Purchase,Third Party Payments,REVENUE
http://statistics.data.gov.uk/id/local-authority/00HY,Wiltshire Council,07/01/2011,5105887017,3315.00,Bristol City Council ,110367,BS99,Children & Education,EYLearnDevTm,Publications / periodicals,Supplies and Services,REVENUE
http://statistics.data.gov.uk/id/local-authority/00HY,Wiltshire Council,11/01/2011,5105887852,7871.04,British Association for Adoption  a Fostering,123853,EC1N,Children & Education,Adoption Services,Professional Subscriptions/Memberships,Employee Related,REVENUE
http://statistics.data.gov.uk/id/local-authority/00HY,Wiltshire Council,07/01/2011,1900480503,4345.12,British Gas Business ,101084,OX4 ,Neighbourhood & Planning,Durrington SwimmingP,Gas,Premises Related,REVENUE
http://statistics.data.gov.uk/id/local-authority/00HY,Wiltshire Council,11/01/2011,1900488753,4101.85,British Gas Business ,110374,GU95,Neighbourhood & Planning,SH Reindorp Lodge,Gas,Premises Related,REVENUE
http://statistics.data.gov.uk/id/local-authority/00HY,Wiltshire Council,06/01/2011,1900476115,2111.73,British Gas Business ,114212,LE19,Resources,SDC Other Offices,Electricity,Premises Related,REVENUE
http://statistics.data.gov.uk/id/local-authority/00HY,Wiltshire Council,10/01/2011,1900488557,539.67,British Gas Business ,114213,GU15,Resources,Campus,Electricity,Premises Related,REVENUE
http://statistics.data.gov.uk/id/local-authority/00HY,Wiltshire Council,10/01/2011,1900488558,526.83,British Gas Business ,114213,GU15,Resources,Campus,Electricity,Premises Related,REVENUE
http://statistics.data.gov.uk/id/local-authority/00HY,Wiltshire Council,11/01/2011,1900488836,649.23,British Gas Business ,114213,GU15,Resources,Other,Electricity,Premises Related,REVENUE
http://statistics.data.gov.uk/id/local-authority/00HY,Wiltshire Council,12/01/2011,1900488845,738.98,British Gas Business ,114213,GU15,Resources,Other,Electricity,Premises Related,REVENUE
http://statistics.data.gov.uk/id/local-authority/00HY,Wiltshire Council,21/01/2011,1900491928,561.48,British Gas Business ,114213,GU15,Resources,Community,Electricity,Premises Related,REVENUE
http://statistics.data.gov.uk/id/local-authority/00HY,Wiltshire Council,21/01/2011,1900491988,822.33,British Gas Business ,114213,GU15,Resources,Community,Electricity,Premises Related,REVENUE
http://statistics.data.gov.uk/id/local-authority/00HY,Wiltshire Council,21/01/2011,1900492057,1647.60,British Gas Business ,114213,GU15,Resources,Community,Electricity,Premises Related,REVENUE
http://statistics.data.gov.uk/id/local-authority/00HY,Wiltshire Council,21/01/2011,1900492059,2215.58,British Gas Business ,114213,GU15,Resources,Other,Electricity,Premises Related,REVENUE
http://statistics.data.gov.uk/id/local-authority/00HY,Wiltshire Council,21/01/2011,1900492063,1044.73,British Gas Business ,114213,GU15,Resources,Investment Estate,Electricity,Premises Related,REVENUE
http://statistics.data.gov.uk/id/local-authority/00HY,Wiltshire Council,21/01/2011,1900492065,675.06,British Gas Business ,114213,GU15,Resources,Community,Electricity,Premises Related,REVENUE
http://statistics.data.gov.uk/id/local-authority/00HY,Wiltshire Council,21/01/2011,1900493664,1562.35,British Gas Business ,114213,GU15,Resources,Community,Electricity,Premises Related,REVENUE
http://statistics.data.gov.uk/id/local-authority/00HY,Wiltshire Council,21/01/2011,1900493705,523.83,British Gas Business ,114213,GU15,Resources,WTP Office,Electricity,Premises Related,REVENUE
http://statistics.data.gov.uk/id/local-authority/00HY,Wiltshire Council,21/01/2011,1900493824,573.61,British Gas Business ,114213,GU15,Resources,Campus,Electricity,Premises Related,REVENUE
http://statistics.data.gov.uk/id/local-authority/00HY,Wiltshire Council,28/01/2011,1900494404,1500.42,British Gas Business ,114213,GU15,Neighbourhood & Planning,PrivateSectorLeasing,Gas,Premises Related,REVENUE
http://statistics.data.gov.uk/id/local-authority/00HY,Wiltshire Council,21/01/2011,1900494548,700.58,British Gas Business ,114213,GU15,Resources,WTP Office,Electricity,Premises Related,REVENUE
http://statistics.data.gov.uk/id/local-authority/00HY,Wiltshire Council,21/01/2011,1900495980,535.38,British Gas Business ,114213,GU15,Resources,Investment Estate,Electricity,Premises Related,REVENUE
http://statistics.data.gov.uk/id/local-authority/00HY,Wiltshire Council,21/01/2011,1900496128,1224.76,British Gas Business ,114213,GU15,Resources,Campus,Electricity,Premises Related,REVENUE
http://statistics.data.gov.uk/id/local-authority/00HY,Wiltshire Council,21/01/2011,1900496141,628.47,British Gas Business ,114213,GU15,Resources,Campus,Electricity,Premises Related,REVENUE
http://statistics.data.gov.uk/id/local-authority/00HY,Wiltshire Council,25/01/2011,1900497582,852.54,British Gas Business ,114213,GU15,Neighbourhood & Planning,Communal Areas,Electricity,Premises Related,REVENUE
http://statistics.data.gov.uk/id/local-authority/00HY,Wiltshire Council,25/01/2011,1900497582,1088.47,British Gas Business ,114213,GU15,Neighbourhood & Planning,Pumping Plants,Electricity,Premises Related,REVENUE
http://statistics.data.gov.uk/id/local-authority/00HY,Wiltshire Council,25/01/2011,1900497584,964.41,British Gas Business ,114213,GU15,Neighbourhood & Planning,Park & Ride Sites,Electricity,Premises Related,REVENUE
http://statistics.data.gov.uk/id/local-authority/00HY,Wiltshire Council,25/01/2011,1900497584,4598.66,British Gas Business ,114213,GU15,Neighbourhood & Planning,Off Street Parking,Electricity,Premises Related,REVENUE
http://statistics.data.gov.uk/id/local-authority/00HY,Wiltshire Council,25/01/2011,1900497586,618.82,British Gas Business ,114213,GU15,Neighbourhood & Planning,Public Conveniences,Electricity,Premises Related,REVENUE
http://statistics.data.gov.uk/id/local-authority/00HY,Wiltshire Council,25/01/2011,1900497589,1349.01,British Gas Business ,114213,GU15,Resources,SDC Other Offices,Electricity,Premises Related,REVENUE
http://statistics.data.gov.uk/id/local-authority/00HY,Wiltshire Council,26/01/2011,1900497992,788.31,British Gas Business ,114213,GU15,Resources,Other,Electricity,Premises Related,REVENUE
http://statistics.data.gov.uk/id/local-authority/00HY,Wiltshire Council,27/01/2011,1900501484,885.53,British Gas Business ,114213,GU15,Resources,Traded,Electricity,Premises Related,REVENUE
http://statistics.data.gov.uk/id/local-authority/00HY,Wiltshire Council,27/01/2011,1900501490,1227.07,British Gas Business ,114213,GU15,Neighbourhood & Planning,SH Nadder Close,Electricity,Premises Related,REVENUE
http://statistics.data.gov.uk/id/local-authority/00HY,Wiltshire Council,27/01/2011,1900501490,1451.25,British Gas Business ,114213,GU15,Neighbourhood & Planning,SH West Fields,Electricity,Premises Related,REVENUE
http://statistics.data.gov.uk/id/local-authority/00HY,Wiltshire Council,27/01/2011,1900501490,1648.61,British Gas Business ,114213,GU15,Neighbourhood & Planning,SH Clays Orchard,Electricity,Premises Related,REVENUE
http://statistics.data.gov.uk/id/local-authority/00HY,Wiltshire Council,27/01/2011,1900501490,1892.05,British Gas Business ,114213,GU15,Neighbourhood & Planning,SH The Orchard,Electricity,Premises Related,REVENUE
http://statistics.data.gov.uk/id/local-authority/00HY,Wiltshire Council,27/01/2011,1900501490,2263.72,British Gas Business ,114213,GU15,Neighbourhood & Planning,SH Horsehill Place,Electricity,Premises Related,REVENUE
http://statistics.data.gov.uk/id/local-authority/00HY,Wiltshire Council,27/01/2011,1900501490,2287.77,British Gas Business ,114213,GU15,Neighbourhood & Planning,SH Lanfear Close,Electricity,Premises Related,REVENUE
http://statistics.data.gov.uk/id/local-authority/00HY,Wiltshire Council,27/01/2011,1900501627,867.17,British Gas Business ,114213,GU15,Resources,Traded,Electricity,Premises Related,REVENUE
http://statistics.data.gov.uk/id/local-authority/00HY,Wiltshire Council,28/01/2011,1900501651,1223.19,British Gas Business ,114213,GU15,Resources,Campus,Electricity,Premises Related,REVENUE
http://statistics.data.gov.uk/id/local-authority/00HY,Wiltshire Council,28/01/2011,1900501689,677.34,British Gas Business ,114213,GU15,Resources,Campus,Electricity,Premises Related,REVENUE
http://statistics.data.gov.uk/id/local-authority/00HY,Wiltshire Council,28/01/2011,1900501853,777.32,British Gas Business ,114213,GU15,Neighbourhood & Planning,Closed Site-Rout Mtc,Electricity,Premises Related,REVENUE
http://statistics.data.gov.uk/id/local-authority/00HY,Wiltshire Council,10/01/2011,1900488641,534.00,British Gas Services Ltd ,101708,SK1 ,Neighbourhood & Planning,Housing Rprs Simdell,Premises Related Other Maintenance Costs,Premises Related,REVENUE
http://statistics.data.gov.uk/id/local-authority/00HY,Wiltshire Council,10/01/2011,5105887374,10661.00,British Gas Services Ltd ,101708,SK1 ,Wiltshire Council,Wiltshire Council,Premises Related Other Maintenance Costs,Premises Related,CAPITAL
http://statistics.data.gov.uk/id/local-authority/00HY,Wiltshire Council,19/01/2011,5105891908,40239.00,British Gas Services Ltd ,101708,SK1 ,Neighbourhood & Planning,Housg Rprs Contracts,Premises Related Other Maintenance Costs,Premises Related,REVENUE
http://statistics.data.gov.uk/id/local-authority/00HY,Wiltshire Council,27/01/2011,1900501477,60887.37,British Telecom Plc ,114232,NW9 ,Resources,WAN,Telephones - Landlines (incl fax),Supplies and Services,REVENUE
http://statistics.data.gov.uk/id/local-authority/00HY,Wiltshire Council,11/01/2011,5105887548,1000.00,Broadway Lodge ,110385,BS24,Community Services,(9)ResPlacementsCIC,Adult Residential Placements - Substance Misuse,Third Party Payments,REVENUE
http://statistics.data.gov.uk/id/local-authority/00HY,Wiltshire Council,28/01/2011,1900502046,725.00,Brockenhurst College ,101282,SO42,Neighbourhood & Planning,Mainstream 16+ FE,Transport Contract -  Bus Season Tickets,Third Party Payments,REVENUE
http://statistics.data.gov.uk/id/local-authority/00HY,Wiltshire Council,06/01/2011,5105885154,750.00,Broxap Limited ,110392,ST5 ,Wiltshire Council,Wiltshire Council,Highways - Other Materials,Supplies and Services,CAPITAL
http://statistics.data.gov.uk/id/local-authority/00HY,Wiltshire Council,19/01/2011,5105889752,2261.00,Brunel Care ,114271,BS1 ,Community Services,MH OP North Locality,Adult Care Nursing Placements- Spot Purchase,Third Party Payments,REVENUE
http://statistics.data.gov.uk/id/local-authority/00HY,Wiltshire Council,12/01/2011,1900481979,37334.37,BT Global Services ,110396,NW9 ,Resources,WAN,Telephones - Landlines (incl fax),Supplies and Services,REVENUE
http://statistics.data.gov.uk/id/local-authority/00HY,Wiltshire Council,27/01/2011,1900501428,1753.15,BT Openreach Repayments  Alterations,123564,SN2 ,Wiltshire Council,Wiltshire Council,Highways Contracts - Other,Third Party Payments,CAPITAL
http://statistics.data.gov.uk/id/local-authority/00HY,Wiltshire Council,14/01/2011,1900488032,1300.00,bta architects Ltd ,101010,BA12,Wiltshire Council,Wiltshire Council,Buildings Minor Alterations,Premises Related,CAPITAL
http://statistics.data.gov.uk/id/local-authority/00HY,Wiltshire Council,06/01/2011,5105887041,1908.36,Buckinghamshire County Council ,124709,HP20,Children & Education,Recoupment Expenditu,Educational Fees,Supplies and Services,REVENUE
http://statistics.data.gov.uk/id/local-authority/00HY,Wiltshire Council,20/01/2011,5105893916,3436.64,Bunce Ashbury Ltd ,110401,SN6 ,Neighbourhood & Planning,Fleet Mtc East,Vehicle Parts,Transport Related,REVENUE
http://statistics.data.gov.uk/id/local-authority/00HY,Wiltshire Council,19/01/2011,5105891157,1629.20,BUPA - Amerind Grove ,128351,BS3 ,Community Services,OP North Locality,Adult Care Nursing Placements- Spot Purchase,Third Party Payments,REVENUE
http://statistics.data.gov.uk/id/local-authority/00HY,Wiltshire Council,20/01/2011,1900495881,2132.13,BUPA - Avon Court Care Centre ,110218,LS16,Community Services,FNC,Adult Care Funded Nursing Care - Out of County Cli,Third Party Payments,REVENUE
http://statistics.data.gov.uk/id/local-authority/00HY,Wiltshire Council,25/01/2011,1900497525,1203.60,BUPA - Avon Court Care Centre ,110218,LS16,Community Services,OP North HL,Adult Care - Home Loan Costs,Capital charges and Expenditure,REVENUE
http://statistics.data.gov.uk/id/local-authority/00HY,Wiltshire Council,06/01/2011,5105886983,6043.68,BUPA - Avon Court Care Centre ,110218,LS16,Community Services,OP West Locality,Adult Care Nursing Placements - 12 Week,Third Party Payments,REVENUE
http://statistics.data.gov.uk/id/local-authority/00HY,Wiltshire Council,06/01/2011,5105886986,1304.40,BUPA - Avon Court Care Centre ,110218,LS16,Community Services,OP West FNC,Adult Care Funded Nursing Care - Loal Auth Clients,Third Party Payments,REVENUE
http://statistics.data.gov.uk/id/local-authority/00HY,Wiltshire Council,06/01/2011,5105886988,1797.28,BUPA - Avon Court Care Centre ,110218,LS16,Community Services,OP North HL,Adult Care - Home Loan Costs,Capital charges and Expenditure,REVENUE
http://statistics.data.gov.uk/id/local-authority/00HY,Wiltshire Council,06/01/2011,5105886990,3145.20,BUPA - Avon Court Care Centre ,110218,LS16,Community Services,OP North HL,Adult Care - Home Loan Costs,Capital charges and Expenditure,REVENUE
http://statistics.data.gov.uk/id/local-authority/00HY,Wiltshire Council,06/01/2011,5105886992,3145.20,BUPA - Avon Court Care Centre ,110218,LS16,Community Services,OP North HL,Adult Care - Home Loan Costs,Capital charges and Expenditure,REVENUE
http://statistics.data.gov.uk/id/local-authority/00HY,Wiltshire Council,14/01/2011,5105888827,2686.66,BUPA - Avon Court Care Centre ,110218,LS16,Community Services,OP North Locality,Adult Nursing Respite - Block,Third Party Payments,REVENUE
http://statistics.data.gov.uk/id/local-authority/00HY,Wiltshire Council,14/01/2011,5105888828,2686.66,BUPA - Avon Court Care Centre ,110218,LS16,Community Services,OP North Locality,Adult Nursing Respite - Block,Third Party Payments,REVENUE
http://statistics.data.gov.uk/id/local-authority/00HY,Wiltshire Council,19/01/2011,5105889899,2014.52,BUPA - Avon Court Care Centre ,110218,LS16,Community Services,OP North Locality,Adult Care Nursing Placements- Spot Purchase,Third Party Payments,REVENUE
